Workbook

Sheet INTRO
C1: Cette version sera utilisée par les pays endémiques à la Loase
B2: Formulaire de Rapport Commun v.3.1 (L)
B4: Le but de ce formulaire de rapport commun - disponible sous forme de fichier Excel - est de mettre à disposition des autorités sanitaires nationales et des gestionnaires de données un outil standardisé qui réponde aux défis, facilite l'intégration et par conséquent contribue à améliorer la gestion de programme. Ce formulaire tend à standardiser le rapport de résultats des programmes nationaux, améliore la disponibilité et la coordination des données de chimioprévention à travers les Bureaux des Régions de l'Organisation mondiale de la Santé. Les autorités nationales sont priées de compléter ce formulaire et de le soumettre à l'Organisation mondiale de la Santé avant le 15 août de l'année en cours pour rapporter les données des activités de chimioprévention mises en oeuvre l'année précédente.
B6: Structure de l'application (feuilles de travail) :
B8: INTRO | C8: Cette feuille contient des instructions pour compléter le formulaire de rapport commun et des informations sur le statut de la chimioprévention pour les maladies d'endémie du pays.
B9: COUNTRY_INFO | C9: Cette feuille contient des informations sur la structure administrative du pays, la population par groupe d'âge, le statut d'endémicité pour chaque maladie, la population devant être traitée par chimioprévention, les interventions prévues et les interventions mises en oeuvre.
B10: MDA1, MDA2, MDA3, T1, T2 et T3 | C10: Ces feuilles contiennent des informations sur l'endémicité des districts ciblés pour le traitement aux médicaments spécifiques pour la chimioprévention, les plans de traitement, et le nombre de personnes traitées par groupe d'âge.
B11: DISTRICT | C11: Cette feuille contient un résumé sur les personnes traitées, par maladie, au niveau de mise en oeuvre. Si les données par genre (sexe) sont disponibles, merci de les saisir.
B12: SUMMARY | C12: Cette feuille contient un résumé sur les personnes traitées, par maladie et par type d'intervention de chimioprévention. Avant de générer le rapport (exécuter macro), veuillez sélectionner la maladie pour laquelle vous souhaitez un rapport. Veuillez suivre le même processus pour générer les divers rapports. Cette feuille doit être imprimée et soumise comme formulaire de rapport commun (voir les instructions pour la soumission du formulaire sous la feuille SUMMARY).
B14: Instructions pour la saisie des données
B16: La plupart des cellules des feuilles de travail mentionnées ci-dessus contiennent des formules calculées automatiquement en fonction du protocole de traitement recommandé par l'OMS pour chaque maladie. Voir : http://www.who.int/neglected_diseases/preventive_chemotherapy/pct_manual/en/index.html
B18: Veuillez entrer vos données dans les cellules en fonction de leur code de couleur :
C20: Blanc - la cellule n'est pas protégée. Veuillez entrer la valeur de l'indicateur demandé.
C22: Jaune - la cellule est protégée et inclut le nom de l'indicateur. Aucune entrée de données requise.
C24: Orange - la cellule n'est pas protégée et contient un menu déroulant. Veuillez sélectionner la valeur dans le menu déroulant.
C27: Vert - la cellule n'est pas protégée et contient des formules. Veuillez changer la valeur indiquée uniquement si vos données sont différentes de celles calculées automatiquement.
C30: Bleu - la cellule est protégée et contient des formules. Aucune entrée de données requise.
B32: Données pays
B34: PAYS | E34: Equatorial Guinea
B36: Année de rapport des données | E36: 2021
B38: Le pays est-il endémique à la filariose lymphatique (FL) ? | E38: Endémique
B40: Le pays est-il endémique à l'onchocercose (ONCHO) ? | E40: Endémique
B42: Le pays est-il endémique aux géohelminthiases (STH) ? | E42: Endémique
B44: Le pays est-il endémique à la schistosomiase (SCH) ? | E44: Endémique
B46: Combien d'unités administratives compte le pays ? | E46: 18
B47: Si les données démographiques par groupe d'âge ne sont pas disponibles au second niveau administratif, veuillez entrer la proportion (%) de population, par groupe d'âge, du pays. Si les données sont disponibles, veuillez laisser les cellules vierges.
B48: 1-4 ans | C48: Enfants d'âge pré-scolaire (EAPréS) | E48: 0.1076
B49: 5-14 ans | C49: Enfants d'âge scolaire (EAS) | E49: 0.2242261923
B50: 15 ans et plus | C50: Adultes | E50: 0.6257519851

Sheet COUNTRY_INFO
A1: INFORMATIONS PAYS
A2: Structure administrative population par groupe d'âge statut d'endémicité interventions planifiées et interventions mises en oeuvre
A4: TOTAL | D4: =SUM(D$9:D$1000) -> 1168631 | E4: =SUM(E$9:E$1000) -> 125745 | F4: =SUM(F$9:F$1000) -> 262038 | G4: =SUM(G$9:G$1000) -> 731272 | M4: =SUM(M$9:M$1000) -> 948512 | N4: =SUM(N$9:N$1000) -> 0 | O4: =SUM(O$9:O$1000) -> 387783 | P4: =SUM(P$9:P$1000) -> 137140.8
A6: Structure administrative du pays | D6: Population | H6: Endémicité | M6: Population nécessitant la CP | Q6: Nombre de tournées de traitement prévues pour l'année | U6: Mise en oeuvre de la chimioprévention
A7: Pays | B7: Région/Département | C7: District | D7: Total | E7: EAPréS | F7: EAS | G7: Adultes | H7: FL | I7: Oncho | J7: STH | K7: SCH | L7: Loa | M7: FL | N7: Oncho | O7: STH | P7: SCH | Q7: FL | R7: Oncho | S7: STH | T7: SCH | U7: TOURNEE 1 | V7: TOURNEE 2 | Y7: IU_ID | Z7: IU_Name
A9: =IF(INTRO!$E$34<>0,INTRO!$E$34,"") -> Equatorial Guinea | B9: Annobon | C9: Annonbon | D9: 8115 | E9: =IF(INTRO!$E$48="","",ROUND($D9*INTRO!$E$48,0)) -> 873 | F9: =IF(INTRO!$E$49="","",ROUND($D9*INTRO!$E$49,0)) -> 1820 | G9: =IF(INTRO!$E$50="","",ROUND($D9*INTRO!$E$50,0)) -> 5078 | H9: 0 | I9: 4 | J9: 3 | K9: 0 | L9: 0 | M9: =IF(INTRO!$E$38="Endémique", IF($H9>0, IF($H9=4,"Inconnu", IF($H9=99,"Interrompu", $D9)), 0),"Non requis") -> 0 | N9: =IF(INTRO!$E$40="Endémique", IF($I9>0, IF($I9=4,"Inconnu",IF($I9=99,"Interrompu", $D9)), 0),"Non requis") -> Inconnu | O9: =IF(INTRO!$E$42="Endémique", IF(AND($J9>1,$J9<5), IF($J9=4, "Inconnu", E9+F9), 0),"Non requis") -> 2693 | P9: =IF(INTRO!$E$44="Endémique", IF(AND($K9>0,$K9<5), IF($K9=4,"Inconnu", IF($K9=1, $F9*0.33, IF($K9=2, $F9*0.5+$G9*0.2, SUM(F9:G9)))), 0),"Non requis") -> 0 | Q9: 0 | R9: 0 | S9: 0 | T9: 0 | Y9: 16411 | Z9: Annonbon
A10: =IF(INTRO!$E$34<>0,INTRO!$E$34,"") -> Equatorial Guinea | B10: Bioko Norte | C10: Baney | D10: 30782 | E10: =IF(INTRO!$E$48="","",ROUND($D10*INTRO!$E$48,0)) -> 3312 | F10: =IF(INTRO!$E$49="","",ROUND($D10*INTRO!$E$49,0)) -> 6902 | G10: =IF(INTRO!$E$50="","",ROUND($D10*INTRO!$E$50,0)) -> 19262 | H10: 1 | I10: 99 | J10: 3 | K10: 1 | L10: 1 | M10: =IF(INTRO!$E$38="Endémique", IF($H10>0, IF($H10=4,"Inconnu", IF($H10=99,"Interrompu", $D10)), 0),"Non requis") -> 30782 | N10: =IF(INTRO!$E$40="Endémique", IF($I10>0, IF($I10=4,"Inconnu",IF($I10=99,"Interrompu", $D10)), 0),"Non requis") -> Interrompu | O10: =IF(INTRO!$E$42="Endémique", IF(AND($J10>1,$J10<5), IF($J10=4, "Inconnu", E10+F10), 0),"Non requis") -> 10214 | P10: =IF(INTRO!$E$44="Endémique", IF(AND($K10>0,$K10<5), IF($K10=4,"Inconnu", IF($K10=1, $F10*0.33, IF($K10=2, $F10*0.5+$G10*0.2, SUM(F10:G10)))), 0),"Non requis") -> 2277.66 | Q10: 1 | R10: 0 | S10: 1 | T10: 0 | U10: MDA4 (ALB/2*ALB) | Y10: 16412 | Z10: Baney
A11: =IF(INTRO!$E$34<>0,INTRO!$E$34,"") -> Equatorial Guinea | B11: Bioko Norte | C11: Malabo | D11: 185413 | E11: =IF(INTRO!$E$48="","",ROUND($D11*INTRO!$E$48,0)) -> 19950 | F11: =IF(INTRO!$E$49="","",ROUND($D11*INTRO!$E$49,0)) -> 41574 | G11: =IF(INTRO!$E$50="","",ROUND($D11*INTRO!$E$50,0)) -> 116023 | H11: 0 | I11: 99 | J11: 3 | K11: 2 | L11: 1 | M11: =IF(INTRO!$E$38="Endémique", IF($H11>0, IF($H11=4,"Inconnu", IF($H11=99,"Interrompu", $D11)), 0),"Non requis") -> 0 | N11: =IF(INTRO!$E$40="Endémique", IF($I11>0, IF($I11=4,"Inconnu",IF($I11=99,"Interrompu", $D11)), 0),"Non requis") -> Interrompu | O11: =IF(INTRO!$E$42="Endémique", IF(AND($J11>1,$J11<5), IF($J11=4, "Inconnu", E11+F11), 0),"Non requis") -> 61524 | P11: =IF(INTRO!$E$44="Endémique", IF(AND($K11>0,$K11<5), IF($K11=4,"Inconnu", IF($K11=1, $F11*0.33, IF($K11=2, $F11*0.5+$G11*0.2, SUM(F11:G11)))), 0),"Non requis") -> 43991.6 | Q11: 0 | R11: 0 | S11: 1 | T11: 0 | U11: T3 (ALB/MBD) | Y11: 16413 | Z11: Malabo
A12: =IF(INTRO!$E$34<>0,INTRO!$E$34,"") -> Equatorial Guinea | B12: Bioko Sur | C12: Luba | D12: 26591 | E12: =IF(INTRO!$E$48="","",ROUND($D12*INTRO!$E$48,0)) -> 2861 | F12: =IF(INTRO!$E$49="","",ROUND($D12*INTRO!$E$49,0)) -> 5962 | G12: =IF(INTRO!$E$50="","",ROUND($D12*INTRO!$E$50,0)) -> 16639 | H12: 0 | I12: 99 | J12: 2 | K12: 0 | L12: 1 | M12: =IF(INTRO!$E$38="Endémique", IF($H12>0, IF($H12=4,"Inconnu", IF($H12=99,"Interrompu", $D12)), 0),"Non requis") -> 0 | N12: =IF(INTRO!$E$40="Endémique", IF($I12>0, IF($I12=4,"Inconnu",IF($I12=99,"Interrompu", $D12)), 0),"Non requis") -> Interrompu | O12: =IF(INTRO!$E$42="Endémique", IF(AND($J12>1,$J12<5), IF($J12=4, "Inconnu", E12+F12), 0),"Non requis") -> 8823 | P12: =IF(INTRO!$E$44="Endémique", IF(AND($K12>0,$K12<5), IF($K12=4,"Inconnu", IF($K12=1, $F12*0.33, IF($K12=2, $F12*0.5+$G12*0.2, SUM(F12:G12)))), 0),"Non requis") -> 0 | Q12: 0 | R12: 0 | S12: 1 | T12: 0 | U12: T3 (ALB/MBD) | Y12: 16414 | Z12: Luba
A13: =IF(INTRO!$E$34<>0,INTRO!$E$34,"") -> Equatorial Guinea | B13: Bioko Sur | C13: Riaba | D13: 9573 | E13: =IF(INTRO!$E$48="","",ROUND($D13*INTRO!$E$48,0)) -> 1030 | F13: =IF(INTRO!$E$49="","",ROUND($D13*INTRO!$E$49,0)) -> 2147 | G13: =IF(INTRO!$E$50="","",ROUND($D13*INTRO!$E$50,0)) -> 5990 | H13: 1 | I13: 99 | J13: 3 | K13: 0 | L13: 1 | M13: =IF(INTRO!$E$38="Endémique", IF($H13>0, IF($H13=4,"Inconnu", IF($H13=99,"Interrompu", $D13)), 0),"Non requis") -> 9573 | N13: =IF(INTRO!$E$40="Endémique", IF($I13>0, IF($I13=4,"Inconnu",IF($I13=99,"Interrompu", $D13)), 0),"Non requis") -> Interrompu | O13: =IF(INTRO!$E$42="Endémique", IF(AND($J13>1,$J13<5), IF($J13=4, "Inconnu", E13+F13), 0),"Non requis") -> 3177 | P13: =IF(INTRO!$E$44="Endémique", IF(AND($K13>0,$K13<5), IF($K13=4,"Inconnu", IF($K13=1, $F13*0.33, IF($K13=2, $F13*0.5+$G13*0.2, SUM(F13:G13)))), 0),"Non requis") -> 0 | Q13: 1 | R13: 0 | S13: 1 | T13: 0 | U13: MDA4 (ALB/2*ALB) | Y13: 16415 | Z13: Riaba
A14: =IF(INTRO!$E$34<>0,INTRO!$E$34,"") -> Equatorial Guinea | B14: Centro Sur | C14: Acurenam | D14: 33466 | E14: =IF(INTRO!$E$48="","",ROUND($D14*INTRO!$E$48,0)) -> 3601 | F14: =IF(INTRO!$E$49="","",ROUND($D14*INTRO!$E$49,0)) -> 7504 | G14: =IF(INTRO!$E$50="","",ROUND($D14*INTRO!$E$50,0)) -> 20941 | H14: 1 | I14: 4 | J14: 3 | K14: 1 | L14: 1 | M14: =IF(INTRO!$E$38="Endémique", IF($H14>0, IF($H14=4,"Inconnu", IF($H14=99,"Interrompu", $D14)), 0),"Non requis") -> 33466 | N14: =IF(INTRO!$E$40="Endémique", IF($I14>0, IF($I14=4,"Inconnu",IF($I14=99,"Interrompu", $D14)), 0),"Non requis") -> Inconnu | O14: =IF(INTRO!$E$42="Endémique", IF(AND($J14>1,$J14<5), IF($J14=4, "Inconnu", E14+F14), 0),"Non requis") -> 11105 | P14: =IF(INTRO!$E$44="Endémique", IF(AND($K14>0,$K14<5), IF($K14=4,"Inconnu", IF($K14=1, $F14*0.33, IF($K14=2, $F14*0.5+$G14*0.2, SUM(F14:G14)))), 0),"Non requis") -> 2476.32 | Q14: 1 | R14: 0 | S14: 1 | T14: 0 | U14: MDA4 (ALB/2*ALB) | Y14: 16416 | Z14: Acurenam
A15: =IF(INTRO!$E$34<>0,INTRO!$E$34,"") -> Equatorial Guinea | B15: Centro Sur | C15: Evinayong | D15: 61441 | E15: =IF(INTRO!$E$48="","",ROUND($D15*INTRO!$E$48,0)) -> 6611 | F15: =IF(INTRO!$E$49="","",ROUND($D15*INTRO!$E$49,0)) -> 13777 | G15: =IF(INTRO!$E$50="","",ROUND($D15*INTRO!$E$50,0)) -> 38447 | H15: 1 | I15: 4 | J15: 3 | K15: 1 | L15: 1 | M15: =IF(INTRO!$E$38="Endémique", IF($H15>0, IF($H15=4,"Inconnu", IF($H15=99,"Interrompu", $D15)), 0),"Non requis") -> 61441 | N15: =IF(INTRO!$E$40="Endémique", IF($I15>0, IF($I15=4,"Inconnu",IF($I15=99,"Interrompu", $D15)), 0),"Non requis") -> Inconnu | O15: =IF(INTRO!$E$42="Endémique", IF(AND($J15>1,$J15<5), IF($J15=4, "Inconnu", E15+F15), 0),"Non requis") -> 20388 | P15: =IF(INTRO!$E$44="Endémique", IF(AND($K15>0,$K15<5), IF($K15=4,"Inconnu", IF($K15=1, $F15*0.33, IF($K15=2, $F15*0.5+$G15*0.2, SUM(F15:G15)))), 0),"Non requis") -> 4546.41 | Q15: 1 | R15: 0 | S15: 1 | T15: 0 | U15: MDA4 (ALB/2*ALB) | Y15: 16417 | Z15: Evinayong
A16: =IF(INTRO!$E$34<>0,INTRO!$E$34,"") -> Equatorial Guinea | B16: Centro Sur | C16: Niefang | D16: 78714 | E16: =IF(INTRO!$E$48="","",ROUND($D16*INTRO!$E$48,0)) -> 8470 | F16: =IF(INTRO!$E$49="","",ROUND($D16*INTRO!$E$49,0)) -> 17650 | G16: =IF(INTRO!$E$50="","",ROUND($D16*INTRO!$E$50,0)) -> 49255 | H16: 1 | I16: 4 | J16: 3 | K16: 1 | L16: 1 | M16: =IF(INTRO!$E$38="Endémique", IF($H16>0, IF($H16=4,"Inconnu", IF($H16=99,"Interrompu", $D16)), 0),"Non requis") -> 78714 | N16: =IF(INTRO!$E$40="Endémique", IF($I16>0, IF($I16=4,"Inconnu",IF($I16=99,"Interrompu", $D16)), 0),"Non requis") -> Inconnu | O16: =IF(INTRO!$E$42="Endémique", IF(AND($J16>1,$J16<5), IF($J16=4, "Inconnu", E16+F16), 0),"Non requis") -> 26120 | P16: =IF(INTRO!$E$44="Endémique", IF(AND($K16>0,$K16<5), IF($K16=4,"Inconnu", IF($K16=1, $F16*0.33, IF($K16=2, $F16*0.5+$G16*0.2, SUM(F16:G16)))), 0),"Non requis") -> 5824.5 | Q16: 1 | R16: 0 | S16: 1 | T16: 0 | U16: MDA4 (ALB/2*ALB) | Y16: 16418 | Z16: Niefang
A17: =IF(INTRO!$E$34<>0,INTRO!$E$34,"") -> Equatorial Guinea | B17: Kientem | C17: Ebebiyin | D17: 131083 | E17: =IF(INTRO!$E$48="","",ROUND($D17*INTRO!$E$48,0)) -> 14105 | F17: =IF(INTRO!$E$49="","",ROUND($D17*INTRO!$E$49,0)) -> 29392 | G17: =IF(INTRO!$E$50="","",ROUND($D17*INTRO!$E$50,0)) -> 82025 | H17: 1 | I17: 4 | J17: 3 | K17: 1 | L17: 1 | M17: =IF(INTRO!$E$38="Endémique", IF($H17>0, IF($H17=4,"Inconnu", IF($H17=99,"Interrompu", $D17)), 0),"Non requis") -> 131083 | N17: =IF(INTRO!$E$40="Endémique", IF($I17>0, IF($I17=4,"Inconnu",IF($I17=99,"Interrompu", $D17)), 0),"Non requis") -> Inconnu | O17: =IF(INTRO!$E$42="Endémique", IF(AND($J17>1,$J17<5), IF($J17=4, "Inconnu", E17+F17), 0),"Non requis") -> 43497 | P17: =IF(INTRO!$E$44="Endémique", IF(AND($K17>0,$K17<5), IF($K17=4,"Inconnu", IF($K17=1, $F17*0.33, IF($K17=2, $F17*0.5+$G17*0.2, SUM(F17:G17)))), 0),"Non requis") -> 9699.36 | Q17: 1 | R17: 0 | S17: 1 | T17: 0 | U17: MDA4 (ALB/2*ALB) | Y17: 16419 | Z17: Ebebiyin
A18: =IF(INTRO!$E$34<>0,INTRO!$E$34,"") -> Equatorial Guinea | B18: Kientem | C18: Micomiseng | D18: 86185 | E18: =IF(INTRO!$E$48="","",ROUND($D18*INTRO!$E$48,0)) -> 9274 | F18: =IF(INTRO!$E$49="","",ROUND($D18*INTRO!$E$49,0)) -> 19325 | G18: =IF(INTRO!$E$50="","",ROUND($D18*INTRO!$E$50,0)) -> 53930 | H18: 1 | I18: 4 | J18: 3 | K18: 1 | L18: 1 | M18: =IF(INTRO!$E$38="Endémique", IF($H18>0, IF($H18=4,"Inconnu", IF($H18=99,"Interrompu", $D18)), 0),"Non requis") -> 86185 | N18: =IF(INTRO!$E$40="Endémique", IF($I18>0, IF($I18=4,"Inconnu",IF($I18=99,"Interrompu", $D18)), 0),"Non requis") -> Inconnu | O18: =IF(INTRO!$E$42="Endémique", IF(AND($J18>1,$J18<5), IF($J18=4, "Inconnu", E18+F18), 0),"Non requis") -> 28599 | P18: =IF(INTRO!$E$44="Endémique", IF(AND($K18>0,$K18<5), IF($K18=4,"Inconnu", IF($K18=1, $F18*0.33, IF($K18=2, $F18*0.5+$G18*0.2, SUM(F18:G18)))), 0),"Non requis") -> 6377.25 | Q18: 1 | R18: 0 | S18: 1 | T18: 0 | U18: MDA4 (ALB/2*ALB) | Y18: 16420 | Z18: Micomiseng
A19: =IF(INTRO!$E$34<>0,INTRO!$E$34,"") -> Equatorial Guinea | B19: Kientem | C19: Nsoknsomo | D19: 49688 | E19: =IF(INTRO!$E$48="","",ROUND($D19*INTRO!$E$48,0)) -> 5346 | F19: =IF(INTRO!$E$49="","",ROUND($D19*INTRO!$E$49,0)) -> 11141 | G19: =IF(INTRO!$E$50="","",ROUND($D19*INTRO!$E$50,0)) -> 31092 | H19: 1 | I19: 4 | J19: 3 | K19: 1 | L19: 1 | M19: =IF(INTRO!$E$38="Endémique", IF($H19>0, IF($H19=4,"Inconnu", IF($H19=99,"Interrompu", $D19)), 0),"Non requis") -> 49688 | N19: =IF(INTRO!$E$40="Endémique", IF($I19>0, IF($I19=4,"Inconnu",IF($I19=99,"Interrompu", $D19)), 0),"Non requis") -> Inconnu | O19: =IF(INTRO!$E$42="Endémique", IF(AND($J19>1,$J19<5), IF($J19=4, "Inconnu", E19+F19), 0),"Non requis") -> 16487 | P19: =IF(INTRO!$E$44="Endémique", IF(AND($K19>0,$K19<5), IF($K19=4,"Inconnu", IF($K19=1, $F19*0.33, IF($K19=2, $F19*0.5+$G19*0.2, SUM(F19:G19)))), 0),"Non requis") -> 3676.53 | Q19: 1 | R19: 0 | S19: 1 | T19: 0 | U19: MDA4 (ALB/2*ALB) | Y19: 16421 | Z19: Nsoknsomo
A20: =IF(INTRO!$E$34<>0,INTRO!$E$34,"") -> Equatorial Guinea | B20: Litoral | C20: Bata | D20: 205458 | E20: =IF(INTRO!$E$48="","",ROUND($D20*INTRO!$E$48,0)) -> 22107 | F20: =IF(INTRO!$E$49="","",ROUND($D20*INTRO!$E$49,0)) -> 46069 | G20: =IF(INTRO!$E$50="","",ROUND($D20*INTRO!$E$50,0)) -> 128566 | H20: 1 | I20: 4 | J20: 3 | K20: 2 | L20: 1 | M20: =IF(INTRO!$E$38="Endémique", IF($H20>0, IF($H20=4,"Inconnu", IF($H20=99,"Interrompu", $D20)), 0),"Non requis") -> 205458 | N20: =IF(INTRO!$E$40="Endémique", IF($I20>0, IF($I20=4,"Inconnu",IF($I20=99,"Interrompu", $D20)), 0),"Non requis") -> Inconnu | O20: =IF(INTRO!$E$42="Endémique", IF(AND($J20>1,$J20<5), IF($J20=4, "Inconnu", E20+F20), 0),"Non requis") -> 68176 | P20: =IF(INTRO!$E$44="Endémique", IF(AND($K20>0,$K20<5), IF($K20=4,"Inconnu", IF($K20=1, $F20*0.33, IF($K20=2, $F20*0.5+$G20*0.2, SUM(F20:G20)))), 0),"Non requis") -> 48747.7 | Q20: 1 | R20: 0 | S20: 1 | T20: 0 | U20: MDA4 (ALB/2*ALB) | Y20: 16422 | Z20: Bata
A21: =IF(INTRO!$E$34<>0,INTRO!$E$34,"") -> Equatorial Guinea | B21: Litoral | C21: Kogo | D21: 42029 | E21: =IF(INTRO!$E$48="","",ROUND($D21*INTRO!$E$48,0)) -> 4522 | F21: =IF(INTRO!$E$49="","",ROUND($D21*INTRO!$E$49,0)) -> 9424 | G21: =IF(INTRO!$E$50="","",ROUND($D21*INTRO!$E$50,0)) -> 26300 | H21: 1 | I21: 4 | J21: 3 | K21: 1 | L21: 1 | M21: =IF(INTRO!$E$38="Endémique", IF($H21>0, IF($H21=4,"Inconnu", IF($H21=99,"Interrompu", $D21)), 0),"Non requis") -> 42029 | N21: =IF(INTRO!$E$40="Endémique", IF($I21>0, IF($I21=4,"Inconnu",IF($I21=99,"Interrompu", $D21)), 0),"Non requis") -> Inconnu | O21: =IF(INTRO!$E$42="Endémique", IF(AND($J21>1,$J21<5), IF($J21=4, "Inconnu", E21+F21), 0),"Non requis") -> 13946 | P21: =IF(INTRO!$E$44="Endémique", IF(AND($K21>0,$K21<5), IF($K21=4,"Inconnu", IF($K21=1, $F21*0.33, IF($K21=2, $F21*0.5+$G21*0.2, SUM(F21:G21)))), 0),"Non requis") -> 3109.92 | Q21: 1 | R21: 0 | S21: 1 | T21: 0 | U21: MDA4 (ALB/2*ALB) | Y21: 16423 | Z21: Kogo
A22: =IF(INTRO!$E$34<>0,INTRO!$E$34,"") -> Equatorial Guinea | B22: Litoral | C22: Mbini | D22: 40380 | E22: =IF(INTRO!$E$48="","",ROUND($D22*INTRO!$E$48,0)) -> 4345 | F22: =IF(INTRO!$E$49="","",ROUND($D22*INTRO!$E$49,0)) -> 9054 | G22: =IF(INTRO!$E$50="","",ROUND($D22*INTRO!$E$50,0)) -> 25268 | H22: 1 | I22: 4 | J22: 3 | K22: 1 | L22: 1 | M22: =IF(INTRO!$E$38="Endémique", IF($H22>0, IF($H22=4,"Inconnu", IF($H22=99,"Interrompu", $D22)), 0),"Non requis") -> 40380 | N22: =IF(INTRO!$E$40="Endémique", IF($I22>0, IF($I22=4,"Inconnu",IF($I22=99,"Interrompu", $D22)), 0),"Non requis") -> Inconnu | O22: =IF(INTRO!$E$42="Endémique", IF(AND($J22>1,$J22<5), IF($J22=4, "Inconnu", E22+F22), 0),"Non requis") -> 13399 | P22: =IF(INTRO!$E$44="Endémique", IF(AND($K22>0,$K22<5), IF($K22=4,"Inconnu", IF($K22=1, $F22*0.33, IF($K22=2, $F22*0.5+$G22*0.2, SUM(F22:G22)))), 0),"Non requis") -> 2987.82 | Q22: 1 | R22: 0 | S22: 1 | T22: 0 | U22: MDA4 (ALB/2*ALB) | Y22: 16424 | Z22: Mbini
A23: =IF(INTRO!$E$34<>0,INTRO!$E$34,"") -> Equatorial Guinea | B23: Welenzas | C23: Akonibe | D23: 26084 | E23: =IF(INTRO!$E$48="","",ROUND($D23*INTRO!$E$48,0)) -> 2807 | F23: =IF(INTRO!$E$49="","",ROUND($D23*INTRO!$E$49,0)) -> 5849 | G23: =IF(INTRO!$E$50="","",ROUND($D23*INTRO!$E$50,0)) -> 16322 | H23: 1 | I23: 4 | J23: 3 | K23: 1 | L23: 1 | M23: =IF(INTRO!$E$38="Endémique", IF($H23>0, IF($H23=4,"Inconnu", IF($H23=99,"Interrompu", $D23)), 0),"Non requis") -> 26084 | N23: =IF(INTRO!$E$40="Endémique", IF($I23>0, IF($I23=4,"Inconnu",IF($I23=99,"Interrompu", $D23)), 0),"Non requis") -> Inconnu | O23: =IF(INTRO!$E$42="Endémique", IF(AND($J23>1,$J23<5), IF($J23=4, "Inconnu", E23+F23), 0),"Non requis") -> 8656 | P23: =IF(INTRO!$E$44="Endémique", IF(AND($K23>0,$K23<5), IF($K23=4,"Inconnu", IF($K23=1, $F23*0.33, IF($K23=2, $F23*0.5+$G23*0.2, SUM(F23:G23)))), 0),"Non requis") -> 1930.17 | Q23: 1 | R23: 0 | S23: 1 | T23: 0 | U23: MDA4 (ALB/2*ALB) | Y23: 16425 | Z23: Akonibe
A24: =IF(INTRO!$E$34<>0,INTRO!$E$34,"") -> Equatorial Guinea | B24: Welenzas | C24: Anisok | D24: 65064 | E24: =IF(INTRO!$E$48="","",ROUND($D24*INTRO!$E$48,0)) -> 7001 | F24: =IF(INTRO!$E$49="","",ROUND($D24*INTRO!$E$49,0)) -> 14589 | G24: =IF(INTRO!$E$50="","",ROUND($D24*INTRO!$E$50,0)) -> 40714 | H24: 1 | I24: 4 | J24: 3 | K24: 0 | L24: 1 | M24: =IF(INTRO!$E$38="Endémique", IF($H24>0, IF($H24=4,"Inconnu", IF($H24=99,"Interrompu", $D24)), 0),"Non requis") -> 65064 | N24: =IF(INTRO!$E$40="Endémique", IF($I24>0, IF($I24=4,"Inconnu",IF($I24=99,"Interrompu", $D24)), 0),"Non requis") -> Inconnu | O24: =IF(INTRO!$E$42="Endémique", IF(AND($J24>1,$J24<5), IF($J24=4, "Inconnu", E24+F24), 0),"Non requis") -> 21590 | P24: =IF(INTRO!$E$44="Endémique", IF(AND($K24>0,$K24<5), IF($K24=4,"Inconnu", IF($K24=1, $F24*0.33, IF($K24=2, $F24*0.5+$G24*0.2, SUM(F24:G24)))), 0),"Non requis") -> 0 | Q24: 1 | R24: 0 | S24: 1 | T24: 0 | U24: MDA4 (ALB/2*ALB) | Y24: 16426 | Z24: Anisok
A25: =IF(INTRO!$E$34<>0,INTRO!$E$34,"") -> Equatorial Guinea | B25: Welenzas | C25: Mongomo | D25: 68354 | E25: =IF(INTRO!$E$48="","",ROUND($D25*INTRO!$E$48,0)) -> 7355 | F25: =IF(INTRO!$E$49="","",ROUND($D25*INTRO!$E$49,0)) -> 15327 | G25: =IF(INTRO!$E$50="","",ROUND($D25*INTRO!$E$50,0)) -> 42773 | H25: 1 | I25: 4 | J25: 3 | K25: 0 | L25: 1 | M25: =IF(INTRO!$E$38="Endémique", IF($H25>0, IF($H25=4,"Inconnu", IF($H25=99,"Interrompu", $D25)), 0),"Non requis") -> 68354 | N25: =IF(INTRO!$E$40="Endémique", IF($I25>0, IF($I25=4,"Inconnu",IF($I25=99,"Interrompu", $D25)), 0),"Non requis") -> Inconnu | O25: =IF(INTRO!$E$42="Endémique", IF(AND($J25>1,$J25<5), IF($J25=4, "Inconnu", E25+F25), 0),"Non requis") -> 22682 | P25: =IF(INTRO!$E$44="Endémique", IF(AND($K25>0,$K25<5), IF($K25=4,"Inconnu", IF($K25=1, $F25*0.33, IF($K25=2, $F25*0.5+$G25*0.2, SUM(F25:G25)))), 0),"Non requis") -> 0 | Q25: 1 | R25: 0 | S25: 1 | T25: 0 | U25: MDA4 (ALB/2*ALB) | Y25: 16427 | Z25: Mongomo
A26: =IF(INTRO!$E$34<>0,INTRO!$E$34,"") -> Equatorial Guinea | B26: Welenzas | C26: Nsork | D26: 20211 | E26: =IF(INTRO!$E$48="","",ROUND($D26*INTRO!$E$48,0)) -> 2175 | F26: =IF(INTRO!$E$49="","",ROUND($D26*INTRO!$E$49,0)) -> 4532 | G26: =IF(INTRO!$E$50="","",ROUND($D26*INTRO!$E$50,0)) -> 12647 | H26: 1 | I26: 4 | J26: 3 | K26: 1 | L26: 1 | M26: =IF(INTRO!$E$38="Endémique", IF($H26>0, IF($H26=4,"Inconnu", IF($H26=99,"Interrompu", $D26)), 0),"Non requis") -> 20211 | N26: =IF(INTRO!$E$40="Endémique", IF($I26>0, IF($I26=4,"Inconnu",IF($I26=99,"Interrompu", $D26)), 0),"Non requis") -> Inconnu | O26: =IF(INTRO!$E$42="Endémique", IF(AND($J26>1,$J26<5), IF($J26=4, "Inconnu", E26+F26), 0),"Non requis") -> 6707 | P26: =IF(INTRO!$E$44="Endémique", IF(AND($K26>0,$K26<5), IF($K26=4,"Inconnu", IF($K26=1, $F26*0.33, IF($K26=2, $F26*0.5+$G26*0.2, SUM(F26:G26)))), 0),"Non requis") -> 1495.56 | Q26: 1 | R26: 0 | S26: 1 | T26: 0 | U26: MDA4 (ALB/2*ALB) | Y26: 16428 | Z26: Nsork

Sheet MDA1
A1: MDA 1 - Ivermectine (IVM) et Albendazole (ALB)
A2: Structure administrative, population nécessitant une chimioprévention par groupe d'âge, population traitée par groupe d'âge et couverture
A4: TOTAL | G4: =SUM(G$9:G$1000) -> 0 | H4: =SUM(H$9:H$1000) -> 0 | I4: =SUM(I$9:I$1000) -> 0 | K4: =SUM(K$9:K$1000) -> 0 | L4: =SUM(L$9:L$1000) -> 0 | M4: =SUM(M$9:M$1000) -> 0 | O4: =IF(G4<>0, IF(K4/G4*100=0, "-", K4/G4*100), " ") ->  | P4: =IF(H4<>0, IF(L4/H4*100=0, "-", L4/H4*100), " ") ->  | Q4: =IF(I4<>0, IF(M4/I4*100=0, "-", M4/I4*100), " ") -> 
A6: Structure administrative du pays | D6: Mise en oeuvre de la CP | E6: Date | F6: Population ciblée pour MDA 1 | J6: Population traitée | N6: Couverture du Programme (%)
A7: Pays | B7: Région/Département | C7: District | F7: EAPréS | G7: EAS | H7: Adultes | I7: Total | J7: EAPréS | K7: EAS | L7: Adultes | M7: Total | N7: EAPréS | O7: EAS | P7: Adultes | Q7: Total
A9: =IF(COUNTRY_INFO!A9=0," ",COUNTRY_INFO!A9) -> Equatorial Guinea | B9: =IF(COUNTRY_INFO!B9=0," ",COUNTRY_INFO!B9) -> Annobon | C9: =IF(COUNTRY_INFO!C9=0," ",COUNTRY_INFO!C9) -> Annonbon | D9: =IF(COUNTRY_INFO!$U$9:$U$1000="MDA1 (IVM+ALB)", COUNTRY_INFO!$U$9:$U$1000, " ") ->  | I9: =SUM(F9:H9) -> 0 | M9: =SUM(J9:L9) -> 0 | O9: =IF(G9<>0, IF(K9/G9*100=0, "-", K9/G9*100), " ") ->  | P9: =IF(H9<>0, IF(L9/H9*100=0, "-", L9/H9*100), " ") -> 
A10: =IF(COUNTRY_INFO!A10=0," ",COUNTRY_INFO!A10) -> Equatorial Guinea | B10: =IF(COUNTRY_INFO!B10=0," ",COUNTRY_INFO!B10) -> Bioko Norte | C10: =IF(COUNTRY_INFO!C10=0," ",COUNTRY_INFO!C10) -> Baney | D10: =IF(COUNTRY_INFO!$U$9:$U$1000="MDA1 (IVM+ALB)", COUNTRY_INFO!$U$9:$U$1000, " ") ->  | I10: =SUM(F10:H10) -> 0 | M10: =SUM(J10:L10) -> 0 | O10: =IF(G10<>0, IF(K10/G10*100=0, "-", K10/G10*100), " ") ->  | P10: =IF(H10<>0, IF(L10/H10*100=0, "-", L10/H10*100), " ") ->  | Q10: =IF(I10<>0, IF(M10/I10*100=0, "-", M10/I10*100), " ") -> 
A11: =IF(COUNTRY_INFO!A11=0," ",COUNTRY_INFO!A11) -> Equatorial Guinea | B11: =IF(COUNTRY_INFO!B11=0," ",COUNTRY_INFO!B11) -> Bioko Norte | C11: =IF(COUNTRY_INFO!C11=0," ",COUNTRY_INFO!C11) -> Malabo | D11: =IF(COUNTRY_INFO!$U$9:$U$1000="MDA1 (IVM+ALB)", COUNTRY_INFO!$U$9:$U$1000, " ") ->  | I11: 0 | M11: 0
A12: =IF(COUNTRY_INFO!A12=0," ",COUNTRY_INFO!A12) -> Equatorial Guinea | B12: =IF(COUNTRY_INFO!B12=0," ",COUNTRY_INFO!B12) -> Bioko Sur | C12: =IF(COUNTRY_INFO!C12=0," ",COUNTRY_INFO!C12) -> Luba | D12: =IF(COUNTRY_INFO!$U$9:$U$1000="MDA1 (IVM+ALB)", COUNTRY_INFO!$U$9:$U$1000, " ") ->  | I12: 0 | M12: 0
A13: =IF(COUNTRY_INFO!A13=0," ",COUNTRY_INFO!A13) -> Equatorial Guinea | B13: =IF(COUNTRY_INFO!B13=0," ",COUNTRY_INFO!B13) -> Bioko Sur | C13: =IF(COUNTRY_INFO!C13=0," ",COUNTRY_INFO!C13) -> Riaba | D13: =IF(COUNTRY_INFO!$U$9:$U$1000="MDA1 (IVM+ALB)", COUNTRY_INFO!$U$9:$U$1000, " ") ->  | I13: 0 | M13: 0
A14: =IF(COUNTRY_INFO!A14=0," ",COUNTRY_INFO!A14) -> Equatorial Guinea | B14: =IF(COUNTRY_INFO!B14=0," ",COUNTRY_INFO!B14) -> Centro Sur | C14: =IF(COUNTRY_INFO!C14=0," ",COUNTRY_INFO!C14) -> Acurenam | D14: =IF(COUNTRY_INFO!$U$9:$U$1000="MDA1 (IVM+ALB)", COUNTRY_INFO!$U$9:$U$1000, " ") ->  | I14: 0 | M14: 0
A15: =IF(COUNTRY_INFO!A15=0," ",COUNTRY_INFO!A15) -> Equatorial Guinea | B15: =IF(COUNTRY_INFO!B15=0," ",COUNTRY_INFO!B15) -> Centro Sur | C15: =IF(COUNTRY_INFO!C15=0," ",COUNTRY_INFO!C15) -> Evinayong | D15: =IF(COUNTRY_INFO!$U$9:$U$1000="MDA1 (IVM+ALB)", COUNTRY_INFO!$U$9:$U$1000, " ") ->  | I15: 0 | M15: 0
A16: =IF(COUNTRY_INFO!A16=0," ",COUNTRY_INFO!A16) -> Equatorial Guinea | B16: =IF(COUNTRY_INFO!B16=0," ",COUNTRY_INFO!B16) -> Centro Sur | C16: =IF(COUNTRY_INFO!C16=0," ",COUNTRY_INFO!C16) -> Niefang | D16: =IF(COUNTRY_INFO!$U$9:$U$1000="MDA1 (IVM+ALB)", COUNTRY_INFO!$U$9:$U$1000, " ") ->  | I16: 0 | M16: 0
A17: =IF(COUNTRY_INFO!A17=0," ",COUNTRY_INFO!A17) -> Equatorial Guinea | B17: =IF(COUNTRY_INFO!B17=0," ",COUNTRY_INFO!B17) -> Kientem | C17: =IF(COUNTRY_INFO!C17=0," ",COUNTRY_INFO!C17) -> Ebebiyin | D17: =IF(COUNTRY_INFO!$U$9:$U$1000="MDA1 (IVM+ALB)", COUNTRY_INFO!$U$9:$U$1000, " ") ->  | I17: 0 | M17: 0
A18: =IF(COUNTRY_INFO!A18=0," ",COUNTRY_INFO!A18) -> Equatorial Guinea | B18: =IF(COUNTRY_INFO!B18=0," ",COUNTRY_INFO!B18) -> Kientem | C18: =IF(COUNTRY_INFO!C18=0," ",COUNTRY_INFO!C18) -> Micomiseng | D18: =IF(COUNTRY_INFO!$U$9:$U$1000="MDA1 (IVM+ALB)", COUNTRY_INFO!$U$9:$U$1000, " ") ->  | I18: 0 | M18: 0
A19: =IF(COUNTRY_INFO!A19=0," ",COUNTRY_INFO!A19) -> Equatorial Guinea | B19: =IF(COUNTRY_INFO!B19=0," ",COUNTRY_INFO!B19) -> Kientem | C19: =IF(COUNTRY_INFO!C19=0," ",COUNTRY_INFO!C19) -> Nsoknsomo | D19: =IF(COUNTRY_INFO!$U$9:$U$1000="MDA1 (IVM+ALB)", COUNTRY_INFO!$U$9:$U$1000, " ") ->  | I19: 0 | M19: 0
A20: =IF(COUNTRY_INFO!A20=0," ",COUNTRY_INFO!A20) -> Equatorial Guinea | B20: =IF(COUNTRY_INFO!B20=0," ",COUNTRY_INFO!B20) -> Litoral | C20: =IF(COUNTRY_INFO!C20=0," ",COUNTRY_INFO!C20) -> Bata | D20: =IF(COUNTRY_INFO!$U$9:$U$1000="MDA1 (IVM+ALB)", COUNTRY_INFO!$U$9:$U$1000, " ") ->  | I20: 0 | M20: 0
A21: =IF(COUNTRY_INFO!A21=0," ",COUNTRY_INFO!A21) -> Equatorial Guinea | B21: =IF(COUNTRY_INFO!B21=0," ",COUNTRY_INFO!B21) -> Litoral | C21: =IF(COUNTRY_INFO!C21=0," ",COUNTRY_INFO!C21) -> Kogo | D21: =IF(COUNTRY_INFO!$U$9:$U$1000="MDA1 (IVM+ALB)", COUNTRY_INFO!$U$9:$U$1000, " ") ->  | I21: 0 | M21: 0
A22: =IF(COUNTRY_INFO!A22=0," ",COUNTRY_INFO!A22) -> Equatorial Guinea | B22: =IF(COUNTRY_INFO!B22=0," ",COUNTRY_INFO!B22) -> Litoral | C22: =IF(COUNTRY_INFO!C22=0," ",COUNTRY_INFO!C22) -> Mbini | D22: =IF(COUNTRY_INFO!$U$9:$U$1000="MDA1 (IVM+ALB)", COUNTRY_INFO!$U$9:$U$1000, " ") ->  | I22: 0 | M22: 0
A23: =IF(COUNTRY_INFO!A23=0," ",COUNTRY_INFO!A23) -> Equatorial Guinea | B23: =IF(COUNTRY_INFO!B23=0," ",COUNTRY_INFO!B23) -> Welenzas | C23: =IF(COUNTRY_INFO!C23=0," ",COUNTRY_INFO!C23) -> Akonibe | D23: =IF(COUNTRY_INFO!$U$9:$U$1000="MDA1 (IVM+ALB)", COUNTRY_INFO!$U$9:$U$1000, " ") ->  | I23: 0 | M23: 0
A24: =IF(COUNTRY_INFO!A24=0," ",COUNTRY_INFO!A24) -> Equatorial Guinea | B24: =IF(COUNTRY_INFO!B24=0," ",COUNTRY_INFO!B24) -> Welenzas | C24: =IF(COUNTRY_INFO!C24=0," ",COUNTRY_INFO!C24) -> Anisok | D24: =IF(COUNTRY_INFO!$U$9:$U$1000="MDA1 (IVM+ALB)", COUNTRY_INFO!$U$9:$U$1000, " ") ->  | I24: 0 | M24: 0
A25: =IF(COUNTRY_INFO!A25=0," ",COUNTRY_INFO!A25) -> Equatorial Guinea | B25: =IF(COUNTRY_INFO!B25=0," ",COUNTRY_INFO!B25) -> Welenzas | C25: =IF(COUNTRY_INFO!C25=0," ",COUNTRY_INFO!C25) -> Mongomo | D25: =IF(COUNTRY_INFO!$U$9:$U$1000="MDA1 (IVM+ALB)", COUNTRY_INFO!$U$9:$U$1000, " ") ->  | I25: 0 | M25: 0
A26: =IF(COUNTRY_INFO!A26=0," ",COUNTRY_INFO!A26) -> Equatorial Guinea | B26: =IF(COUNTRY_INFO!B26=0," ",COUNTRY_INFO!B26) -> Welenzas | C26: =IF(COUNTRY_INFO!C26=0," ",COUNTRY_INFO!C26) -> Nsork | D26: =IF(COUNTRY_INFO!$U$9:$U$1000="MDA1 (IVM+ALB)", COUNTRY_INFO!$U$9:$U$1000, " ") ->  | I26: 0 | M26: 0

Sheet MDA4
A1: MDA 4 - Albendazole (ALB) ou 2 x Albendazole (ALB)
A2: Structure administrative, population nécessitant une chimioprévention par groupe d'âge, population traitée par groupe d'âge et couverture
A4: TOTAL | F4: =SUM(F$9:F$1000) -> 28749 | G4: =SUM(G$9:G$1000) -> 58652 | H4: 133645 | I4: 221046 | J4: 21518.01836 | K4: 44841.10895 | L4: 125138.8727 | M4: 191498 | N4: 0 | O4: 0 | P4: 0 | Q4: 0 | R4: 21518.01836 | S4: 44841.10895 | T4: 125138.8727 | U4: 191498 | V4: =IF(F4<>0, IF(N4/F4*100=0, "-", N4/F4*100), " ") -> - | W4: =IF(G4<>0, IF(O4/G4*100=0, "-", O4/G4*100), " ") -> - | X4: =IF(H4<>0, IF(P4/H4*100=0, "-", P4/H4*100), " ") -> - | Y4: =IF(I4<>0, IF(Q4/I4*100=0, "-", Q4/I4*100), " ") -> -
A6: Structure administrative du pays | D6: Mise en oeuvre de la CP | E6: Date | F6: Population ciblée pour MDA 4 | J6: Population traitée - tournée 1 | N6: Population traitée - tournée 2 | R6: Population traitée | V6: Couverture du Programme (%)
A7: Pays | B7: Région/Département | C7: District | F7: EAPréS | G7: EAS | H7: Adultes | I7: Total | J7: EAPréS | K7: EAS | L7: Adultes | M7: Total | N7: EAPréS | O7: EAS | P7: Adultes | Q7: Total | R7: EAPréS | S7: EAS | T7: Adultes | U7: Total | V7: EAPréS | W7: EAS | X7: Adultes | Y7: Total
A9: =IF(COUNTRY_INFO!A9=0," ",COUNTRY_INFO!A9) -> Equatorial Guinea | B9: =IF(COUNTRY_INFO!B9=0," ",COUNTRY_INFO!B9) -> Annobon | C9: =IF(COUNTRY_INFO!C9=0," ",COUNTRY_INFO!C9) -> Annonbon | D9: =IF(COUNTRY_INFO!$U$9:$U$1000="MDA4 (ALB/2*ALB)", COUNTRY_INFO!$U$9:$U$1000, " ") ->  | I9: =SUM(F9:H9) -> 0 | M9: =SUM(J9:L9) -> 0 | Q9: =SUM(N9:P9) -> 0 | R9: =MAX(J9,N9) -> 0 | S9: =MAX(K9,O9) -> 0 | T9: =MAX(L9,P9) -> 0 | U9: =SUM(R9:T9) -> 0 | V9: =IF(F9<>0, IF(R9/F9*100=0, "-",R9/F9*100), " ") ->  | W9: =IF(G9<>0, IF(S9/G9*100=0, "-", S9/G9*100), " ") ->  | X9: =IF(H9<>0, IF(T9/H9*100=0, "-", T9/H9*100), " ") ->  | Y9: =IF(I9<>0, IF(U9/I9*100=0, "-", U9/I9*100), " ") -> 
A10: =IF(COUNTRY_INFO!A10=0," ",COUNTRY_INFO!A10) -> Equatorial Guinea | B10: =IF(COUNTRY_INFO!B10=0," ",COUNTRY_INFO!B10) -> Bioko Norte | C10: =IF(COUNTRY_INFO!C10=0," ",COUNTRY_INFO!C10) -> Baney | D10: =IF(COUNTRY_INFO!$U$9:$U$1000="MDA4 (ALB/2*ALB)", COUNTRY_INFO!$U$9:$U$1000, " ") -> MDA4 (ALB/2*ALB) | E10: Septembre 2021 | F10: 2061 | G10: 4481 | H10: 8950 | I10: =SUM(F10:H10) -> 15492 | J10: 1098.273149 | K10: 2288.676638 | L10: 6387.050213 | M10: 9774 | Q10: =SUM(N10:P10) -> 0 | R10: 1098.273149 | S10: 2288.676638 | T10: 6387.050213 | U10: 9774 | V10: 53.28836238 | W10: 51.07513141 | X10: 71.36368953 | Y10: 63.09062742
A11: =IF(COUNTRY_INFO!A11=0," ",COUNTRY_INFO!A11) -> Equatorial Guinea | B11: =IF(COUNTRY_INFO!B11=0," ",COUNTRY_INFO!B11) -> Bioko Norte | C11: =IF(COUNTRY_INFO!C11=0," ",COUNTRY_INFO!C11) -> Malabo | D11: =IF(COUNTRY_INFO!$U$9:$U$1000="MDA4 (ALB/2*ALB)", COUNTRY_INFO!$U$9:$U$1000, " ") ->  | I11: 0 | M11: 0 | Q11: 0 | R11: 0 | S11: 0 | T11: 0 | U11: 0
A12: =IF(COUNTRY_INFO!A12=0," ",COUNTRY_INFO!A12) -> Equatorial Guinea | B12: =IF(COUNTRY_INFO!B12=0," ",COUNTRY_INFO!B12) -> Bioko Sur | C12: =IF(COUNTRY_INFO!C12=0," ",COUNTRY_INFO!C12) -> Luba | D12: =IF(COUNTRY_INFO!$U$9:$U$1000="MDA4 (ALB/2*ALB)", COUNTRY_INFO!$U$9:$U$1000, " ") ->  | I12: 0 | M12: 0 | Q12: 0 | R12: 0 | S12: 0 | T12: 0 | U12: 0
A13: =IF(COUNTRY_INFO!A13=0," ",COUNTRY_INFO!A13) -> Equatorial Guinea | B13: =IF(COUNTRY_INFO!B13=0," ",COUNTRY_INFO!B13) -> Bioko Sur | C13: =IF(COUNTRY_INFO!C13=0," ",COUNTRY_INFO!C13) -> Riaba | D13: =IF(COUNTRY_INFO!$U$9:$U$1000="MDA4 (ALB/2*ALB)", COUNTRY_INFO!$U$9:$U$1000, " ") -> MDA4 (ALB/2*ALB) | E13: Septembre 2021 | F13: 197 | G13: 461 | H13: 1343 | I13: 2001 | J13: 199.3387114 | K13: 415.3992589 | L13: 1159.26203 | M13: 1774 | Q13: 0 | R13: 199.3387114 | S13: 415.3992589 | T13: 1159.26203 | U13: 1774 | V13: 101.1871632 | W13: 90.10829911 | X13: 86.31884063 | Y13: 88.65567216
A14: =IF(COUNTRY_INFO!A14=0," ",COUNTRY_INFO!A14) -> Equatorial Guinea | B14: =IF(COUNTRY_INFO!B14=0," ",COUNTRY_INFO!B14) -> Centro Sur | C14: =IF(COUNTRY_INFO!C14=0," ",COUNTRY_INFO!C14) -> Acurenam | D14: =IF(COUNTRY_INFO!$U$9:$U$1000="MDA4 (ALB/2*ALB)", COUNTRY_INFO!$U$9:$U$1000, " ") -> MDA4 (ALB/2*ALB) | E14: Septembre 2021 | F14: 429 | G14: 1174 | H14: 2756 | I14: 4359 | J14: 419.1281813 | K14: 873.4155781 | L14: 2437.456241 | M14: 3730 | Q14: 0 | R14: 419.1281813 | S14: 873.4155781 | T14: 2437.456241 | U14: 3730 | V14: 97.69887677 | W14: 74.39655691 | X14: 88.44180844 | Y14: 85.57008488
A15: =IF(COUNTRY_INFO!A15=0," ",COUNTRY_INFO!A15) -> Equatorial Guinea | B15: =IF(COUNTRY_INFO!B15=0," ",COUNTRY_INFO!B15) -> Centro Sur | C15: =IF(COUNTRY_INFO!C15=0," ",COUNTRY_INFO!C15) -> Evinayong | D15: =IF(COUNTRY_INFO!$U$9:$U$1000="MDA4 (ALB/2*ALB)", COUNTRY_INFO!$U$9:$U$1000, " ") -> MDA4 (ALB/2*ALB) | E15: Septembre 2021 | F15: 1525 | G15: 2967 | H15: 7353 | I15: 11845 | J15: 1140.972534 | K15: 2377.657314 | L15: 6635.370152 | M15: 10154 | Q15: 0 | R15: 1140.972534 | S15: 2377.657314 | T15: 6635.370152 | U15: 10154 | V15: 74.81787111 | W15: 80.13674802 | X15: 90.24031214 | Y15: 85.72393415
A16: =IF(COUNTRY_INFO!A16=0," ",COUNTRY_INFO!A16) -> Equatorial Guinea | B16: =IF(COUNTRY_INFO!B16=0," ",COUNTRY_INFO!B16) -> Centro Sur | C16: =IF(COUNTRY_INFO!C16=0," ",COUNTRY_INFO!C16) -> Niefang | D16: =IF(COUNTRY_INFO!$U$9:$U$1000="MDA4 (ALB/2*ALB)", COUNTRY_INFO!$U$9:$U$1000, " ") -> MDA4 (ALB/2*ALB) | E16: Septembre 2021 | F16: 600 | G16: 1705 | H16: 4889 | I16: 7194 | J16: 751.6215563 | K16: 1566.294049 | L16: 4371.084395 | M16: 6689 | Q16: 0 | R16: 751.6215563 | S16: 1566.294049 | T16: 4371.084395 | U16: 6689 | V16: 125.2702594 | W16: 91.8647536 | X16: 89.40651247 | Y16: 92.98026133
A17: =IF(COUNTRY_INFO!A17=0," ",COUNTRY_INFO!A17) -> Equatorial Guinea | B17: =IF(COUNTRY_INFO!B17=0," ",COUNTRY_INFO!B17) -> Kientem | C17: =IF(COUNTRY_INFO!C17=0," ",COUNTRY_INFO!C17) -> Ebebiyin | D17: =IF(COUNTRY_INFO!$U$9:$U$1000="MDA4 (ALB/2*ALB)", COUNTRY_INFO!$U$9:$U$1000, " ") -> MDA4 (ALB/2*ALB) | E17: Septembre 2021 | F17: 2620 | G17: 5717 | H17: 13871 | I17: 22208 | J17: 2325.431022 | K17: 4845.934421 | L17: 13523.63456 | M17: 20695 | Q17: 0 | R17: 2325.431022 | S17: 4845.934421 | T17: 13523.63456 | U17: 20695 | V17: 88.75690924 | W17: 84.76358966 | X17: 97.49574333 | Y17: 93.18713977
A18: =IF(COUNTRY_INFO!A18=0," ",COUNTRY_INFO!A18) -> Equatorial Guinea | B18: =IF(COUNTRY_INFO!B18=0," ",COUNTRY_INFO!B18) -> Kientem | C18: =IF(COUNTRY_INFO!C18=0," ",COUNTRY_INFO!C18) -> Micomiseng | D18: =IF(COUNTRY_INFO!$U$9:$U$1000="MDA4 (ALB/2*ALB)", COUNTRY_INFO!$U$9:$U$1000, " ") -> MDA4 (ALB/2*ALB) | E18: Septembre 2021 | F18: 2318 | G18: 3662 | H18: 7264 | I18: 13244 | J18: 1168.277668 | K18: 2434.558114 | L18: 6794.164218 | M18: 10397 | Q18: 0 | R18: 1168.277668 | S18: 2434.558114 | T18: 6794.164218 | U18: 10397 | V18: 50.40024452 | W18: 66.48165249 | X18: 93.53199639 | Y18: 78.50347327
A19: =IF(COUNTRY_INFO!A19=0," ",COUNTRY_INFO!A19) -> Equatorial Guinea | B19: =IF(COUNTRY_INFO!B19=0," ",COUNTRY_INFO!B19) -> Kientem | C19: =IF(COUNTRY_INFO!C19=0," ",COUNTRY_INFO!C19) -> Nsoknsomo | D19: =IF(COUNTRY_INFO!$U$9:$U$1000="MDA4 (ALB/2*ALB)", COUNTRY_INFO!$U$9:$U$1000, " ") -> MDA4 (ALB/2*ALB) | E19: Septembre 2021 | F19: 821 | G19: 1628 | H19: 3393 | I19: 5842 | J19: 544.1924349 | K19: 1134.035294 | L19: 3164.772272 | M19: 4843 | Q19: 0 | R19: 544.1924349 | S19: 1134.035294 | T19: 3164.772272 | U19: 4843 | V19: 66.28409682 | W19: 69.65818756 | X19: 93.27357122 | Y19: 82.89969189
A20: =IF(COUNTRY_INFO!A20=0," ",COUNTRY_INFO!A20) -> Equatorial Guinea | B20: =IF(COUNTRY_INFO!B20=0," ",COUNTRY_INFO!B20) -> Litoral | C20: =IF(COUNTRY_INFO!C20=0," ",COUNTRY_INFO!C20) -> Bata | D20: =IF(COUNTRY_INFO!$U$9:$U$1000="MDA4 (ALB/2*ALB)", COUNTRY_INFO!$U$9:$U$1000, " ") -> MDA4 (ALB/2*ALB) | E20: Septembre 2021 | F20: 11040 | G20: 23680 | H20: 52530 | I20: 87250 | J20: 8632.4674 | K20: 17989.08267 | L20: 50202.44993 | M20: 76824 | Q20: 0 | R20: 8632.4674 | S20: 17989.08267 | T20: 50202.44993 | U20: 76824 | V20: 78.1926395 | W20: 75.96740994 | X20: 95.56910323 | Y20: 88.0504298
A21: =IF(COUNTRY_INFO!A21=0," ",COUNTRY_INFO!A21) -> Equatorial Guinea | B21: =IF(COUNTRY_INFO!B21=0," ",COUNTRY_INFO!B21) -> Litoral | C21: =IF(COUNTRY_INFO!C21=0," ",COUNTRY_INFO!C21) -> Kogo | D21: =IF(COUNTRY_INFO!$U$9:$U$1000="MDA4 (ALB/2*ALB)", COUNTRY_INFO!$U$9:$U$1000, " ") -> MDA4 (ALB/2*ALB) | E21: Septembre 2021 | F21: 960 | G21: 1097 | H21: 2911 | I21: 4968 | J21: 492.8408052 | K21: 1027.024323 | L21: 2866.134872 | M21: 4386 | Q21: 0 | R21: 492.8408052 | S21: 1027.024323 | T21: 2866.134872 | U21: 4386 | V21: 51.33758387 | W21: 93.62117805 | X21: 98.45877264 | Y21: 88.28502415
A22: =IF(COUNTRY_INFO!A22=0," ",COUNTRY_INFO!A22) -> Equatorial Guinea | B22: =IF(COUNTRY_INFO!B22=0," ",COUNTRY_INFO!B22) -> Litoral | C22: =IF(COUNTRY_INFO!C22=0," ",COUNTRY_INFO!C22) -> Mbini | D22: =IF(COUNTRY_INFO!$U$9:$U$1000="MDA4 (ALB/2*ALB)", COUNTRY_INFO!$U$9:$U$1000, " ") -> MDA4 (ALB/2*ALB) | E22: Septembre 2021 | F22: 543 | G22: 893 | H22: 3182 | I22: 4618 | J22: 536.102025 | K22: 1117.175797 | L22: 3117.722178 | M22: 4771 | Q22: 0 | R22: 536.102025 | S22: 1117.175797 | T22: 3117.722178 | U22: 4771 | V22: 98.72965469 | W22: 125.1036727 | X22: 97.97995531 | Y22: 103.3131226
A23: =IF(COUNTRY_INFO!A23=0," ",COUNTRY_INFO!A23) -> Equatorial Guinea | B23: =IF(COUNTRY_INFO!B23=0," ",COUNTRY_INFO!B23) -> Welenzas | C23: =IF(COUNTRY_INFO!C23=0," ",COUNTRY_INFO!C23) -> Akonibe | D23: =IF(COUNTRY_INFO!$U$9:$U$1000="MDA4 (ALB/2*ALB)", COUNTRY_INFO!$U$9:$U$1000, " ") -> MDA4 (ALB/2*ALB) | E23: Septembre 2021 | F23: 539 | G23: 902 | H23: 2274 | I23: 3715 | J23: 355.8656703 | K23: 741.5836826 | L23: 2069.550647 | M23: 3167 | Q23: 0 | R23: 355.8656703 | S23: 741.5836826 | T23: 2069.550647 | U23: 3167 | V23: 66.02331546 | W23: 82.21548587 | X23: 91.00926329 | Y23: 85.24899058
A24: =IF(COUNTRY_INFO!A24=0," ",COUNTRY_INFO!A24) -> Equatorial Guinea | B24: =IF(COUNTRY_INFO!B24=0," ",COUNTRY_INFO!B24) -> Welenzas | C24: =IF(COUNTRY_INFO!C24=0," ",COUNTRY_INFO!C24) -> Anisok | D24: =IF(COUNTRY_INFO!$U$9:$U$1000="MDA4 (ALB/2*ALB)", COUNTRY_INFO!$U$9:$U$1000, " ") -> MDA4 (ALB/2*ALB) | E24: Septembre 2021 | F24: 1407 | G24: 2930 | H24: 6480 | I24: 10817 | J24: 1139.399399 | K24: 2374.379078 | L24: 6626.221522 | M24: 10140 | Q24: 0 | R24: 1139.399399 | S24: 2374.379078 | T24: 6626.221522 | U24: 10140 | V24: 80.98076753 | W24: 81.03682861 | X24: 102.256505 | Y24: 93.74133309
A25: =IF(COUNTRY_INFO!A25=0," ",COUNTRY_INFO!A25) -> Equatorial Guinea | B25: =IF(COUNTRY_INFO!B25=0," ",COUNTRY_INFO!B25) -> Welenzas | C25: =IF(COUNTRY_INFO!C25=0," ",COUNTRY_INFO!C25) -> Mongomo | D25: =IF(COUNTRY_INFO!$U$9:$U$1000="MDA4 (ALB/2*ALB)", COUNTRY_INFO!$U$9:$U$1000, " ") -> MDA4 (ALB/2*ALB) | E25: Septembre 2021 | F25: 3192 | G25: 6228 | H25: 13752 | I25: 23172 | J25: 2303.968963 | K25: 4801.209923 | L25: 13398.82111 | M25: 20504 | Q25: 0 | R25: 2303.968963 | S25: 4801.209923 | T25: 13398.82111 | U25: 20504 | V25: 72.17947878 | W25: 77.0907181 | X25: 97.43179984 | Y25: 88.48610392
A26: =IF(COUNTRY_INFO!A26=0," ",COUNTRY_INFO!A26) -> Equatorial Guinea | B26: =IF(COUNTRY_INFO!B26=0," ",COUNTRY_INFO!B26) -> Welenzas | C26: =IF(COUNTRY_INFO!C26=0," ",COUNTRY_INFO!C26) -> Nsork | D26: =IF(COUNTRY_INFO!$U$9:$U$1000="MDA4 (ALB/2*ALB)", COUNTRY_INFO!$U$9:$U$1000, " ") -> MDA4 (ALB/2*ALB) | E26: Septembre 2021 | F26: 497 | G26: 1127 | H26: 2697 | I26: 4321 | J26: 410.138837 | K26: 854.6828044 | L26: 2385.178359 | M26: 3650 | Q26: 0 | R26: 410.138837 | S26: 854.6828044 | T26: 2385.178359 | U26: 3650 | V26: 82.52290482 | W26: 75.83698353 | X26: 88.43820388 | Y26: 84.47118723

Sheet MDA3
A1: MDA 3 - Ivermectine (IVM)
A2: Structure administrative, population nécessitant une chimioprévention par groupe d'âge, population traitée par groupe d'âge et couverture
A4: TOTAL | F4: =SUM(F$9:F$1000) -> 0 | G4: 0 | H4: 0 | I4: 0 | J4: 0 | K4: 0 | L4: 0 | M4: 0 | N4: 0 | O4: 0 | P4: 0 | Q4: 0 | R4: =IF(F4<>0, IF(O4/F4*100=0, "-", O4/F4*100), " ") ->  | S4: =IF(G4<>0, IF(P4/G4*100=0, "-", P4/G4*100), " ") ->  | T4: =IF(H4<>0, IF(Q4/H4*100=0, "-", Q4/H4*100), " ") -> 
A6: Structure administrative du pays | D6: Mise en oeuvre de la CP | E6: Date | F6: Population ciblée pour MDA 3 | I6: Population traitée - tournée 1 | L6: Population traitée - tournée 2 | O6: Population traitée | R6: Couverture du Programme (%)
A7: Pays | B7: Région/Département | C7: District | F7: EAS | G7: Adultes | H7: Total | I7: EAS | J7: Adultes | K7: Total | L7: EAS | M7: Adultes | N7: Total | O7: EAS | P7: Adultes | Q7: Total | R7: EAS | S7: Adultes | T7: Total
A9: =IF(COUNTRY_INFO!A9=0," ",COUNTRY_INFO!A9) -> Equatorial Guinea | B9: =IF(COUNTRY_INFO!B9=0," ",COUNTRY_INFO!B9) -> Annobon | C9: =IF(COUNTRY_INFO!C9=0," ",COUNTRY_INFO!C9) -> Annonbon | D9: =IF(COUNTRY_INFO!$U$9:$U$1000="MDA3 (IVM)", COUNTRY_INFO!$U$9:$U$1000, " ") ->  | H9: =SUM(F9:G9) -> 0 | K9: =SUM(I9:J9) -> 0 | N9: =SUM(L9:M9) -> 0 | O9: =MAX(I9,L9) -> 0 | P9: 0 | Q9: =SUM(O9:P9) -> 0 | R9: =IF(F9<>0, IF(MAX(I9,L9)/F9*100=0, "-", MAX(I9,L9)/F9*100), " ") ->  | T9: =IF(H9<>0, IF((MAX(I9,L9)+MAX(J9,M9))/H9*100=0, "-",(MAX(I9,L9)+MAX(J9,M9))/H9*100), " ") -> 
A10: =IF(COUNTRY_INFO!A10=0," ",COUNTRY_INFO!A10) -> Equatorial Guinea | B10: =IF(COUNTRY_INFO!B10=0," ",COUNTRY_INFO!B10) -> Bioko Norte | C10: =IF(COUNTRY_INFO!C10=0," ",COUNTRY_INFO!C10) -> Baney | D10: =IF(COUNTRY_INFO!$U$9:$U$1000="MDA3 (IVM)", COUNTRY_INFO!$U$9:$U$1000, " ") ->  | H10: =SUM(F10:G10) -> 0 | K10: =SUM(I10:J10) -> 0 | N10: =SUM(L10:M10) -> 0 | O10: =MAX(I10,L10) -> 0 | P10: =MAX(J10,M10) -> 0 | Q10: =SUM(O10:P10) -> 0 | R10: =IF(F10<>0, IF(MAX(I10,L10)/F10*100=0, "-", MAX(I10,L10)/F10*100), " ") ->  | S10: =IF(G10<>0, IF(MAX(J10,M10)/G10*100=0, "-", MAX(J10,M10)/G10*100), " ") ->  | T10: =IF(H10<>0, IF((MAX(I10,L10)+MAX(J10,M10))/H10*100=0, "-",(MAX(I10,L10)+MAX(J10,M10))/H10*100), " ") -> 
A11: =IF(COUNTRY_INFO!A11=0," ",COUNTRY_INFO!A11) -> Equatorial Guinea | B11: =IF(COUNTRY_INFO!B11=0," ",COUNTRY_INFO!B11) -> Bioko Norte | C11: =IF(COUNTRY_INFO!C11=0," ",COUNTRY_INFO!C11) -> Malabo | D11: =IF(COUNTRY_INFO!$U$9:$U$1000="MDA3 (IVM)", COUNTRY_INFO!$U$9:$U$1000, " ") ->  | H11: 0 | K11: 0 | N11: 0 | O11: 0 | P11: 0 | Q11: 0
A12: =IF(COUNTRY_INFO!A12=0," ",COUNTRY_INFO!A12) -> Equatorial Guinea | B12: =IF(COUNTRY_INFO!B12=0," ",COUNTRY_INFO!B12) -> Bioko Sur | C12: =IF(COUNTRY_INFO!C12=0," ",COUNTRY_INFO!C12) -> Luba | D12: =IF(COUNTRY_INFO!$U$9:$U$1000="MDA3 (IVM)", COUNTRY_INFO!$U$9:$U$1000, " ") ->  | H12: 0 | K12: 0 | N12: 0 | O12: 0 | P12: 0 | Q12: 0
A13: =IF(COUNTRY_INFO!A13=0," ",COUNTRY_INFO!A13) -> Equatorial Guinea | B13: =IF(COUNTRY_INFO!B13=0," ",COUNTRY_INFO!B13) -> Bioko Sur | C13: =IF(COUNTRY_INFO!C13=0," ",COUNTRY_INFO!C13) -> Riaba | D13: =IF(COUNTRY_INFO!$U$9:$U$1000="MDA3 (IVM)", COUNTRY_INFO!$U$9:$U$1000, " ") ->  | H13: 0 | K13: 0 | N13: 0 | O13: 0 | P13: 0 | Q13: 0
A14: =IF(COUNTRY_INFO!A14=0," ",COUNTRY_INFO!A14) -> Equatorial Guinea | B14: =IF(COUNTRY_INFO!B14=0," ",COUNTRY_INFO!B14) -> Centro Sur | C14: =IF(COUNTRY_INFO!C14=0," ",COUNTRY_INFO!C14) -> Acurenam | D14: =IF(COUNTRY_INFO!$U$9:$U$1000="MDA3 (IVM)", COUNTRY_INFO!$U$9:$U$1000, " ") ->  | H14: 0 | K14: 0 | N14: 0 | O14: 0 | P14: 0 | Q14: 0
A15: =IF(COUNTRY_INFO!A15=0," ",COUNTRY_INFO!A15) -> Equatorial Guinea | B15: =IF(COUNTRY_INFO!B15=0," ",COUNTRY_INFO!B15) -> Centro Sur | C15: =IF(COUNTRY_INFO!C15=0," ",COUNTRY_INFO!C15) -> Evinayong | D15: =IF(COUNTRY_INFO!$U$9:$U$1000="MDA3 (IVM)", COUNTRY_INFO!$U$9:$U$1000, " ") ->  | H15: 0 | K15: 0 | N15: 0 | O15: 0 | P15: 0 | Q15: 0
A16: =IF(COUNTRY_INFO!A16=0," ",COUNTRY_INFO!A16) -> Equatorial Guinea | B16: =IF(COUNTRY_INFO!B16=0," ",COUNTRY_INFO!B16) -> Centro Sur | C16: =IF(COUNTRY_INFO!C16=0," ",COUNTRY_INFO!C16) -> Niefang | D16: =IF(COUNTRY_INFO!$U$9:$U$1000="MDA3 (IVM)", COUNTRY_INFO!$U$9:$U$1000, " ") ->  | H16: 0 | K16: 0 | N16: 0 | O16: 0 | P16: 0 | Q16: 0
A17: =IF(COUNTRY_INFO!A17=0," ",COUNTRY_INFO!A17) -> Equatorial Guinea | B17: =IF(COUNTRY_INFO!B17=0," ",COUNTRY_INFO!B17) -> Kientem | C17: =IF(COUNTRY_INFO!C17=0," ",COUNTRY_INFO!C17) -> Ebebiyin | D17: =IF(COUNTRY_INFO!$U$9:$U$1000="MDA3 (IVM)", COUNTRY_INFO!$U$9:$U$1000, " ") ->  | H17: 0 | K17: 0 | N17: 0 | O17: 0 | P17: 0 | Q17: 0
A18: =IF(COUNTRY_INFO!A18=0," ",COUNTRY_INFO!A18) -> Equatorial Guinea | B18: =IF(COUNTRY_INFO!B18=0," ",COUNTRY_INFO!B18) -> Kientem | C18: =IF(COUNTRY_INFO!C18=0," ",COUNTRY_INFO!C18) -> Micomiseng | D18: =IF(COUNTRY_INFO!$U$9:$U$1000="MDA3 (IVM)", COUNTRY_INFO!$U$9:$U$1000, " ") ->  | H18: 0 | K18: 0 | N18: 0 | O18: 0 | P18: 0 | Q18: 0
A19: =IF(COUNTRY_INFO!A19=0," ",COUNTRY_INFO!A19) -> Equatorial Guinea | B19: =IF(COUNTRY_INFO!B19=0," ",COUNTRY_INFO!B19) -> Kientem | C19: =IF(COUNTRY_INFO!C19=0," ",COUNTRY_INFO!C19) -> Nsoknsomo | D19: =IF(COUNTRY_INFO!$U$9:$U$1000="MDA3 (IVM)", COUNTRY_INFO!$U$9:$U$1000, " ") ->  | H19: 0 | K19: 0 | N19: 0 | O19: 0 | P19: 0 | Q19: 0
A20: =IF(COUNTRY_INFO!A20=0," ",COUNTRY_INFO!A20) -> Equatorial Guinea | B20: =IF(COUNTRY_INFO!B20=0," ",COUNTRY_INFO!B20) -> Litoral | C20: =IF(COUNTRY_INFO!C20=0," ",COUNTRY_INFO!C20) -> Bata | D20: =IF(COUNTRY_INFO!$U$9:$U$1000="MDA3 (IVM)", COUNTRY_INFO!$U$9:$U$1000, " ") ->  | H20: 0 | K20: 0 | N20: 0 | O20: 0 | P20: 0 | Q20: 0
A21: =IF(COUNTRY_INFO!A21=0," ",COUNTRY_INFO!A21) -> Equatorial Guinea | B21: =IF(COUNTRY_INFO!B21=0," ",COUNTRY_INFO!B21) -> Litoral | C21: =IF(COUNTRY_INFO!C21=0," ",COUNTRY_INFO!C21) -> Kogo | D21: =IF(COUNTRY_INFO!$U$9:$U$1000="MDA3 (IVM)", COUNTRY_INFO!$U$9:$U$1000, " ") ->  | H21: 0 | K21: 0 | N21: 0 | O21: 0 | P21: 0 | Q21: 0
A22: =IF(COUNTRY_INFO!A22=0," ",COUNTRY_INFO!A22) -> Equatorial Guinea | B22: =IF(COUNTRY_INFO!B22=0," ",COUNTRY_INFO!B22) -> Litoral | C22: =IF(COUNTRY_INFO!C22=0," ",COUNTRY_INFO!C22) -> Mbini | D22: =IF(COUNTRY_INFO!$U$9:$U$1000="MDA3 (IVM)", COUNTRY_INFO!$U$9:$U$1000, " ") ->  | H22: 0 | K22: 0 | N22: 0 | O22: 0 | P22: 0 | Q22: 0
A23: =IF(COUNTRY_INFO!A23=0," ",COUNTRY_INFO!A23) -> Equatorial Guinea | B23: =IF(COUNTRY_INFO!B23=0," ",COUNTRY_INFO!B23) -> Welenzas | C23: =IF(COUNTRY_INFO!C23=0," ",COUNTRY_INFO!C23) -> Akonibe | D23: =IF(COUNTRY_INFO!$U$9:$U$1000="MDA3 (IVM)", COUNTRY_INFO!$U$9:$U$1000, " ") ->  | H23: 0 | K23: 0 | N23: 0 | O23: 0 | P23: 0 | Q23: 0
A24: =IF(COUNTRY_INFO!A24=0," ",COUNTRY_INFO!A24) -> Equatorial Guinea | B24: =IF(COUNTRY_INFO!B24=0," ",COUNTRY_INFO!B24) -> Welenzas | C24: =IF(COUNTRY_INFO!C24=0," ",COUNTRY_INFO!C24) -> Anisok | D24: =IF(COUNTRY_INFO!$U$9:$U$1000="MDA3 (IVM)", COUNTRY_INFO!$U$9:$U$1000, " ") ->  | H24: 0 | K24: 0 | N24: 0 | O24: 0 | P24: 0 | Q24: 0
A25: =IF(COUNTRY_INFO!A25=0," ",COUNTRY_INFO!A25) -> Equatorial Guinea | B25: =IF(COUNTRY_INFO!B25=0," ",COUNTRY_INFO!B25) -> Welenzas | C25: =IF(COUNTRY_INFO!C25=0," ",COUNTRY_INFO!C25) -> Mongomo | D25: =IF(COUNTRY_INFO!$U$9:$U$1000="MDA3 (IVM)", COUNTRY_INFO!$U$9:$U$1000, " ") ->  | H25: 0 | K25: 0 | N25: 0 | O25: 0 | P25: 0 | Q25: 0
A26: =IF(COUNTRY_INFO!A26=0," ",COUNTRY_INFO!A26) -> Equatorial Guinea | B26: =IF(COUNTRY_INFO!B26=0," ",COUNTRY_INFO!B26) -> Welenzas | C26: =IF(COUNTRY_INFO!C26=0," ",COUNTRY_INFO!C26) -> Nsork | D26: =IF(COUNTRY_INFO!$U$9:$U$1000="MDA3 (IVM)", COUNTRY_INFO!$U$9:$U$1000, " ") ->  | H26: 0 | K26: 0 | N26: 0 | O26: 0 | P26: 0 | Q26: 0

Sheet T1
A1: T 1 - Praziquantel (PZQ) et Albendazole (ALB) ou Mebendazole (MBD)
A2: Structure administrative, population nécessitant une chimioprévention par groupe d'âge, population traitée par groupe d'âge et couverture
A4: TOTAL | G4: =SUM(G$9:G$1000) -> 0 | H4: 0 | I4: 0 | J4: 0 | K4: =SUM(K$9:K$1000) -> 0 | L4: 0 | M4: 0 | N4: 0 | O4: 0 | P4: =IF(G4<>0, IF(L4/G4*100=0, "-", L4/G4*100), " ") ->  | Q4: =IF(OR(I4<>0,H4<>0), IF(M4/MAX(H4,I4)*100=0, "-", M4/MAX(H4,I4)*100), " ") ->  | R4: =IF(J4<>0, IF(N4/J4*100=0, "-", N4/J4*100), " ") ->  | S4: =IF(K4<>0, IF(O4/K4*100=0, "-", O4/K4*100), " ") -> 
A6: Structure administrative du pays | D6: Mise en oeuvre de la CP | E6: Médica-ment | F6: Date | G6: Population ciblée pour T1 | L6: Population traitée | P6: Couverture du Programme (%)
A7: Pays | B7: Région/Département | C7: District | G7: EAPréS (ALB) | H7: EAS (ALB) | I7: EAS (PZQ) | J7: Adultes (PZQ) | K7: Total | L7: EAPréS | M7: EAS | N7: Adultes | O7: Total | P7: EAPréS | Q7: EAS | R7: Adultes | S7: Total
A9: =IF(COUNTRY_INFO!A9=0," ",COUNTRY_INFO!A9) -> Equatorial Guinea | B9: =IF(COUNTRY_INFO!B9=0," ",COUNTRY_INFO!B9) -> Annobon | C9: =IF(COUNTRY_INFO!C9=0," ",COUNTRY_INFO!C9) -> Annonbon | D9: =IF(OR(COUNTRY_INFO!$U$9:$U$1000="T1 (PZQ+ALB/MBD)",COUNTRY_INFO!$V$9:$V$1000="T1 (PZQ+ALB/MBD)"), "T1 (PZQ+ALB/MBD)", " ") ->  | K9: =MAX(H9:I9)+G9+J9 -> 0 | O9: =SUM(L9:N9) -> 0 | P9: =IF(G9<>0, IF(L9/G9*100=0, "-", L9/G9*100), " ") ->  | Q9: =IF(OR(I9<>0,H9<>0), IF(M9/MAX(H9,I9)*100=0, "-", M9/MAX(H9,I9)*100), " ") ->  | R9: =IF(J9<>0, IF(N9/J9*100=0, "-", N9/J9*100), " ") -> 
A10: =IF(COUNTRY_INFO!A10=0," ",COUNTRY_INFO!A10) -> Equatorial Guinea | B10: =IF(COUNTRY_INFO!B10=0," ",COUNTRY_INFO!B10) -> Bioko Norte | C10: =IF(COUNTRY_INFO!C10=0," ",COUNTRY_INFO!C10) -> Baney | D10: =IF(OR(COUNTRY_INFO!$U$9:$U$1000="T1 (PZQ+ALB/MBD)",COUNTRY_INFO!$V$9:$V$1000="T1 (PZQ+ALB/MBD)"), "T1 (PZQ+ALB/MBD)", " ") ->  | K10: =MAX(H10:I10)+G10+J10 -> 0 | O10: =SUM(L10:N10) -> 0 | P10: =IF(G10<>0, IF(L10/G10*100=0, "-", L10/G10*100), " ") ->  | Q10: =IF(OR(I10<>0,H10<>0), IF(M10/MAX(H10,I10)*100=0, "-", M10/MAX(H10,I10)*100), " ") ->  | R10: =IF(J10<>0, IF(N10/J10*100=0, "-", N10/J10*100), " ") ->  | S10: =IF(K10<>0, IF(O10/K10*100=0, "-", O10/K10*100), " ") -> 
A11: =IF(COUNTRY_INFO!A11=0," ",COUNTRY_INFO!A11) -> Equatorial Guinea | B11: =IF(COUNTRY_INFO!B11=0," ",COUNTRY_INFO!B11) -> Bioko Norte | C11: =IF(COUNTRY_INFO!C11=0," ",COUNTRY_INFO!C11) -> Malabo | D11: =IF(OR(COUNTRY_INFO!$U$9:$U$1000="T1 (PZQ+ALB/MBD)",COUNTRY_INFO!$V$9:$V$1000="T1 (PZQ+ALB/MBD)"), "T1 (PZQ+ALB/MBD)", " ") ->  | K11: 0 | O11: 0
A12: =IF(COUNTRY_INFO!A12=0," ",COUNTRY_INFO!A12) -> Equatorial Guinea | B12: =IF(COUNTRY_INFO!B12=0," ",COUNTRY_INFO!B12) -> Bioko Sur | C12: =IF(COUNTRY_INFO!C12=0," ",COUNTRY_INFO!C12) -> Luba | D12: =IF(OR(COUNTRY_INFO!$U$9:$U$1000="T1 (PZQ+ALB/MBD)",COUNTRY_INFO!$V$9:$V$1000="T1 (PZQ+ALB/MBD)"), "T1 (PZQ+ALB/MBD)", " ") ->  | K12: 0 | O12: 0
A13: =IF(COUNTRY_INFO!A13=0," ",COUNTRY_INFO!A13) -> Equatorial Guinea | B13: =IF(COUNTRY_INFO!B13=0," ",COUNTRY_INFO!B13) -> Bioko Sur | C13: =IF(COUNTRY_INFO!C13=0," ",COUNTRY_INFO!C13) -> Riaba | D13: =IF(OR(COUNTRY_INFO!$U$9:$U$1000="T1 (PZQ+ALB/MBD)",COUNTRY_INFO!$V$9:$V$1000="T1 (PZQ+ALB/MBD)"), "T1 (PZQ+ALB/MBD)", " ") ->  | K13: 0 | O13: 0
A14: =IF(COUNTRY_INFO!A14=0," ",COUNTRY_INFO!A14) -> Equatorial Guinea | B14: =IF(COUNTRY_INFO!B14=0," ",COUNTRY_INFO!B14) -> Centro Sur | C14: =IF(COUNTRY_INFO!C14=0," ",COUNTRY_INFO!C14) -> Acurenam | D14: =IF(OR(COUNTRY_INFO!$U$9:$U$1000="T1 (PZQ+ALB/MBD)",COUNTRY_INFO!$V$9:$V$1000="T1 (PZQ+ALB/MBD)"), "T1 (PZQ+ALB/MBD)", " ") ->  | K14: 0 | O14: 0
A15: =IF(COUNTRY_INFO!A15=0," ",COUNTRY_INFO!A15) -> Equatorial Guinea | B15: =IF(COUNTRY_INFO!B15=0," ",COUNTRY_INFO!B15) -> Centro Sur | C15: =IF(COUNTRY_INFO!C15=0," ",COUNTRY_INFO!C15) -> Evinayong | D15: =IF(OR(COUNTRY_INFO!$U$9:$U$1000="T1 (PZQ+ALB/MBD)",COUNTRY_INFO!$V$9:$V$1000="T1 (PZQ+ALB/MBD)"), "T1 (PZQ+ALB/MBD)", " ") ->  | K15: 0 | O15: 0
A16: =IF(COUNTRY_INFO!A16=0," ",COUNTRY_INFO!A16) -> Equatorial Guinea | B16: =IF(COUNTRY_INFO!B16=0," ",COUNTRY_INFO!B16) -> Centro Sur | C16: =IF(COUNTRY_INFO!C16=0," ",COUNTRY_INFO!C16) -> Niefang | D16: =IF(OR(COUNTRY_INFO!$U$9:$U$1000="T1 (PZQ+ALB/MBD)",COUNTRY_INFO!$V$9:$V$1000="T1 (PZQ+ALB/MBD)"), "T1 (PZQ+ALB/MBD)", " ") ->  | K16: 0 | O16: 0
A17: =IF(COUNTRY_INFO!A17=0," ",COUNTRY_INFO!A17) -> Equatorial Guinea | B17: =IF(COUNTRY_INFO!B17=0," ",COUNTRY_INFO!B17) -> Kientem | C17: =IF(COUNTRY_INFO!C17=0," ",COUNTRY_INFO!C17) -> Ebebiyin | D17: =IF(OR(COUNTRY_INFO!$U$9:$U$1000="T1 (PZQ+ALB/MBD)",COUNTRY_INFO!$V$9:$V$1000="T1 (PZQ+ALB/MBD)"), "T1 (PZQ+ALB/MBD)", " ") ->  | K17: 0 | O17: 0
A18: =IF(COUNTRY_INFO!A18=0," ",COUNTRY_INFO!A18) -> Equatorial Guinea | B18: =IF(COUNTRY_INFO!B18=0," ",COUNTRY_INFO!B18) -> Kientem | C18: =IF(COUNTRY_INFO!C18=0," ",COUNTRY_INFO!C18) -> Micomiseng | D18: =IF(OR(COUNTRY_INFO!$U$9:$U$1000="T1 (PZQ+ALB/MBD)",COUNTRY_INFO!$V$9:$V$1000="T1 (PZQ+ALB/MBD)"), "T1 (PZQ+ALB/MBD)", " ") ->  | K18: 0 | O18: 0
A19: =IF(COUNTRY_INFO!A19=0," ",COUNTRY_INFO!A19) -> Equatorial Guinea | B19: =IF(COUNTRY_INFO!B19=0," ",COUNTRY_INFO!B19) -> Kientem | C19: =IF(COUNTRY_INFO!C19=0," ",COUNTRY_INFO!C19) -> Nsoknsomo | D19: =IF(OR(COUNTRY_INFO!$U$9:$U$1000="T1 (PZQ+ALB/MBD)",COUNTRY_INFO!$V$9:$V$1000="T1 (PZQ+ALB/MBD)"), "T1 (PZQ+ALB/MBD)", " ") ->  | K19: 0 | O19: 0
A20: =IF(COUNTRY_INFO!A20=0," ",COUNTRY_INFO!A20) -> Equatorial Guinea | B20: =IF(COUNTRY_INFO!B20=0," ",COUNTRY_INFO!B20) -> Litoral | C20: =IF(COUNTRY_INFO!C20=0," ",COUNTRY_INFO!C20) -> Bata | D20: =IF(OR(COUNTRY_INFO!$U$9:$U$1000="T1 (PZQ+ALB/MBD)",COUNTRY_INFO!$V$9:$V$1000="T1 (PZQ+ALB/MBD)"), "T1 (PZQ+ALB/MBD)", " ") ->  | K20: 0 | O20: 0
A21: =IF(COUNTRY_INFO!A21=0," ",COUNTRY_INFO!A21) -> Equatorial Guinea | B21: =IF(COUNTRY_INFO!B21=0," ",COUNTRY_INFO!B21) -> Litoral | C21: =IF(COUNTRY_INFO!C21=0," ",COUNTRY_INFO!C21) -> Kogo | D21: =IF(OR(COUNTRY_INFO!$U$9:$U$1000="T1 (PZQ+ALB/MBD)",COUNTRY_INFO!$V$9:$V$1000="T1 (PZQ+ALB/MBD)"), "T1 (PZQ+ALB/MBD)", " ") ->  | K21: 0 | O21: 0
A22: =IF(COUNTRY_INFO!A22=0," ",COUNTRY_INFO!A22) -> Equatorial Guinea | B22: =IF(COUNTRY_INFO!B22=0," ",COUNTRY_INFO!B22) -> Litoral | C22: =IF(COUNTRY_INFO!C22=0," ",COUNTRY_INFO!C22) -> Mbini | D22: =IF(OR(COUNTRY_INFO!$U$9:$U$1000="T1 (PZQ+ALB/MBD)",COUNTRY_INFO!$V$9:$V$1000="T1 (PZQ+ALB/MBD)"), "T1 (PZQ+ALB/MBD)", " ") ->  | K22: 0 | O22: 0
A23: =IF(COUNTRY_INFO!A23=0," ",COUNTRY_INFO!A23) -> Equatorial Guinea | B23: =IF(COUNTRY_INFO!B23=0," ",COUNTRY_INFO!B23) -> Welenzas | C23: =IF(COUNTRY_INFO!C23=0," ",COUNTRY_INFO!C23) -> Akonibe | D23: =IF(OR(COUNTRY_INFO!$U$9:$U$1000="T1 (PZQ+ALB/MBD)",COUNTRY_INFO!$V$9:$V$1000="T1 (PZQ+ALB/MBD)"), "T1 (PZQ+ALB/MBD)", " ") ->  | K23: 0 | O23: 0
A24: =IF(COUNTRY_INFO!A24=0," ",COUNTRY_INFO!A24) -> Equatorial Guinea | B24: =IF(COUNTRY_INFO!B24=0," ",COUNTRY_INFO!B24) -> Welenzas | C24: =IF(COUNTRY_INFO!C24=0," ",COUNTRY_INFO!C24) -> Anisok | D24: =IF(OR(COUNTRY_INFO!$U$9:$U$1000="T1 (PZQ+ALB/MBD)",COUNTRY_INFO!$V$9:$V$1000="T1 (PZQ+ALB/MBD)"), "T1 (PZQ+ALB/MBD)", " ") ->  | K24: 0 | O24: 0
A25: =IF(COUNTRY_INFO!A25=0," ",COUNTRY_INFO!A25) -> Equatorial Guinea | B25: =IF(COUNTRY_INFO!B25=0," ",COUNTRY_INFO!B25) -> Welenzas | C25: =IF(COUNTRY_INFO!C25=0," ",COUNTRY_INFO!C25) -> Mongomo | D25: =IF(OR(COUNTRY_INFO!$U$9:$U$1000="T1 (PZQ+ALB/MBD)",COUNTRY_INFO!$V$9:$V$1000="T1 (PZQ+ALB/MBD)"), "T1 (PZQ+ALB/MBD)", " ") ->  | K25: 0 | O25: 0
A26: =IF(COUNTRY_INFO!A26=0," ",COUNTRY_INFO!A26) -> Equatorial Guinea | B26: =IF(COUNTRY_INFO!B26=0," ",COUNTRY_INFO!B26) -> Welenzas | C26: =IF(COUNTRY_INFO!C26=0," ",COUNTRY_INFO!C26) -> Nsork | D26: =IF(OR(COUNTRY_INFO!$U$9:$U$1000="T1 (PZQ+ALB/MBD)",COUNTRY_INFO!$V$9:$V$1000="T1 (PZQ+ALB/MBD)"), "T1 (PZQ+ALB/MBD)", " ") ->  | K26: 0 | O26: 0

Sheet T2
A1: T 2 - Praziquantel (PZQ)
A2: Structure administrative, population nécessitant une chimioprévention par groupe d'âge, population traitée par groupe d'âge et couverture
A4: TOTAL | F4: =SUM(F$9:F$1000) -> 0 | G4: 0 | H4: 0 | I4: 0 | J4: 0 | K4: 0 | L4: 0 | M4: 0 | N4: =IF(F4<>0, IF(J4/F4*100=0, "-", J4/F4*100), " ") ->  | O4: =IF(G4<>0, IF(K4/G4*100=0, "-", K4/G4*100), " ") ->  | P4: =IF(H4<>0, IF(L4/H4*100=0, "-", L4/H4*100), " ") ->  | Q4: =IF(I4<>0, IF(M4/I4*100=0, "-", M4/I4*100), " ") -> 
A6: Structure administrative du pays | D6: Mise en oeuvre de la CP | E6: Date | F6: Population ciblée pour T2 | J6: Population traitée | N6: Couverture du Programme (%)
A7: Pays | B7: Région/Département | C7: District | F7: EAPréS | G7: EAS | H7: Adultes | I7: Total | J7: EAPréS | K7: EAS | L7: Adultes | M7: Total | N7: EAPréS | O7: EAS | P7: Adultes | Q7: Total
A9: =IF(COUNTRY_INFO!A9=0," ",COUNTRY_INFO!A9) -> Equatorial Guinea | B9: =IF(COUNTRY_INFO!B9=0," ",COUNTRY_INFO!B9) -> Annobon | C9: =IF(COUNTRY_INFO!C9=0," ",COUNTRY_INFO!C9) -> Annonbon | D9: =IF(OR(COUNTRY_INFO!$U$9:$U$1000="T2 (PZQ)",COUNTRY_INFO!$V$9:$V$1000="T2 (PZQ)"), "T2 (PZQ)", " ") ->  | I9: =SUM(F9:H9) -> 0 | M9: =SUM(J9:L9) -> 0 | N9: =IF(F9<>0, IF(J9/F9*100=0, "-", J9/F9*100), " ") -> 
A10: =IF(COUNTRY_INFO!A10=0," ",COUNTRY_INFO!A10) -> Equatorial Guinea | B10: =IF(COUNTRY_INFO!B10=0," ",COUNTRY_INFO!B10) -> Bioko Norte | C10: =IF(COUNTRY_INFO!C10=0," ",COUNTRY_INFO!C10) -> Baney | D10: =IF(OR(COUNTRY_INFO!$U$9:$U$1000="T2 (PZQ)",COUNTRY_INFO!$V$9:$V$1000="T2 (PZQ)"), "T2 (PZQ)", " ") ->  | I10: =SUM(F10:H10) -> 0 | M10: =SUM(J10:L10) -> 0 | N10: =IF(F10<>0, IF(J10/F10*100=0, "-", J10/F10*100), " ") ->  | O10: =IF(G10<>0, IF(K10/G10*100=0, "-", K10/G10*100), " ") ->  | P10: =IF(H10<>0, IF(L10/H10*100=0, "-", L10/H10*100), " ") ->  | Q10: =IF(I10<>0, IF(M10/I10*100=0, "-", M10/I10*100), " ") -> 
A11: =IF(COUNTRY_INFO!A11=0," ",COUNTRY_INFO!A11) -> Equatorial Guinea | B11: =IF(COUNTRY_INFO!B11=0," ",COUNTRY_INFO!B11) -> Bioko Norte | C11: =IF(COUNTRY_INFO!C11=0," ",COUNTRY_INFO!C11) -> Malabo | D11: =IF(OR(COUNTRY_INFO!$U$9:$U$1000="T2 (PZQ)",COUNTRY_INFO!$V$9:$V$1000="T2 (PZQ)"), "T2 (PZQ)", " ") ->  | I11: 0 | M11: 0
A12: =IF(COUNTRY_INFO!A12=0," ",COUNTRY_INFO!A12) -> Equatorial Guinea | B12: =IF(COUNTRY_INFO!B12=0," ",COUNTRY_INFO!B12) -> Bioko Sur | C12: =IF(COUNTRY_INFO!C12=0," ",COUNTRY_INFO!C12) -> Luba | D12: =IF(OR(COUNTRY_INFO!$U$9:$U$1000="T2 (PZQ)",COUNTRY_INFO!$V$9:$V$1000="T2 (PZQ)"), "T2 (PZQ)", " ") ->  | I12: 0 | M12: 0
A13: =IF(COUNTRY_INFO!A13=0," ",COUNTRY_INFO!A13) -> Equatorial Guinea | B13: =IF(COUNTRY_INFO!B13=0," ",COUNTRY_INFO!B13) -> Bioko Sur | C13: =IF(COUNTRY_INFO!C13=0," ",COUNTRY_INFO!C13) -> Riaba | D13: =IF(OR(COUNTRY_INFO!$U$9:$U$1000="T2 (PZQ)",COUNTRY_INFO!$V$9:$V$1000="T2 (PZQ)"), "T2 (PZQ)", " ") ->  | I13: 0 | M13: 0
A14: =IF(COUNTRY_INFO!A14=0," ",COUNTRY_INFO!A14) -> Equatorial Guinea | B14: =IF(COUNTRY_INFO!B14=0," ",COUNTRY_INFO!B14) -> Centro Sur | C14: =IF(COUNTRY_INFO!C14=0," ",COUNTRY_INFO!C14) -> Acurenam | D14: =IF(OR(COUNTRY_INFO!$U$9:$U$1000="T2 (PZQ)",COUNTRY_INFO!$V$9:$V$1000="T2 (PZQ)"), "T2 (PZQ)", " ") ->  | I14: 0 | M14: 0
A15: =IF(COUNTRY_INFO!A15=0," ",COUNTRY_INFO!A15) -> Equatorial Guinea | B15: =IF(COUNTRY_INFO!B15=0," ",COUNTRY_INFO!B15) -> Centro Sur | C15: =IF(COUNTRY_INFO!C15=0," ",COUNTRY_INFO!C15) -> Evinayong | D15: =IF(OR(COUNTRY_INFO!$U$9:$U$1000="T2 (PZQ)",COUNTRY_INFO!$V$9:$V$1000="T2 (PZQ)"), "T2 (PZQ)", " ") ->  | I15: 0 | M15: 0
A16: =IF(COUNTRY_INFO!A16=0," ",COUNTRY_INFO!A16) -> Equatorial Guinea | B16: =IF(COUNTRY_INFO!B16=0," ",COUNTRY_INFO!B16) -> Centro Sur | C16: =IF(COUNTRY_INFO!C16=0," ",COUNTRY_INFO!C16) -> Niefang | D16: =IF(OR(COUNTRY_INFO!$U$9:$U$1000="T2 (PZQ)",COUNTRY_INFO!$V$9:$V$1000="T2 (PZQ)"), "T2 (PZQ)", " ") ->  | I16: 0 | M16: 0
A17: =IF(COUNTRY_INFO!A17=0," ",COUNTRY_INFO!A17) -> Equatorial Guinea | B17: =IF(COUNTRY_INFO!B17=0," ",COUNTRY_INFO!B17) -> Kientem | C17: =IF(COUNTRY_INFO!C17=0," ",COUNTRY_INFO!C17) -> Ebebiyin | D17: =IF(OR(COUNTRY_INFO!$U$9:$U$1000="T2 (PZQ)",COUNTRY_INFO!$V$9:$V$1000="T2 (PZQ)"), "T2 (PZQ)", " ") ->  | I17: 0 | M17: 0
A18: =IF(COUNTRY_INFO!A18=0," ",COUNTRY_INFO!A18) -> Equatorial Guinea | B18: =IF(COUNTRY_INFO!B18=0," ",COUNTRY_INFO!B18) -> Kientem | C18: =IF(COUNTRY_INFO!C18=0," ",COUNTRY_INFO!C18) -> Micomiseng | D18: =IF(OR(COUNTRY_INFO!$U$9:$U$1000="T2 (PZQ)",COUNTRY_INFO!$V$9:$V$1000="T2 (PZQ)"), "T2 (PZQ)", " ") ->  | I18: 0 | M18: 0
A19: =IF(COUNTRY_INFO!A19=0," ",COUNTRY_INFO!A19) -> Equatorial Guinea | B19: =IF(COUNTRY_INFO!B19=0," ",COUNTRY_INFO!B19) -> Kientem | C19: =IF(COUNTRY_INFO!C19=0," ",COUNTRY_INFO!C19) -> Nsoknsomo | D19: =IF(OR(COUNTRY_INFO!$U$9:$U$1000="T2 (PZQ)",COUNTRY_INFO!$V$9:$V$1000="T2 (PZQ)"), "T2 (PZQ)", " ") ->  | I19: 0 | M19: 0
A20: =IF(COUNTRY_INFO!A20=0," ",COUNTRY_INFO!A20) -> Equatorial Guinea | B20: =IF(COUNTRY_INFO!B20=0," ",COUNTRY_INFO!B20) -> Litoral | C20: =IF(COUNTRY_INFO!C20=0," ",COUNTRY_INFO!C20) -> Bata | D20: =IF(OR(COUNTRY_INFO!$U$9:$U$1000="T2 (PZQ)",COUNTRY_INFO!$V$9:$V$1000="T2 (PZQ)"), "T2 (PZQ)", " ") ->  | I20: 0 | M20: 0
A21: =IF(COUNTRY_INFO!A21=0," ",COUNTRY_INFO!A21) -> Equatorial Guinea | B21: =IF(COUNTRY_INFO!B21=0," ",COUNTRY_INFO!B21) -> Litoral | C21: =IF(COUNTRY_INFO!C21=0," ",COUNTRY_INFO!C21) -> Kogo | D21: =IF(OR(COUNTRY_INFO!$U$9:$U$1000="T2 (PZQ)",COUNTRY_INFO!$V$9:$V$1000="T2 (PZQ)"), "T2 (PZQ)", " ") ->  | I21: 0 | M21: 0
A22: =IF(COUNTRY_INFO!A22=0," ",COUNTRY_INFO!A22) -> Equatorial Guinea | B22: =IF(COUNTRY_INFO!B22=0," ",COUNTRY_INFO!B22) -> Litoral | C22: =IF(COUNTRY_INFO!C22=0," ",COUNTRY_INFO!C22) -> Mbini | D22: =IF(OR(COUNTRY_INFO!$U$9:$U$1000="T2 (PZQ)",COUNTRY_INFO!$V$9:$V$1000="T2 (PZQ)"), "T2 (PZQ)", " ") ->  | I22: 0 | M22: 0
A23: =IF(COUNTRY_INFO!A23=0," ",COUNTRY_INFO!A23) -> Equatorial Guinea | B23: =IF(COUNTRY_INFO!B23=0," ",COUNTRY_INFO!B23) -> Welenzas | C23: =IF(COUNTRY_INFO!C23=0," ",COUNTRY_INFO!C23) -> Akonibe | D23: =IF(OR(COUNTRY_INFO!$U$9:$U$1000="T2 (PZQ)",COUNTRY_INFO!$V$9:$V$1000="T2 (PZQ)"), "T2 (PZQ)", " ") ->  | I23: 0 | M23: 0
A24: =IF(COUNTRY_INFO!A24=0," ",COUNTRY_INFO!A24) -> Equatorial Guinea | B24: =IF(COUNTRY_INFO!B24=0," ",COUNTRY_INFO!B24) -> Welenzas | C24: =IF(COUNTRY_INFO!C24=0," ",COUNTRY_INFO!C24) -> Anisok | D24: =IF(OR(COUNTRY_INFO!$U$9:$U$1000="T2 (PZQ)",COUNTRY_INFO!$V$9:$V$1000="T2 (PZQ)"), "T2 (PZQ)", " ") ->  | I24: 0 | M24: 0
A25: =IF(COUNTRY_INFO!A25=0," ",COUNTRY_INFO!A25) -> Equatorial Guinea | B25: =IF(COUNTRY_INFO!B25=0," ",COUNTRY_INFO!B25) -> Welenzas | C25: =IF(COUNTRY_INFO!C25=0," ",COUNTRY_INFO!C25) -> Mongomo | D25: =IF(OR(COUNTRY_INFO!$U$9:$U$1000="T2 (PZQ)",COUNTRY_INFO!$V$9:$V$1000="T2 (PZQ)"), "T2 (PZQ)", " ") ->  | I25: 0 | M25: 0
A26: =IF(COUNTRY_INFO!A26=0," ",COUNTRY_INFO!A26) -> Equatorial Guinea | B26: =IF(COUNTRY_INFO!B26=0," ",COUNTRY_INFO!B26) -> Welenzas | C26: =IF(COUNTRY_INFO!C26=0," ",COUNTRY_INFO!C26) -> Nsork | D26: =IF(OR(COUNTRY_INFO!$U$9:$U$1000="T2 (PZQ)",COUNTRY_INFO!$V$9:$V$1000="T2 (PZQ)"), "T2 (PZQ)", " ") ->  | I26: 0 | M26: 0

Sheet T3_R1
A1: T 3 - Albendazole (ALB) ou Mebendazole (MBD) - Tournée 1
A2: Structure administrative, population nécessitant une chimioprévention par groupe d'âge, population traitée par groupe d'âge et couverture
A4: TOTAL | G4: =SUM(G$9:G$1000) -> 20383 | H4: 42914 | I4: 0 | J4: 63297 | K4: 23803.40486 | L4: 49603.59514 | M4: 0 | N4: 73407 | O4: =IF(G4<>0, IF(K4/G4*100=0, "-", K4/G4*100), " ") -> 116.7806744 | P4: =IF(H4<>0, IF(L4/H4*100=0, "-", L4/H4*100), " ") -> 115.5883747 | Q4: =IF(I4<>0, IF(M4/I4*100=0, "-", M4/I4*100), " ") ->  | R4: =IF(J4<>0, IF(N4/J4*100=0, "-", N4/J4*100), " ") -> 115.972321
A6: Structure administrative du pays | D6: Mise en oeuvre de la CP | E6: Médica-ment | F6: Date | G6: Population ciblée pour T3 | K6: Population traitée | O6: Couverture du Programme (%)
A7: Pays | B7: Région/Département | C7: District | G7: EAPréS | H7: EAS | I7: Adultes | J7: Total | K7: EAPréS | L7: EAS | M7: Adultes | N7: Total | O7: EAPréS | P7: EAS | Q7: Adultes | R7: Total
A9: =IF(COUNTRY_INFO!A9=0," ",COUNTRY_INFO!A9) -> Equatorial Guinea | B9: =IF(COUNTRY_INFO!B9=0," ",COUNTRY_INFO!B9) -> Annobon | C9: =IF(COUNTRY_INFO!C9=0," ",COUNTRY_INFO!C9) -> Annonbon | D9: =IF(OR(COUNTRY_INFO!$U$9:$U$1000="T3 (ALB/MBD)",COUNTRY_INFO!$V$9:$V$1000="T3 (ALB/MBD)"), "T3 (ALB/MBD)", " ") ->  | J9: =SUM(G9:I9) -> 0 | N9: =SUM(K9:M9) -> 0 | O9: =IF(G9<>0, IF(K9/G9*100=0, "-", K9/G9*100), " ") -> 
A10: =IF(COUNTRY_INFO!A10=0," ",COUNTRY_INFO!A10) -> Equatorial Guinea | B10: =IF(COUNTRY_INFO!B10=0," ",COUNTRY_INFO!B10) -> Bioko Norte | C10: =IF(COUNTRY_INFO!C10=0," ",COUNTRY_INFO!C10) -> Baney | D10: =IF(OR(COUNTRY_INFO!$U$9:$U$1000="T3 (ALB/MBD)",COUNTRY_INFO!$V$9:$V$1000="T3 (ALB/MBD)"), "T3 (ALB/MBD)", " ") ->  | E10: ALB | J10: =SUM(G10:I10) -> 0 | N10: 0 | O10: =IF(G10<>0, IF(K10/G10*100=0, "-", K10/G10*100), " ") ->  | P10: =IF(H10<>0, IF(L10/H10*100=0, "-", L10/H10*100), " ") ->  | Q10: =IF(I10<>0, IF(M10/I10*100=0, "-", M10/I10*100), " ") ->  | R10: =IF(J10<>0, IF(N10/J10*100=0, "-", N10/J10*100), " ") -> 
A11: =IF(COUNTRY_INFO!A11=0," ",COUNTRY_INFO!A11) -> Equatorial Guinea | B11: =IF(COUNTRY_INFO!B11=0," ",COUNTRY_INFO!B11) -> Bioko Norte | C11: =IF(COUNTRY_INFO!C11=0," ",COUNTRY_INFO!C11) -> Malabo | D11: =IF(OR(COUNTRY_INFO!$U$9:$U$1000="T3 (ALB/MBD)",COUNTRY_INFO!$V$9:$V$1000="T3 (ALB/MBD)"), "T3 (ALB/MBD)", " ") -> T3 (ALB/MBD) | E11: ALB | F11: Septembre 2021 | G11: 19950 | H11: 41574 | J11: 61524 | K11: 23277.12091 | L11: 48506.87909 | N11: 71784 | O11: 116.6772978 | P11: 116.6759972 | R11: 116.676419
A12: =IF(COUNTRY_INFO!A12=0," ",COUNTRY_INFO!A12) -> Equatorial Guinea | B12: =IF(COUNTRY_INFO!B12=0," ",COUNTRY_INFO!B12) -> Bioko Sur | C12: =IF(COUNTRY_INFO!C12=0," ",COUNTRY_INFO!C12) -> Luba | D12: =IF(OR(COUNTRY_INFO!$U$9:$U$1000="T3 (ALB/MBD)",COUNTRY_INFO!$V$9:$V$1000="T3 (ALB/MBD)"), "T3 (ALB/MBD)", " ") -> T3 (ALB/MBD) | E12: ALB | F12: Septembre 2021 | G12: 433 | H12: 1340 | J12: 1773 | K12: 526.2839523 | L12: 1096.716048 | N12: 1623 | O12: 121.543638 | P12: 81.84448117 | R12: 91.53976311
A13: =IF(COUNTRY_INFO!A13=0," ",COUNTRY_INFO!A13) -> Equatorial Guinea | B13: =IF(COUNTRY_INFO!B13=0," ",COUNTRY_INFO!B13) -> Bioko Sur | C13: =IF(COUNTRY_INFO!C13=0," ",COUNTRY_INFO!C13) -> Riaba | D13: =IF(OR(COUNTRY_INFO!$U$9:$U$1000="T3 (ALB/MBD)",COUNTRY_INFO!$V$9:$V$1000="T3 (ALB/MBD)"), "T3 (ALB/MBD)", " ") ->  | E13: ALB | J13: 0 | N13: 0
A14: =IF(COUNTRY_INFO!A14=0," ",COUNTRY_INFO!A14) -> Equatorial Guinea | B14: =IF(COUNTRY_INFO!B14=0," ",COUNTRY_INFO!B14) -> Centro Sur | C14: =IF(COUNTRY_INFO!C14=0," ",COUNTRY_INFO!C14) -> Acurenam | D14: =IF(OR(COUNTRY_INFO!$U$9:$U$1000="T3 (ALB/MBD)",COUNTRY_INFO!$V$9:$V$1000="T3 (ALB/MBD)"), "T3 (ALB/MBD)", " ") ->  | E14: ALB | J14: 0 | N14: 0
A15: =IF(COUNTRY_INFO!A15=0," ",COUNTRY_INFO!A15) -> Equatorial Guinea | B15: =IF(COUNTRY_INFO!B15=0," ",COUNTRY_INFO!B15) -> Centro Sur | C15: =IF(COUNTRY_INFO!C15=0," ",COUNTRY_INFO!C15) -> Evinayong | D15: =IF(OR(COUNTRY_INFO!$U$9:$U$1000="T3 (ALB/MBD)",COUNTRY_INFO!$V$9:$V$1000="T3 (ALB/MBD)"), "T3 (ALB/MBD)", " ") ->  | E15: ALB | J15: 0 | N15: 0
A16: =IF(COUNTRY_INFO!A16=0," ",COUNTRY_INFO!A16) -> Equatorial Guinea | B16: =IF(COUNTRY_INFO!B16=0," ",COUNTRY_INFO!B16) -> Centro Sur | C16: =IF(COUNTRY_INFO!C16=0," ",COUNTRY_INFO!C16) -> Niefang | D16: =IF(OR(COUNTRY_INFO!$U$9:$U$1000="T3 (ALB/MBD)",COUNTRY_INFO!$V$9:$V$1000="T3 (ALB/MBD)"), "T3 (ALB/MBD)", " ") ->  | E16: ALB | J16: 0 | N16: 0
A17: =IF(COUNTRY_INFO!A17=0," ",COUNTRY_INFO!A17) -> Equatorial Guinea | B17: =IF(COUNTRY_INFO!B17=0," ",COUNTRY_INFO!B17) -> Kientem | C17: =IF(COUNTRY_INFO!C17=0," ",COUNTRY_INFO!C17) -> Ebebiyin | D17: =IF(OR(COUNTRY_INFO!$U$9:$U$1000="T3 (ALB/MBD)",COUNTRY_INFO!$V$9:$V$1000="T3 (ALB/MBD)"), "T3 (ALB/MBD)", " ") ->  | E17: ALB | J17: 0 | N17: 0
A18: =IF(COUNTRY_INFO!A18=0," ",COUNTRY_INFO!A18) -> Equatorial Guinea | B18: =IF(COUNTRY_INFO!B18=0," ",COUNTRY_INFO!B18) -> Kientem | C18: =IF(COUNTRY_INFO!C18=0," ",COUNTRY_INFO!C18) -> Micomiseng | D18: =IF(OR(COUNTRY_INFO!$U$9:$U$1000="T3 (ALB/MBD)",COUNTRY_INFO!$V$9:$V$1000="T3 (ALB/MBD)"), "T3 (ALB/MBD)", " ") ->  | E18: ALB | J18: 0 | N18: 0
A19: =IF(COUNTRY_INFO!A19=0," ",COUNTRY_INFO!A19) -> Equatorial Guinea | B19: =IF(COUNTRY_INFO!B19=0," ",COUNTRY_INFO!B19) -> Kientem | C19: =IF(COUNTRY_INFO!C19=0," ",COUNTRY_INFO!C19) -> Nsoknsomo | D19: =IF(OR(COUNTRY_INFO!$U$9:$U$1000="T3 (ALB/MBD)",COUNTRY_INFO!$V$9:$V$1000="T3 (ALB/MBD)"), "T3 (ALB/MBD)", " ") ->  | E19: ALB | J19: 0 | N19: 0
A20: =IF(COUNTRY_INFO!A20=0," ",COUNTRY_INFO!A20) -> Equatorial Guinea | B20: =IF(COUNTRY_INFO!B20=0," ",COUNTRY_INFO!B20) -> Litoral | C20: =IF(COUNTRY_INFO!C20=0," ",COUNTRY_INFO!C20) -> Bata | D20: =IF(OR(COUNTRY_INFO!$U$9:$U$1000="T3 (ALB/MBD)",COUNTRY_INFO!$V$9:$V$1000="T3 (ALB/MBD)"), "T3 (ALB/MBD)", " ") ->  | E20: ALB | J20: 0 | N20: 0
A21: =IF(COUNTRY_INFO!A21=0," ",COUNTRY_INFO!A21) -> Equatorial Guinea | B21: =IF(COUNTRY_INFO!B21=0," ",COUNTRY_INFO!B21) -> Litoral | C21: =IF(COUNTRY_INFO!C21=0," ",COUNTRY_INFO!C21) -> Kogo | D21: =IF(OR(COUNTRY_INFO!$U$9:$U$1000="T3 (ALB/MBD)",COUNTRY_INFO!$V$9:$V$1000="T3 (ALB/MBD)"), "T3 (ALB/MBD)", " ") ->  | E21: ALB | J21: 0 | N21: 0
A22: =IF(COUNTRY_INFO!A22=0," ",COUNTRY_INFO!A22) -> Equatorial Guinea | B22: =IF(COUNTRY_INFO!B22=0," ",COUNTRY_INFO!B22) -> Litoral | C22: =IF(COUNTRY_INFO!C22=0," ",COUNTRY_INFO!C22) -> Mbini | D22: =IF(OR(COUNTRY_INFO!$U$9:$U$1000="T3 (ALB/MBD)",COUNTRY_INFO!$V$9:$V$1000="T3 (ALB/MBD)"), "T3 (ALB/MBD)", " ") ->  | E22: ALB | J22: 0 | N22: 0
A23: =IF(COUNTRY_INFO!A23=0," ",COUNTRY_INFO!A23) -> Equatorial Guinea | B23: =IF(COUNTRY_INFO!B23=0," ",COUNTRY_INFO!B23) -> Welenzas | C23: =IF(COUNTRY_INFO!C23=0," ",COUNTRY_INFO!C23) -> Akonibe | D23: =IF(OR(COUNTRY_INFO!$U$9:$U$1000="T3 (ALB/MBD)",COUNTRY_INFO!$V$9:$V$1000="T3 (ALB/MBD)"), "T3 (ALB/MBD)", " ") ->  | E23: ALB | J23: 0 | N23: 0
A24: =IF(COUNTRY_INFO!A24=0," ",COUNTRY_INFO!A24) -> Equatorial Guinea | B24: =IF(COUNTRY_INFO!B24=0," ",COUNTRY_INFO!B24) -> Welenzas | C24: =IF(COUNTRY_INFO!C24=0," ",COUNTRY_INFO!C24) -> Anisok | D24: =IF(OR(COUNTRY_INFO!$U$9:$U$1000="T3 (ALB/MBD)",COUNTRY_INFO!$V$9:$V$1000="T3 (ALB/MBD)"), "T3 (ALB/MBD)", " ") ->  | E24: ALB | J24: 0 | N24: 0
A25: =IF(COUNTRY_INFO!A25=0," ",COUNTRY_INFO!A25) -> Equatorial Guinea | B25: =IF(COUNTRY_INFO!B25=0," ",COUNTRY_INFO!B25) -> Welenzas | C25: =IF(COUNTRY_INFO!C25=0," ",COUNTRY_INFO!C25) -> Mongomo | D25: =IF(OR(COUNTRY_INFO!$U$9:$U$1000="T3 (ALB/MBD)",COUNTRY_INFO!$V$9:$V$1000="T3 (ALB/MBD)"), "T3 (ALB/MBD)", " ") ->  | E25: ALB | J25: 0 | N25: 0
A26: =IF(COUNTRY_INFO!A26=0," ",COUNTRY_INFO!A26) -> Equatorial Guinea | B26: =IF(COUNTRY_INFO!B26=0," ",COUNTRY_INFO!B26) -> Welenzas | C26: =IF(COUNTRY_INFO!C26=0," ",COUNTRY_INFO!C26) -> Nsork | D26: =IF(OR(COUNTRY_INFO!$U$9:$U$1000="T3 (ALB/MBD)",COUNTRY_INFO!$V$9:$V$1000="T3 (ALB/MBD)"), "T3 (ALB/MBD)", " ") ->  | E26: ALB | J26: 0 | N26: 0

Sheet T3_R2
A1: T 3 - Albendazole (ALB) ou Mebendazole (MBD) - Tournée 2
A2: Structure administrative, population nécessitant une chimioprévention par groupe d'âge, population traitée par groupe d'âge et couverture
A4: TOTAL | G4: =SUM(G$9:G$1000) -> 0 | H4: 0 | I4: 0 | J4: 0 | K4: 0 | L4: 0 | M4: 0 | N4: 0 | O4: =IF(G4<>0, IF(K4/G4*100=0, "-", K4/G4*100), " ") ->  | P4: =IF(H4<>0, IF(L4/H4*100=0, "-", L4/H4*100), " ") ->  | Q4: =IF(I4<>0, IF(M4/I4*100=0, "-", M4/I4*100), " ") ->  | R4: =IF(J4<>0, IF(N4/J4*100=0, "-", N4/J4*100), " ") -> 
A6: Structure administrative du pays | D6: Mise en oeuvre de la CP | E6: Médica-ment | F6: Date | G6: Population ciblée pour T3 | K6: Population traitée | O6: Couverture du Programme (%)
A7: Pays | B7: Région/Département | C7: District | G7: EAPréS | H7: EAS | I7: Adultes | J7: Total | K7: EAPréS | L7: EAS | M7: Adultes | N7: Total | O7: EAPréS | P7: EAS | Q7: Adultes | R7: Total
A9: =IF(COUNTRY_INFO!A9=0," ",COUNTRY_INFO!A9) -> Equatorial Guinea | B9: =IF(COUNTRY_INFO!B9=0," ",COUNTRY_INFO!B9) -> Annobon | C9: =IF(COUNTRY_INFO!C9=0," ",COUNTRY_INFO!C9) -> Annonbon | D9: =IF(AND(COUNTRY_INFO!$U$9:$U$1000="T3 (ALB/MBD)",COUNTRY_INFO!$V$9:$V$1000="T3 (ALB/MBD)"), "T3 (ALB/MBD)", " ") ->  | J9: =SUM(G9:I9) -> 0 | N9: =SUM(K9:M9) -> 0 | O9: =IF(G9<>0, IF(K9/G9*100=0, "-", K9/G9*100), " ") -> 
A10: =IF(COUNTRY_INFO!A10=0," ",COUNTRY_INFO!A10) -> Equatorial Guinea | B10: =IF(COUNTRY_INFO!B10=0," ",COUNTRY_INFO!B10) -> Bioko Norte | C10: =IF(COUNTRY_INFO!C10=0," ",COUNTRY_INFO!C10) -> Baney | D10: =IF(AND(COUNTRY_INFO!$U$9:$U$1000="T3 (ALB/MBD)",COUNTRY_INFO!$V$9:$V$1000="T3 (ALB/MBD)"), "T3 (ALB/MBD)", " ") ->  | J10: =SUM(G10:I10) -> 0 | N10: =SUM(K10:M10) -> 0 | O10: =IF(G10<>0, IF(K10/G10*100=0, "-", K10/G10*100), " ") ->  | P10: =IF(H10<>0, IF(L10/H10*100=0, "-", L10/H10*100), " ") ->  | Q10: =IF(I10<>0, IF(M10/I10*100=0, "-", M10/I10*100), " ") ->  | R10: =IF(J10<>0, IF(N10/J10*100=0, "-", N10/J10*100), " ") -> 
A11: =IF(COUNTRY_INFO!A11=0," ",COUNTRY_INFO!A11) -> Equatorial Guinea | B11: =IF(COUNTRY_INFO!B11=0," ",COUNTRY_INFO!B11) -> Bioko Norte | C11: =IF(COUNTRY_INFO!C11=0," ",COUNTRY_INFO!C11) -> Malabo | D11: =IF(AND(COUNTRY_INFO!$U$9:$U$1000="T3 (ALB/MBD)",COUNTRY_INFO!$V$9:$V$1000="T3 (ALB/MBD)"), "T3 (ALB/MBD)", " ") ->  | J11: 0 | N11: 0
A12: =IF(COUNTRY_INFO!A12=0," ",COUNTRY_INFO!A12) -> Equatorial Guinea | B12: =IF(COUNTRY_INFO!B12=0," ",COUNTRY_INFO!B12) -> Bioko Sur | C12: =IF(COUNTRY_INFO!C12=0," ",COUNTRY_INFO!C12) -> Luba | D12: =IF(AND(COUNTRY_INFO!$U$9:$U$1000="T3 (ALB/MBD)",COUNTRY_INFO!$V$9:$V$1000="T3 (ALB/MBD)"), "T3 (ALB/MBD)", " ") ->  | J12: 0 | N12: 0
A13: =IF(COUNTRY_INFO!A13=0," ",COUNTRY_INFO!A13) -> Equatorial Guinea | B13: =IF(COUNTRY_INFO!B13=0," ",COUNTRY_INFO!B13) -> Bioko Sur | C13: =IF(COUNTRY_INFO!C13=0," ",COUNTRY_INFO!C13) -> Riaba | D13: =IF(AND(COUNTRY_INFO!$U$9:$U$1000="T3 (ALB/MBD)",COUNTRY_INFO!$V$9:$V$1000="T3 (ALB/MBD)"), "T3 (ALB/MBD)", " ") ->  | J13: 0 | N13: 0
A14: =IF(COUNTRY_INFO!A14=0," ",COUNTRY_INFO!A14) -> Equatorial Guinea | B14: =IF(COUNTRY_INFO!B14=0," ",COUNTRY_INFO!B14) -> Centro Sur | C14: =IF(COUNTRY_INFO!C14=0," ",COUNTRY_INFO!C14) -> Acurenam | D14: =IF(AND(COUNTRY_INFO!$U$9:$U$1000="T3 (ALB/MBD)",COUNTRY_INFO!$V$9:$V$1000="T3 (ALB/MBD)"), "T3 (ALB/MBD)", " ") ->  | J14: 0 | N14: 0
A15: =IF(COUNTRY_INFO!A15=0," ",COUNTRY_INFO!A15) -> Equatorial Guinea | B15: =IF(COUNTRY_INFO!B15=0," ",COUNTRY_INFO!B15) -> Centro Sur | C15: =IF(COUNTRY_INFO!C15=0," ",COUNTRY_INFO!C15) -> Evinayong | D15: =IF(AND(COUNTRY_INFO!$U$9:$U$1000="T3 (ALB/MBD)",COUNTRY_INFO!$V$9:$V$1000="T3 (ALB/MBD)"), "T3 (ALB/MBD)", " ") ->  | J15: 0 | N15: 0
A16: =IF(COUNTRY_INFO!A16=0," ",COUNTRY_INFO!A16) -> Equatorial Guinea | B16: =IF(COUNTRY_INFO!B16=0," ",COUNTRY_INFO!B16) -> Centro Sur | C16: =IF(COUNTRY_INFO!C16=0," ",COUNTRY_INFO!C16) -> Niefang | D16: =IF(AND(COUNTRY_INFO!$U$9:$U$1000="T3 (ALB/MBD)",COUNTRY_INFO!$V$9:$V$1000="T3 (ALB/MBD)"), "T3 (ALB/MBD)", " ") ->  | J16: 0 | N16: 0
A17: =IF(COUNTRY_INFO!A17=0," ",COUNTRY_INFO!A17) -> Equatorial Guinea | B17: =IF(COUNTRY_INFO!B17=0," ",COUNTRY_INFO!B17) -> Kientem | C17: =IF(COUNTRY_INFO!C17=0," ",COUNTRY_INFO!C17) -> Ebebiyin | D17: =IF(AND(COUNTRY_INFO!$U$9:$U$1000="T3 (ALB/MBD)",COUNTRY_INFO!$V$9:$V$1000="T3 (ALB/MBD)"), "T3 (ALB/MBD)", " ") ->  | J17: 0 | N17: 0
A18: =IF(COUNTRY_INFO!A18=0," ",COUNTRY_INFO!A18) -> Equatorial Guinea | B18: =IF(COUNTRY_INFO!B18=0," ",COUNTRY_INFO!B18) -> Kientem | C18: =IF(COUNTRY_INFO!C18=0," ",COUNTRY_INFO!C18) -> Micomiseng | D18: =IF(AND(COUNTRY_INFO!$U$9:$U$1000="T3 (ALB/MBD)",COUNTRY_INFO!$V$9:$V$1000="T3 (ALB/MBD)"), "T3 (ALB/MBD)", " ") ->  | J18: 0 | N18: 0
A19: =IF(COUNTRY_INFO!A19=0," ",COUNTRY_INFO!A19) -> Equatorial Guinea | B19: =IF(COUNTRY_INFO!B19=0," ",COUNTRY_INFO!B19) -> Kientem | C19: =IF(COUNTRY_INFO!C19=0," ",COUNTRY_INFO!C19) -> Nsoknsomo | D19: =IF(AND(COUNTRY_INFO!$U$9:$U$1000="T3 (ALB/MBD)",COUNTRY_INFO!$V$9:$V$1000="T3 (ALB/MBD)"), "T3 (ALB/MBD)", " ") ->  | J19: 0 | N19: 0
A20: =IF(COUNTRY_INFO!A20=0," ",COUNTRY_INFO!A20) -> Equatorial Guinea | B20: =IF(COUNTRY_INFO!B20=0," ",COUNTRY_INFO!B20) -> Litoral | C20: =IF(COUNTRY_INFO!C20=0," ",COUNTRY_INFO!C20) -> Bata | D20: =IF(AND(COUNTRY_INFO!$U$9:$U$1000="T3 (ALB/MBD)",COUNTRY_INFO!$V$9:$V$1000="T3 (ALB/MBD)"), "T3 (ALB/MBD)", " ") ->  | J20: 0 | N20: 0
A21: =IF(COUNTRY_INFO!A21=0," ",COUNTRY_INFO!A21) -> Equatorial Guinea | B21: =IF(COUNTRY_INFO!B21=0," ",COUNTRY_INFO!B21) -> Litoral | C21: =IF(COUNTRY_INFO!C21=0," ",COUNTRY_INFO!C21) -> Kogo | D21: =IF(AND(COUNTRY_INFO!$U$9:$U$1000="T3 (ALB/MBD)",COUNTRY_INFO!$V$9:$V$1000="T3 (ALB/MBD)"), "T3 (ALB/MBD)", " ") ->  | J21: 0 | N21: 0
A22: =IF(COUNTRY_INFO!A22=0," ",COUNTRY_INFO!A22) -> Equatorial Guinea | B22: =IF(COUNTRY_INFO!B22=0," ",COUNTRY_INFO!B22) -> Litoral | C22: =IF(COUNTRY_INFO!C22=0," ",COUNTRY_INFO!C22) -> Mbini | D22: =IF(AND(COUNTRY_INFO!$U$9:$U$1000="T3 (ALB/MBD)",COUNTRY_INFO!$V$9:$V$1000="T3 (ALB/MBD)"), "T3 (ALB/MBD)", " ") ->  | J22: 0 | N22: 0
A23: =IF(COUNTRY_INFO!A23=0," ",COUNTRY_INFO!A23) -> Equatorial Guinea | B23: =IF(COUNTRY_INFO!B23=0," ",COUNTRY_INFO!B23) -> Welenzas | C23: =IF(COUNTRY_INFO!C23=0," ",COUNTRY_INFO!C23) -> Akonibe | D23: =IF(AND(COUNTRY_INFO!$U$9:$U$1000="T3 (ALB/MBD)",COUNTRY_INFO!$V$9:$V$1000="T3 (ALB/MBD)"), "T3 (ALB/MBD)", " ") ->  | J23: 0 | N23: 0
A24: =IF(COUNTRY_INFO!A24=0," ",COUNTRY_INFO!A24) -> Equatorial Guinea | B24: =IF(COUNTRY_INFO!B24=0," ",COUNTRY_INFO!B24) -> Welenzas | C24: =IF(COUNTRY_INFO!C24=0," ",COUNTRY_INFO!C24) -> Anisok | D24: =IF(AND(COUNTRY_INFO!$U$9:$U$1000="T3 (ALB/MBD)",COUNTRY_INFO!$V$9:$V$1000="T3 (ALB/MBD)"), "T3 (ALB/MBD)", " ") ->  | J24: 0 | N24: 0
A25: =IF(COUNTRY_INFO!A25=0," ",COUNTRY_INFO!A25) -> Equatorial Guinea | B25: =IF(COUNTRY_INFO!B25=0," ",COUNTRY_INFO!B25) -> Welenzas | C25: =IF(COUNTRY_INFO!C25=0," ",COUNTRY_INFO!C25) -> Mongomo | D25: =IF(AND(COUNTRY_INFO!$U$9:$U$1000="T3 (ALB/MBD)",COUNTRY_INFO!$V$9:$V$1000="T3 (ALB/MBD)"), "T3 (ALB/MBD)", " ") ->  | J25: 0 | N25: 0
A26: =IF(COUNTRY_INFO!A26=0," ",COUNTRY_INFO!A26) -> Equatorial Guinea | B26: =IF(COUNTRY_INFO!B26=0," ",COUNTRY_INFO!B26) -> Welenzas | C26: =IF(COUNTRY_INFO!C26=0," ",COUNTRY_INFO!C26) -> Nsork | D26: =IF(AND(COUNTRY_INFO!$U$9:$U$1000="T3 (ALB/MBD)",COUNTRY_INFO!$V$9:$V$1000="T3 (ALB/MBD)"), "T3 (ALB/MBD)", " ") ->  | J26: 0 | N26: 0

Sheet DISTRICT
A1: Nombre d'individus traités
A2: Structure administrative, population traitée par groupe d'âge et sexe
A4: TOTAL | D4: =SUM(D$9:D$1000) -> 948512 | E4: =SUM(E$9:E$1000) -> 0 | F4: =SUM(F$9:F$1000) -> 0 | G4: =SUM(G$9:G$1000) -> 191498 | H4: =SUM(H$9:H$1000) -> 191498 | I4: =IF(D4>0, IF(H4/D4*100<>0, H4/D4*100, "-"),0) -> 20.18930704 | J4: =SUM(J$9:J$1000) -> 0 | K4: =SUM(K$9:K$1000) -> 0 | L4: =SUM(L$9:L$1000) -> 0 | M4: =SUM(M$9:M$1000) -> 0 | N4: =SUM(N$9:N$1000) -> 0 | O4: =IF(J4>0, IF(N4/J4*100<>0, N4/J4*100, "-"),0) -> 0 | P4: =SUM(P$9:P$1000) -> 387783 | Q4: =SUM(Q$9:Q$1000) -> 0 | R4: =SUM(R$9:R$1000) -> 0 | S4: =SUM(S$9:S$1000) -> 264905 | T4: =SUM(T$9:T$1000) -> 41994.30231 | V4: 87511.825 | X4: =SUM(X$9:X$1000) -> 129506.1273 | Y4: =IF(P4>0, IF(X4/P4*100<>0, X4/P4*100, "-"),0) -> 33.39654583 | Z4: =SUM(Z$9:Z$1000) -> 137140.8 | AA4: 0 | AB4: 0 | AC4: 0 | AD4: 0 | AF4: 0 | AH4: 0 | AI4: =IF(Z4>0, IF(AH4/Z4*100<>0, AH4/Z4*100, "-"),0) -> -
A6: Structure administrative du pays | D6: Population nécessitant la CP pour FL | E6: Population traitée pour la filariose lymphatique | J6: Population nécessitant la CP pour ONCHO | K6: Population traitée pour l'onchocercose | P6: Population nécessitant la CP pour STH | Q6: Population traitée pour les géohelminthiases | Z6: Population nécessitant la CP pour SCH | AA6: Population traitée pour la schistosomiase | AP6: =SUM(AP9:AP1000) -> 40238.04855 | AQ6: 125745 | AR6: 262038 | AS6: 616736.9188 | AT6: =SUM(AT9:AT1000) -> 1044757.967 | AU6: =COUNTIF(AU9:AU1000,"Y") -> 4 | AV6: =SUM(AV9:AV1000) -> 45321.42322 | AW6: 94444.70409 | AX6: 125138.8727 | AY6: =SUM(AY9:AY1000) -> 264905 | AZ6: 41994.30231 | BA6: 87511.825 | BB6: 125138.8727 | BC6: 254645 | BD6: =IF(AT6<>0,BC6/AT6,0) -> 0.2437358775
A7: Pays | B7: Région/Département | C7: District | E7: Masculine | F7: Féminine | G7: Total traité | H7: Total traité ayant besoin de CP | I7: (%) | K7: Masculine | L7: Féminine | M7: Total traité | N7: Total traité ayant besoin de CP | O7: (%) | Q7: Masculine | R7: Féminine | S7: Total traité | T7: EAPréS traité ayant besoin de CP | U7: EAPréS (%) | V7: EAS traité ayant besoin de CP | W7: EAS (%) | X7: Total traité ayant besoin de CP | Y7: (%) | AA7: Masculine | AB7: Féminine | AC7: Total traité | AD7: EAS traité ayant besoin de CP | AE7: EAS (%) | AF7: Adultes traité ayant besoin de CP | AG7: Adultes (%) | AH7: Total traité ayant besoin de CP | AI7: (%) | AK7: LF | AL7: ONCHO | AM7: STH | AN7: SCH-SAC | AO7: SCH_Adults | AP7: <1 | AQ7: PreSAC | AR7: SAC | AS7: Adults | AT7: Total | AU7: Dis | AV7: PreSAC | AW7: SAC | AX7: Adults | AY7: Total | AZ7: PreSAC | BA7: SAC | BB7: Adults | BC7: Total | BD7: Coverage
A9: =IF(COUNTRY_INFO!A9=0," ",COUNTRY_INFO!A9) -> Equatorial Guinea | B9: =IF(COUNTRY_INFO!B9=0," ",COUNTRY_INFO!B9) -> Annobon | C9: =IF(COUNTRY_INFO!C9=0," ",COUNTRY_INFO!C9) -> Annonbon | D9: =COUNTRY_INFO!M9 -> 0 | G9: =MAX('MDA1'!M9,'MDA4'!U9) -> 0 | H9: =IF(AND(COUNTRY_INFO!H9>0,COUNTRY_INFO!H9<4),IF(D9>MAX('MDA1'!M9,'MDA4'!U9),MAX('MDA1'!M9,'MDA4'!U9),D9),0) -> 0 | I9: =IF(AND(COUNTRY_INFO!H9>0,COUNTRY_INFO!H9<4), IF(G9/D9*100<>0, IF(G9/D9*100>100,100,G9/D9*100), "-"),0) -> 0 | J9: =COUNTRY_INFO!N9 -> Inconnu | M9: =MAX('MDA1'!M9,MAX('MDA3'!I9,'MDA3'!L9)+MAX('MDA3'!J9,'MDA3'!M9)) -> 0 | N9: =IF(AND(COUNTRY_INFO!I9>0,COUNTRY_INFO!I9<4),IF(J9>MAX('MDA1'!M9,MAX('MDA3'!I9,'MDA3'!L9)+MAX('MDA3'!J9,'MDA3'!M9)),MAX('MDA1'!M9,MAX('MDA3'!I9,'MDA3'!L9)+MAX('MDA3'!J9,'MDA3'!M9)),J9),0) -> 0 | O9: =IF(AND(COUNTRY_INFO!I9>0,COUNTRY_INFO!I9<4), IF(M9/J9*100<>0, IF(M9/J9*100>100,100,M9/J9*100), "-"),0) -> 0 | P9: =COUNTRY_INFO!O9 -> 2693 | S9: =SUM(MAX('MDA4'!R9, 'T1'!L9, MAX(T3_R1!K9, T3_R2!K9)), MAX('MDA1'!K9, 'MDA4'!S9, 'T1'!M9, MAX(T3_R1!L9, T3_R2!L9)), MAX('MDA1'!L9, 'MDA4'!T9, 'T1'!N9, MAX(T3_R1!M9, T3_R2!M9))) -> 0 | T9: =IF(AND(COUNTRY_INFO!J9>1,COUNTRY_INFO!J9<4),IF(COUNTRY_INFO!E9>MAX('MDA4'!R9,'T1'!L9,MAX(T3_R1!K9,T3_R2!K9)),MAX('MDA4'!R9,'T1'!L9,MAX(T3_R1!K9,T3_R2!K9)),COUNTRY_INFO!E9),0) -> 0 | U9: =IF(AND(COUNTRY_INFO!J9>1,COUNTRY_INFO!J9<4), IF(T9/COUNTRY_INFO!E9*100<>0, IF(T9/COUNTRY_INFO!E9*100>100,100,T9/COUNTRY_INFO!E9*100), "-"),0) -> - | V9: =IF(AND(COUNTRY_INFO!J9>1,COUNTRY_INFO!J9<4),IF(COUNTRY_INFO!F9>MAX('MDA1'!K9,'MDA4'!S9,'T1'!M9,MAX(T3_R1!L9,T3_R2!L9)),MAX('MDA1'!K9,'MDA4'!S9,'T1'!M9,MAX(T3_R1!L9,T3_R2!L9)),COUNTRY_INFO!F9),0) -> 0 | W9: =IF(AND(COUNTRY_INFO!J9>1,COUNTRY_INFO!J9<4), IF(V9/COUNTRY_INFO!F9*100<>0, IF(V9/COUNTRY_INFO!F9*100>100,100,V9/COUNTRY_INFO!F9*100), "-"),0) -> - | X9: =SUM(T9,V9) -> 0 | Y9: =IF(AND(COUNTRY_INFO!J9>1,COUNTRY_INFO!J9<4), IF(S9/P9*100<>0, IF(X9/P9*100>100,100,X9/P9*100), "-"),0) -> - | Z9: =COUNTRY_INFO!P9 -> 0 | AC9: =MAX('T1'!L9,'T2'!J9)+MAX('T1'!M9,'T2'!K9)+MAX('T1'!N9,'T2'!L9) -> 0 | AD9: =IF(COUNTRY_INFO!K9=1,IF(COUNTRY_INFO!F9*0.33>MAX('T1'!M9,'T2'!K9),MAX('T1'!M9,'T2'!K9),COUNTRY_INFO!F9*0.33),IF(COUNTRY_INFO!K9=2,IF(COUNTRY_INFO!F9*0.5>MAX('T1'!M9,'T2'!K9),MAX('T1'!M9,'T2'!K9),COUNTRY_INFO!F9*0.5),IF(COUNTRY_INFO!K9=3,IF(COUNTRY_INFO!F9>MAX('T1'!M9,'T2'!K9),MAX('T1'!M9,'T2'!K9),COUNTRY_INFO!F9),0))) -> 0 | AE9: =IF(AND(COUNTRY_INFO!K9>0,COUNTRY_INFO!K9<4),IF(Z9>0,IF(COUNTRY_INFO!K9=1, AD9/(COUNTRY_INFO!F9*0.33)*100, IF(COUNTRY_INFO!K9=2, AD9/(COUNTRY_INFO!F9*0.5)*100, IF(COUNTRY_INFO!K9=3, AD9/COUNTRY_INFO!F9*100))),"-"),0) -> 0 | AF9: =IF(COUNTRY_INFO!K9=2,IF(COUNTRY_INFO!G9*0.2>MAX('T1'!N9,'T2'!L9),MAX('T1'!N9,'T2'!L9),COUNTRY_INFO!G9*0.2),IF(COUNTRY_INFO!K9=3,IF(COUNTRY_INFO!G9>MAX('T1'!N9,'T2'!L9),MAX('T1'!N9,'T2'!L9),COUNTRY_INFO!G9),0)) -> 0 | AG9: =IF(AND(COUNTRY_INFO!K9>0,COUNTRY_INFO!K9<4),IF(Z9>0,IF(COUNTRY_INFO!K9=1, 0, IF(COUNTRY_INFO!K9=2, AF9/(COUNTRY_INFO!G9*0.2)*100, IF(COUNTRY_INFO!K9=3, AF9/COUNTRY_INFO!G9*100))),"-"),0) -> 0 | AH9: =SUM(AD9,AF9) -> 0 | AI9: =IF(AND(COUNTRY_INFO!K9>0,COUNTRY_INFO!K9<4), IF(AC9/Z9*100<>0, IF(AH9/Z9*100>100,100,AH9/Z9*100), "-"),0) -> 0 | AK9: =IF(AND(D9<>0, D9<>"Inconnu",D9<>"Interrompu",D9<>"Non requis"),D9/COUNTRY_INFO!D9, 0) -> 0 | AL9: =IF(AND(J9<>0,J9<>"Inconnu",J9<>"Interrompu",J9<>"Non requis"),J9/COUNTRY_INFO!D9, 0) -> 0 | AM9: =IF(AND(P9<>0,P9<>"Inconnu",P9<>"Non requis"),P9/(COUNTRY_INFO!E9+COUNTRY_INFO!F9), 0) -> 1 | AN9: =IF(AND(Z9<>0,Z9<>"Inconnu",Z9<>"Non requis"),IF(COUNTRY_INFO!K9=1,1,IF(COUNTRY_INFO!K9=2,0.5*COUNTRY_INFO!F9/(0.5*COUNTRY_INFO!F9+0.2*COUNTRY_INFO!G9),IF(COUNTRY_INFO!K9=3,COUNTRY_INFO!F9/(COUNTRY_INFO!F9+COUNTRY_INFO!G9)))),0) -> 0 | AO9: =IF(AND(Z9<>0,Z9<>"Inconnu",Z9<>"Non requis"),IF(COUNTRY_INFO!K9=1,0,IF(COUNTRY_INFO!K9=2,0.2*COUNTRY_INFO!G9/(0.5*COUNTRY_INFO!F9+0.2*COUNTRY_INFO!G9),IF(COUNTRY_INFO!K9=3,COUNTRY_INFO!G9/(COUNTRY_INFO!F9+COUNTRY_INFO!G9)))),0) -> 0 | AP9: =MAX(COUNTRY_INFO!D9*AK9*PROFILE!$G$7,COUNTRY_INFO!D9*AL9*PROFILE!$G$7) -> 0 | AQ9: =MAX(COUNTRY_INFO!D9*AK9*PROFILE!$G$8,COUNTRY_INFO!D9*AL9*PROFILE!$G$8,COUNTRY_INFO!D9*AM9*PROFILE!$G$8) -> 873.1761138 | AR9: =MAX(COUNTRY_INFO!D9*AK9*PROFILE!$G$9,COUNTRY_INFO!D9*AL9*PROFILE!$G$9,COUNTRY_INFO!D9*AM9*PROFILE!$G$9,IF(AND(DISTRICT!Z9<>"Inconnu",Z9<>"Non requis"),COUNTRY_INFO!P9*DISTRICT!AN9,0)) -> 1819.597777 | AS9: =MAX(COUNTRY_INFO!D9*AK9*PROFILE!$G$10,COUNTRY_INFO!D9*AL9*PROFILE!$G$10,IF(AND(DISTRICT!Z9<>"Inconnu",Z9<>"Non requis"),COUNTRY_INFO!P9*DISTRICT!AO9,0)) -> 0 | AT9: =SUM(AP9:AS9) -> 2692.773891 | AU9: =IF(COUNTIFS(AK9:AN9,">0")=0,0, IF(COUNTIFS(AK9:AN9,">0")<=IF(AND(OR(D9>=0,D9="Non requis",D9="Inconnu",D9="Interrompu"),D9>0,H9>0),1,0)+IF(AND(OR(J9>=0,J9="Non requis",J9="Inconnu",J9="Interrompu"),J9>0,N9>0),1,0)+IF(AND(OR(P9>=0,P9="Non requis",P9="Inconnu"),P9>0,X9>0),1,0)+IF(AND(OR(Z9>=0,Z9="Non requis",Z9="Inconnu"),Z9>0,AH9>0),1,0),"Y",0)) -> 0 | AV9: =MAX('MDA4'!R9,'T1'!L9,'T2'!J9,T3_R1!K9,T3_R2!K9) -> 0 | AW9: =MAX('MDA1'!K9,'MDA4'!S9,'MDA3'!I9,'MDA3'!L9,'T1'!M9,'T2'!K9,T3_R1!L9,T3_R2!L9) -> 0 | AX9: =MAX('MDA1'!L9,'MDA4'!T9,'MDA3'!J9,'MDA3'!M9,'T1'!N9,'T2'!L9,T3_R1!M9,T3_R2!M9) -> 0 | AY9: =SUM(AV9:AX9) -> 0 | AZ9: =MAX('MDA4'!R9,T9) -> 0 | BA9: =MAX('MDA1'!K9,'MDA4'!S9,'MDA3'!I9,'MDA3'!L9,V9,AD9) -> 0 | BB9: =MAX('MDA1'!L9,'MDA4'!T9,'MDA3'!J9,'MDA3'!M9,AF9) -> 0 | BC9: =IF(AT9<SUM(AZ9:BB9), AT9,SUM(AZ9:BB9)) -> 0 | BD9: =IF(AT9<>0,BC9/AT9*100,0) -> 0
A10: =IF(COUNTRY_INFO!A10=0," ",COUNTRY_INFO!A10) -> Equatorial Guinea | B10: =IF(COUNTRY_INFO!B10=0," ",COUNTRY_INFO!B10) -> Bioko Norte | C10: =IF(COUNTRY_INFO!C10=0," ",COUNTRY_INFO!C10) -> Baney | D10: =COUNTRY_INFO!M10 -> 30782 | G10: =MAX('MDA1'!M10,'MDA4'!U10) -> 9774 | H10: =IF(AND(COUNTRY_INFO!H10>0,COUNTRY_INFO!H10<4),IF(D10>MAX('MDA1'!M10,'MDA4'!U10),MAX('MDA1'!M10,'MDA4'!U10),D10),0) -> 9774 | I10: =IF(AND(COUNTRY_INFO!H10>0,COUNTRY_INFO!H10<4), IF(G10/D10*100<>0, IF(G10/D10*100>100,100,G10/D10*100), "-"),0) -> 31.75232279 | J10: =COUNTRY_INFO!N10 -> Interrompu | M10: =MAX('MDA1'!M10,MAX('MDA3'!I10,'MDA3'!L10)+MAX('MDA3'!J10,'MDA3'!M10)) -> 0 | N10: =IF(AND(COUNTRY_INFO!I10>0,COUNTRY_INFO!I10<4),IF(J10>MAX('MDA1'!M10,MAX('MDA3'!I10,'MDA3'!L10)+MAX('MDA3'!J10,'MDA3'!M10)),MAX('MDA1'!M10,MAX('MDA3'!I10,'MDA3'!L10)+MAX('MDA3'!J10,'MDA3'!M10)),J10),0) -> 0 | O10: =IF(AND(COUNTRY_INFO!I10>0,COUNTRY_INFO!I10<4), IF(M10/J10*100<>0, IF(M10/J10*100>100,100,M10/J10*100), "-"),0) -> 0 | P10: =COUNTRY_INFO!O10 -> 10214 | S10: =SUM(MAX('MDA4'!R10, 'T1'!L10, MAX(T3_R1!K10, T3_R2!K10)), MAX('MDA1'!K10, 'MDA4'!S10, 'T1'!M10, MAX(T3_R1!L10, T3_R2!L10)), MAX('MDA1'!L10, 'MDA4'!T10, 'T1'!N10, MAX(T3_R1!M10, T3_R2!M10))) -> 9774 | T10: =IF(AND(COUNTRY_INFO!J10>1,COUNTRY_INFO!J10<4),IF(COUNTRY_INFO!E10>MAX('MDA4'!R10,'T1'!L10,MAX(T3_R1!K10,T3_R2!K10)),MAX('MDA4'!R10,'T1'!L10,MAX(T3_R1!K10,T3_R2!K10)),COUNTRY_INFO!E10),0) -> 1098.273149 | U10: =IF(AND(COUNTRY_INFO!J10>1,COUNTRY_INFO!J10<4), IF(T10/COUNTRY_INFO!E10*100<>0, IF(T10/COUNTRY_INFO!E10*100>100,100,T10/COUNTRY_INFO!E10*100), "-"),0) -> 33.16042115 | V10: =IF(AND(COUNTRY_INFO!J10>1,COUNTRY_INFO!J10<4),IF(COUNTRY_INFO!F10>MAX('MDA1'!K10,'MDA4'!S10,'T1'!M10,MAX(T3_R1!L10,T3_R2!L10)),MAX('MDA1'!K10,'MDA4'!S10,'T1'!M10,MAX(T3_R1!L10,T3_R2!L10)),COUNTRY_INFO!F10),0) -> 2288.676638 | W10: =IF(AND(COUNTRY_INFO!J10>1,COUNTRY_INFO!J10<4), IF(V10/COUNTRY_INFO!F10*100<>0, IF(V10/COUNTRY_INFO!F10*100>100,100,V10/COUNTRY_INFO!F10*100), "-"),0) -> 33.15961516 | X10: =SUM(T10,V10) -> 3386.949787 | Y10: =IF(AND(COUNTRY_INFO!J10>1,COUNTRY_INFO!J10<4), IF(S10/P10*100<>0, IF(X10/P10*100>100,100,X10/P10*100), "-"),0) -> 33.15987651 | Z10: =COUNTRY_INFO!P10 -> 2277.66 | AC10: =MAX('T1'!L10,'T2'!J10)+MAX('T1'!M10,'T2'!K10)+MAX('T1'!N10,'T2'!L10) -> 0 | AD10: =IF(COUNTRY_INFO!K10=1,IF(COUNTRY_INFO!F10*0.33>MAX('T1'!M10,'T2'!K10),MAX('T1'!M10,'T2'!K10),COUNTRY_INFO!F10*0.33),IF(COUNTRY_INFO!K10=2,IF(COUNTRY_INFO!F10*0.5>MAX('T1'!M10,'T2'!K10),MAX('T1'!M10,'T2'!K10),COUNTRY_INFO!F10*0.5),IF(COUNTRY_INFO!K10=3,IF(COUNTRY_INFO!F10>MAX('T1'!M10,'T2'!K10),MAX('T1'!M10,'T2'!K10),COUNTRY_INFO!F10),0))) -> 0 | AE10: =IF(AND(COUNTRY_INFO!K10>0,COUNTRY_INFO!K10<4),IF(Z10>0,IF(COUNTRY_INFO!K10=1, AD10/(COUNTRY_INFO!F10*0.33)*100, IF(COUNTRY_INFO!K10=2, AD10/(COUNTRY_INFO!F10*0.5)*100, IF(COUNTRY_INFO!K10=3, AD10/COUNTRY_INFO!F10*100))),"-"),0) -> 0 | AF10: =IF(COUNTRY_INFO!K10=2,IF(COUNTRY_INFO!G10*0.2>MAX('T1'!N10,'T2'!L10),MAX('T1'!N10,'T2'!L10),COUNTRY_INFO!G10*0.2),IF(COUNTRY_INFO!K10=3,IF(COUNTRY_INFO!G10>MAX('T1'!N10,'T2'!L10),MAX('T1'!N10,'T2'!L10),COUNTRY_INFO!G10),0)) -> 0 | AG10: =IF(AND(COUNTRY_INFO!K10>0,COUNTRY_INFO!K10<4),IF(Z10>0,IF(COUNTRY_INFO!K10=1, 0, IF(COUNTRY_INFO!K10=2, AF10/(COUNTRY_INFO!G10*0.2)*100, IF(COUNTRY_INFO!K10=3, AF10/COUNTRY_INFO!G10*100))),"-"),0) -> 0 | AH10: =SUM(AD10,AF10) -> 0 | AI10: =IF(AND(COUNTRY_INFO!K10>0,COUNTRY_INFO!K10<4), IF(AC10/Z10*100<>0, IF(AH10/Z10*100>100,100,AH10/Z10*100), "-"),0) -> - | AK10: =IF(AND(D10<>0, D10<>"Inconnu",D10<>"Interrompu",D10<>"Non requis"),D10/COUNTRY_INFO!D10, 0) -> 1 | AL10: =IF(AND(J10<>0,J10<>"Inconnu",J10<>"Interrompu",J10<>"Non requis"),J10/COUNTRY_INFO!D10, 0) -> 0 | AM10: =IF(AND(P10<>0,P10<>"Inconnu",P10<>"Non requis"),P10/(COUNTRY_INFO!E10+COUNTRY_INFO!F10), 0) -> 1 | AN10: =IF(AND(Z10<>0,Z10<>"Inconnu",Z10<>"Non requis"),IF(COUNTRY_INFO!K10=1,1,IF(COUNTRY_INFO!K10=2,0.5*COUNTRY_INFO!F10/(0.5*COUNTRY_INFO!F10+0.2*COUNTRY_INFO!G10),IF(COUNTRY_INFO!K10=3,COUNTRY_INFO!F10/(COUNTRY_INFO!F10+COUNTRY_INFO!G10)))),0) -> 1 | AO10: =IF(AND(Z10<>0,Z10<>"Inconnu",Z10<>"Non requis"),IF(COUNTRY_INFO!K10=1,0,IF(COUNTRY_INFO!K10=2,0.2*COUNTRY_INFO!G10/(0.5*COUNTRY_INFO!F10+0.2*COUNTRY_INFO!G10),IF(COUNTRY_INFO!K10=3,COUNTRY_INFO!G10/(COUNTRY_INFO!F10+COUNTRY_INFO!G10)))),0) -> 0 | AP10: =MAX(COUNTRY_INFO!D10*AK10*PROFILE!$G$7,COUNTRY_INFO!D10*AL10*PROFILE!$G$7) -> 1305.842847 | AQ10: =MAX(COUNTRY_INFO!D10*AK10*PROFILE!$G$8,COUNTRY_INFO!D10*AL10*PROFILE!$G$8,COUNTRY_INFO!D10*AM10*PROFILE!$G$8) -> 3312.151218 | AR10: =MAX(COUNTRY_INFO!D10*AK10*PROFILE!$G$9,COUNTRY_INFO!D10*AL10*PROFILE!$G$9,COUNTRY_INFO!D10*AM10*PROFILE!$G$9,IF(AND(DISTRICT!Z10<>"Inconnu",Z10<>"Non requis"),COUNTRY_INFO!P10*DISTRICT!AN10,0)) -> 6902.139098 | AS10: =MAX(COUNTRY_INFO!D10*AK10*PROFILE!$G$10,COUNTRY_INFO!D10*AL10*PROFILE!$G$10,IF(AND(DISTRICT!Z10<>"Inconnu",Z10<>"Non requis"),COUNTRY_INFO!P10*DISTRICT!AO10,0)) -> 19261.86684 | AT10: =SUM(AP10:AS10) -> 30782 | AU10: 0 | AV10: =MAX('MDA4'!R10,'T1'!L10,'T2'!J10,T3_R1!K10,T3_R2!K10) -> 1098.273149 | AW10: =MAX('MDA1'!K10,'MDA4'!S10,'MDA3'!I10,'MDA3'!L10,'T1'!M10,'T2'!K10,T3_R1!L10,T3_R2!L10) -> 2288.676638 | AX10: =MAX('MDA1'!L10,'MDA4'!T10,'MDA3'!J10,'MDA3'!M10,'T1'!N10,'T2'!L10,T3_R1!M10,T3_R2!M10) -> 6387.050213 | AY10: =SUM(AV10:AX10) -> 9774 | AZ10: =MAX('MDA4'!R10,T10) -> 1098.273149 | BA10: =MAX('MDA1'!K10,'MDA4'!S10,'MDA3'!I10,'MDA3'!L10,V10,AD10) -> 2288.676638 | BB10: =MAX('MDA1'!L10,'MDA4'!T10,'MDA3'!J10,'MDA3'!M10,AF10) -> 6387.050213 | BC10: 9774 | BD10: 31.75232279
A11: =IF(COUNTRY_INFO!A11=0," ",COUNTRY_INFO!A11) -> Equatorial Guinea | B11: =IF(COUNTRY_INFO!B11=0," ",COUNTRY_INFO!B11) -> Bioko Norte | C11: =IF(COUNTRY_INFO!C11=0," ",COUNTRY_INFO!C11) -> Malabo | D11: =COUNTRY_INFO!M11 -> 0 | G11: =MAX('MDA1'!M11,'MDA4'!U11) -> 0 | H11: =IF(AND(COUNTRY_INFO!H11>0,COUNTRY_INFO!H11<4),IF(D11>MAX('MDA1'!M11,'MDA4'!U11),MAX('MDA1'!M11,'MDA4'!U11),D11),0) -> 0 | I11: =IF(AND(COUNTRY_INFO!H11>0,COUNTRY_INFO!H11<4), IF(G11/D11*100<>0, IF(G11/D11*100>100,100,G11/D11*100), "-"),0) -> 0 | J11: =COUNTRY_INFO!N11 -> Interrompu | M11: =MAX('MDA1'!M11,MAX('MDA3'!I11,'MDA3'!L11)+MAX('MDA3'!J11,'MDA3'!M11)) -> 0 | N11: =IF(AND(COUNTRY_INFO!I11>0,COUNTRY_INFO!I11<4),IF(J11>MAX('MDA1'!M11,MAX('MDA3'!I11,'MDA3'!L11)+MAX('MDA3'!J11,'MDA3'!M11)),MAX('MDA1'!M11,MAX('MDA3'!I11,'MDA3'!L11)+MAX('MDA3'!J11,'MDA3'!M11)),J11),0) -> 0 | O11: =IF(AND(COUNTRY_INFO!I11>0,COUNTRY_INFO!I11<4), IF(M11/J11*100<>0, IF(M11/J11*100>100,100,M11/J11*100), "-"),0) -> 0 | P11: =COUNTRY_INFO!O11 -> 61524 | S11: =SUM(MAX('MDA4'!R11, 'T1'!L11, MAX(T3_R1!K11, T3_R2!K11)), MAX('MDA1'!K11, 'MDA4'!S11, 'T1'!M11, MAX(T3_R1!L11, T3_R2!L11)), MAX('MDA1'!L11, 'MDA4'!T11, 'T1'!N11, MAX(T3_R1!M11, T3_R2!M11))) -> 71784 | T11: =IF(AND(COUNTRY_INFO!J11>1,COUNTRY_INFO!J11<4),IF(COUNTRY_INFO!E11>MAX('MDA4'!R11,'T1'!L11,MAX(T3_R1!K11,T3_R2!K11)),MAX('MDA4'!R11,'T1'!L11,MAX(T3_R1!K11,T3_R2!K11)),COUNTRY_INFO!E11),0) -> 19950 | U11: =IF(AND(COUNTRY_INFO!J11>1,COUNTRY_INFO!J11<4), IF(T11/COUNTRY_INFO!E11*100<>0, IF(T11/COUNTRY_INFO!E11*100>100,100,T11/COUNTRY_INFO!E11*100), "-"),0) -> 100 | V11: =IF(AND(COUNTRY_INFO!J11>1,COUNTRY_INFO!J11<4),IF(COUNTRY_INFO!F11>MAX('MDA1'!K11,'MDA4'!S11,'T1'!M11,MAX(T3_R1!L11,T3_R2!L11)),MAX('MDA1'!K11,'MDA4'!S11,'T1'!M11,MAX(T3_R1!L11,T3_R2!L11)),COUNTRY_INFO!F11),0) -> 41574 | W11: =IF(AND(COUNTRY_INFO!J11>1,COUNTRY_INFO!J11<4), IF(V11/COUNTRY_INFO!F11*100<>0, IF(V11/COUNTRY_INFO!F11*100>100,100,V11/COUNTRY_INFO!F11*100), "-"),0) -> 100 | X11: 61524 | Y11: =IF(AND(COUNTRY_INFO!J11>1,COUNTRY_INFO!J11<4), IF(S11/P11*100<>0, IF(X11/P11*100>100,100,X11/P11*100), "-"),0) -> 100 | Z11: =COUNTRY_INFO!P11 -> 43991.6 | AC11: =MAX('T1'!L11,'T2'!J11)+MAX('T1'!M11,'T2'!K11)+MAX('T1'!N11,'T2'!L11) -> 0 | AD11: =IF(COUNTRY_INFO!K11=1,IF(COUNTRY_INFO!F11*0.33>MAX('T1'!M11,'T2'!K11),MAX('T1'!M11,'T2'!K11),COUNTRY_INFO!F11*0.33),IF(COUNTRY_INFO!K11=2,IF(COUNTRY_INFO!F11*0.5>MAX('T1'!M11,'T2'!K11),MAX('T1'!M11,'T2'!K11),COUNTRY_INFO!F11*0.5),IF(COUNTRY_INFO!K11=3,IF(COUNTRY_INFO!F11>MAX('T1'!M11,'T2'!K11),MAX('T1'!M11,'T2'!K11),COUNTRY_INFO!F11),0))) -> 0 | AE11: =IF(AND(COUNTRY_INFO!K11>0,COUNTRY_INFO!K11<4),IF(Z11>0,IF(COUNTRY_INFO!K11=1, AD11/(COUNTRY_INFO!F11*0.33)*100, IF(COUNTRY_INFO!K11=2, AD11/(COUNTRY_INFO!F11*0.5)*100, IF(COUNTRY_INFO!K11=3, AD11/COUNTRY_INFO!F11*100))),"-"),0) -> 0 | AF11: =IF(COUNTRY_INFO!K11=2,IF(COUNTRY_INFO!G11*0.2>MAX('T1'!N11,'T2'!L11),MAX('T1'!N11,'T2'!L11),COUNTRY_INFO!G11*0.2),IF(COUNTRY_INFO!K11=3,IF(COUNTRY_INFO!G11>MAX('T1'!N11,'T2'!L11),MAX('T1'!N11,'T2'!L11),COUNTRY_INFO!G11),0)) -> 0 | AG11: =IF(AND(COUNTRY_INFO!K11>0,COUNTRY_INFO!K11<4),IF(Z11>0,IF(COUNTRY_INFO!K11=1, 0, IF(COUNTRY_INFO!K11=2, AF11/(COUNTRY_INFO!G11*0.2)*100, IF(COUNTRY_INFO!K11=3, AF11/COUNTRY_INFO!G11*100))),"-"),0) -> 0 | AH11: 0 | AI11: =IF(AND(COUNTRY_INFO!K11>0,COUNTRY_INFO!K11<4), IF(AC11/Z11*100<>0, IF(AH11/Z11*100>100,100,AH11/Z11*100), "-"),0) -> - | AK11: =IF(AND(D11<>0, D11<>"Inconnu",D11<>"Interrompu",D11<>"Non requis"),D11/COUNTRY_INFO!D11, 0) -> 0 | AL11: =IF(AND(J11<>0,J11<>"Inconnu",J11<>"Interrompu",J11<>"Non requis"),J11/COUNTRY_INFO!D11, 0) -> 0 | AM11: =IF(AND(P11<>0,P11<>"Inconnu",P11<>"Non requis"),P11/(COUNTRY_INFO!E11+COUNTRY_INFO!F11), 0) -> 1 | AN11: =IF(AND(Z11<>0,Z11<>"Inconnu",Z11<>"Non requis"),IF(COUNTRY_INFO!K11=1,1,IF(COUNTRY_INFO!K11=2,0.5*COUNTRY_INFO!F11/(0.5*COUNTRY_INFO!F11+0.2*COUNTRY_INFO!G11),IF(COUNTRY_INFO!K11=3,COUNTRY_INFO!F11/(COUNTRY_INFO!F11+COUNTRY_INFO!G11)))),0) -> 0.4725220269 | AO11: =IF(AND(Z11<>0,Z11<>"Inconnu",Z11<>"Non requis"),IF(COUNTRY_INFO!K11=1,0,IF(COUNTRY_INFO!K11=2,0.2*COUNTRY_INFO!G11/(0.5*COUNTRY_INFO!F11+0.2*COUNTRY_INFO!G11),IF(COUNTRY_INFO!K11=3,COUNTRY_INFO!G11/(COUNTRY_INFO!F11+COUNTRY_INFO!G11)))),0) -> 0.5274779731 | AP11: =MAX(COUNTRY_INFO!D11*AK11*PROFILE!$G$7,COUNTRY_INFO!D11*AL11*PROFILE!$G$7) -> 0 | AQ11: =MAX(COUNTRY_INFO!D11*AK11*PROFILE!$G$8,COUNTRY_INFO!D11*AL11*PROFILE!$G$8,COUNTRY_INFO!D11*AM11*PROFILE!$G$8) -> 19950.4871 | AR11: =MAX(COUNTRY_INFO!D11*AK11*PROFILE!$G$9,COUNTRY_INFO!D11*AL11*PROFILE!$G$9,COUNTRY_INFO!D11*AM11*PROFILE!$G$9,IF(AND(DISTRICT!Z11<>"Inconnu",Z11<>"Non requis"),COUNTRY_INFO!P11*DISTRICT!AN11,0)) -> 41574.50187 | AS11: =MAX(COUNTRY_INFO!D11*AK11*PROFILE!$G$10,COUNTRY_INFO!D11*AL11*PROFILE!$G$10,IF(AND(DISTRICT!Z11<>"Inconnu",Z11<>"Non requis"),COUNTRY_INFO!P11*DISTRICT!AO11,0)) -> 23204.6 | AT11: 84729.58896 | AU11: 0 | AV11: =MAX('MDA4'!R11,'T1'!L11,'T2'!J11,T3_R1!K11,T3_R2!K11) -> 23277.12091 | AW11: =MAX('MDA1'!K11,'MDA4'!S11,'MDA3'!I11,'MDA3'!L11,'T1'!M11,'T2'!K11,T3_R1!L11,T3_R2!L11) -> 48506.87909 | AX11: =MAX('MDA1'!L11,'MDA4'!T11,'MDA3'!J11,'MDA3'!M11,'T1'!N11,'T2'!L11,T3_R1!M11,T3_R2!M11) -> 0 | AY11: 71784 | AZ11: =MAX('MDA4'!R11,T11) -> 19950 | BA11: =MAX('MDA1'!K11,'MDA4'!S11,'MDA3'!I11,'MDA3'!L11,V11,AD11) -> 41574 | BB11: =MAX('MDA1'!L11,'MDA4'!T11,'MDA3'!J11,'MDA3'!M11,AF11) -> 0 | BC11: 61524 | BD11: 72.61217805
A12: =IF(COUNTRY_INFO!A12=0," ",COUNTRY_INFO!A12) -> Equatorial Guinea | B12: =IF(COUNTRY_INFO!B12=0," ",COUNTRY_INFO!B12) -> Bioko Sur | C12: =IF(COUNTRY_INFO!C12=0," ",COUNTRY_INFO!C12) -> Luba | D12: =COUNTRY_INFO!M12 -> 0 | G12: =MAX('MDA1'!M12,'MDA4'!U12) -> 0 | H12: =IF(AND(COUNTRY_INFO!H12>0,COUNTRY_INFO!H12<4),IF(D12>MAX('MDA1'!M12,'MDA4'!U12),MAX('MDA1'!M12,'MDA4'!U12),D12),0) -> 0 | I12: =IF(AND(COUNTRY_INFO!H12>0,COUNTRY_INFO!H12<4), IF(G12/D12*100<>0, IF(G12/D12*100>100,100,G12/D12*100), "-"),0) -> 0 | J12: =COUNTRY_INFO!N12 -> Interrompu | M12: =MAX('MDA1'!M12,MAX('MDA3'!I12,'MDA3'!L12)+MAX('MDA3'!J12,'MDA3'!M12)) -> 0 | N12: =IF(AND(COUNTRY_INFO!I12>0,COUNTRY_INFO!I12<4),IF(J12>MAX('MDA1'!M12,MAX('MDA3'!I12,'MDA3'!L12)+MAX('MDA3'!J12,'MDA3'!M12)),MAX('MDA1'!M12,MAX('MDA3'!I12,'MDA3'!L12)+MAX('MDA3'!J12,'MDA3'!M12)),J12),0) -> 0 | O12: =IF(AND(COUNTRY_INFO!I12>0,COUNTRY_INFO!I12<4), IF(M12/J12*100<>0, IF(M12/J12*100>100,100,M12/J12*100), "-"),0) -> 0 | P12: =COUNTRY_INFO!O12 -> 8823 | S12: =SUM(MAX('MDA4'!R12, 'T1'!L12, MAX(T3_R1!K12, T3_R2!K12)), MAX('MDA1'!K12, 'MDA4'!S12, 'T1'!M12, MAX(T3_R1!L12, T3_R2!L12)), MAX('MDA1'!L12, 'MDA4'!T12, 'T1'!N12, MAX(T3_R1!M12, T3_R2!M12))) -> 1623 | T12: =IF(AND(COUNTRY_INFO!J12>1,COUNTRY_INFO!J12<4),IF(COUNTRY_INFO!E12>MAX('MDA4'!R12,'T1'!L12,MAX(T3_R1!K12,T3_R2!K12)),MAX('MDA4'!R12,'T1'!L12,MAX(T3_R1!K12,T3_R2!K12)),COUNTRY_INFO!E12),0) -> 526.2839523 | U12: =IF(AND(COUNTRY_INFO!J12>1,COUNTRY_INFO!J12<4), IF(T12/COUNTRY_INFO!E12*100<>0, IF(T12/COUNTRY_INFO!E12*100>100,100,T12/COUNTRY_INFO!E12*100), "-"),0) -> 18.39510494 | V12: =IF(AND(COUNTRY_INFO!J12>1,COUNTRY_INFO!J12<4),IF(COUNTRY_INFO!F12>MAX('MDA1'!K12,'MDA4'!S12,'T1'!M12,MAX(T3_R1!L12,T3_R2!L12)),MAX('MDA1'!K12,'MDA4'!S12,'T1'!M12,MAX(T3_R1!L12,T3_R2!L12)),COUNTRY_INFO!F12),0) -> 1096.716048 | W12: =IF(AND(COUNTRY_INFO!J12>1,COUNTRY_INFO!J12<4), IF(V12/COUNTRY_INFO!F12*100<>0, IF(V12/COUNTRY_INFO!F12*100>100,100,V12/COUNTRY_INFO!F12*100), "-"),0) -> 18.39510311 | X12: 1623 | Y12: =IF(AND(COUNTRY_INFO!J12>1,COUNTRY_INFO!J12<4), IF(S12/P12*100<>0, IF(X12/P12*100>100,100,X12/P12*100), "-"),0) -> 18.39510371 | Z12: =COUNTRY_INFO!P12 -> 0 | AC12: =MAX('T1'!L12,'T2'!J12)+MAX('T1'!M12,'T2'!K12)+MAX('T1'!N12,'T2'!L12) -> 0 | AD12: =IF(COUNTRY_INFO!K12=1,IF(COUNTRY_INFO!F12*0.33>MAX('T1'!M12,'T2'!K12),MAX('T1'!M12,'T2'!K12),COUNTRY_INFO!F12*0.33),IF(COUNTRY_INFO!K12=2,IF(COUNTRY_INFO!F12*0.5>MAX('T1'!M12,'T2'!K12),MAX('T1'!M12,'T2'!K12),COUNTRY_INFO!F12*0.5),IF(COUNTRY_INFO!K12=3,IF(COUNTRY_INFO!F12>MAX('T1'!M12,'T2'!K12),MAX('T1'!M12,'T2'!K12),COUNTRY_INFO!F12),0))) -> 0 | AE12: =IF(AND(COUNTRY_INFO!K12>0,COUNTRY_INFO!K12<4),IF(Z12>0,IF(COUNTRY_INFO!K12=1, AD12/(COUNTRY_INFO!F12*0.33)*100, IF(COUNTRY_INFO!K12=2, AD12/(COUNTRY_INFO!F12*0.5)*100, IF(COUNTRY_INFO!K12=3, AD12/COUNTRY_INFO!F12*100))),"-"),0) -> 0 | AF12: =IF(COUNTRY_INFO!K12=2,IF(COUNTRY_INFO!G12*0.2>MAX('T1'!N12,'T2'!L12),MAX('T1'!N12,'T2'!L12),COUNTRY_INFO!G12*0.2),IF(COUNTRY_INFO!K12=3,IF(COUNTRY_INFO!G12>MAX('T1'!N12,'T2'!L12),MAX('T1'!N12,'T2'!L12),COUNTRY_INFO!G12),0)) -> 0 | AG12: =IF(AND(COUNTRY_INFO!K12>0,COUNTRY_INFO!K12<4),IF(Z12>0,IF(COUNTRY_INFO!K12=1, 0, IF(COUNTRY_INFO!K12=2, AF12/(COUNTRY_INFO!G12*0.2)*100, IF(COUNTRY_INFO!K12=3, AF12/COUNTRY_INFO!G12*100))),"-"),0) -> 0 | AH12: 0 | AI12: =IF(AND(COUNTRY_INFO!K12>0,COUNTRY_INFO!K12<4), IF(AC12/Z12*100<>0, IF(AH12/Z12*100>100,100,AH12/Z12*100), "-"),0) -> 0 | AK12: =IF(AND(D12<>0, D12<>"Inconnu",D12<>"Interrompu",D12<>"Non requis"),D12/COUNTRY_INFO!D12, 0) -> 0 | AL12: =IF(AND(J12<>0,J12<>"Inconnu",J12<>"Interrompu",J12<>"Non requis"),J12/COUNTRY_INFO!D12, 0) -> 0 | AM12: =IF(AND(P12<>0,P12<>"Inconnu",P12<>"Non requis"),P12/(COUNTRY_INFO!E12+COUNTRY_INFO!F12), 0) -> 1 | AN12: =IF(AND(Z12<>0,Z12<>"Inconnu",Z12<>"Non requis"),IF(COUNTRY_INFO!K12=1,1,IF(COUNTRY_INFO!K12=2,0.5*COUNTRY_INFO!F12/(0.5*COUNTRY_INFO!F12+0.2*COUNTRY_INFO!G12),IF(COUNTRY_INFO!K12=3,COUNTRY_INFO!F12/(COUNTRY_INFO!F12+COUNTRY_INFO!G12)))),0) -> 0 | AO12: =IF(AND(Z12<>0,Z12<>"Inconnu",Z12<>"Non requis"),IF(COUNTRY_INFO!K12=1,0,IF(COUNTRY_INFO!K12=2,0.2*COUNTRY_INFO!G12/(0.5*COUNTRY_INFO!F12+0.2*COUNTRY_INFO!G12),IF(COUNTRY_INFO!K12=3,COUNTRY_INFO!G12/(COUNTRY_INFO!F12+COUNTRY_INFO!G12)))),0) -> 0 | AP12: =MAX(COUNTRY_INFO!D12*AK12*PROFILE!$G$7,COUNTRY_INFO!D12*AL12*PROFILE!$G$7) -> 0 | AQ12: =MAX(COUNTRY_INFO!D12*AK12*PROFILE!$G$8,COUNTRY_INFO!D12*AL12*PROFILE!$G$8,COUNTRY_INFO!D12*AM12*PROFILE!$G$8) -> 2861.198526 | AR12: =MAX(COUNTRY_INFO!D12*AK12*PROFILE!$G$9,COUNTRY_INFO!D12*AL12*PROFILE!$G$9,COUNTRY_INFO!D12*AM12*PROFILE!$G$9,IF(AND(DISTRICT!Z12<>"Inconnu",Z12<>"Non requis"),COUNTRY_INFO!P12*DISTRICT!AN12,0)) -> 5962.405976 | AS12: =MAX(COUNTRY_INFO!D12*AK12*PROFILE!$G$10,COUNTRY_INFO!D12*AL12*PROFILE!$G$10,IF(AND(DISTRICT!Z12<>"Inconnu",Z12<>"Non requis"),COUNTRY_INFO!P12*DISTRICT!AO12,0)) -> 0 | AT12: 8823.604502 | AU12: Y | AV12: =MAX('MDA4'!R12,'T1'!L12,'T2'!J12,T3_R1!K12,T3_R2!K12) -> 526.2839523 | AW12: =MAX('MDA1'!K12,'MDA4'!S12,'MDA3'!I12,'MDA3'!L12,'T1'!M12,'T2'!K12,T3_R1!L12,T3_R2!L12) -> 1096.716048 | AX12: =MAX('MDA1'!L12,'MDA4'!T12,'MDA3'!J12,'MDA3'!M12,'T1'!N12,'T2'!L12,T3_R1!M12,T3_R2!M12) -> 0 | AY12: 1623 | AZ12: =MAX('MDA4'!R12,T12) -> 526.2839523 | BA12: =MAX('MDA1'!K12,'MDA4'!S12,'MDA3'!I12,'MDA3'!L12,V12,AD12) -> 1096.716048 | BB12: =MAX('MDA1'!L12,'MDA4'!T12,'MDA3'!J12,'MDA3'!M12,AF12) -> 0 | BC12: 1623 | BD12: 18.39384346
A13: =IF(COUNTRY_INFO!A13=0," ",COUNTRY_INFO!A13) -> Equatorial Guinea | B13: =IF(COUNTRY_INFO!B13=0," ",COUNTRY_INFO!B13) -> Bioko Sur | C13: =IF(COUNTRY_INFO!C13=0," ",COUNTRY_INFO!C13) -> Riaba | D13: =COUNTRY_INFO!M13 -> 9573 | G13: =MAX('MDA1'!M13,'MDA4'!U13) -> 1774 | H13: =IF(AND(COUNTRY_INFO!H13>0,COUNTRY_INFO!H13<4),IF(D13>MAX('MDA1'!M13,'MDA4'!U13),MAX('MDA1'!M13,'MDA4'!U13),D13),0) -> 1774 | I13: =IF(AND(COUNTRY_INFO!H13>0,COUNTRY_INFO!H13<4), IF(G13/D13*100<>0, IF(G13/D13*100>100,100,G13/D13*100), "-"),0) -> 18.53128591 | J13: =COUNTRY_INFO!N13 -> Interrompu | M13: =MAX('MDA1'!M13,MAX('MDA3'!I13,'MDA3'!L13)+MAX('MDA3'!J13,'MDA3'!M13)) -> 0 | N13: =IF(AND(COUNTRY_INFO!I13>0,COUNTRY_INFO!I13<4),IF(J13>MAX('MDA1'!M13,MAX('MDA3'!I13,'MDA3'!L13)+MAX('MDA3'!J13,'MDA3'!M13)),MAX('MDA1'!M13,MAX('MDA3'!I13,'MDA3'!L13)+MAX('MDA3'!J13,'MDA3'!M13)),J13),0) -> 0 | O13: =IF(AND(COUNTRY_INFO!I13>0,COUNTRY_INFO!I13<4), IF(M13/J13*100<>0, IF(M13/J13*100>100,100,M13/J13*100), "-"),0) -> 0 | P13: =COUNTRY_INFO!O13 -> 3177 | S13: =SUM(MAX('MDA4'!R13, 'T1'!L13, MAX(T3_R1!K13, T3_R2!K13)), MAX('MDA1'!K13, 'MDA4'!S13, 'T1'!M13, MAX(T3_R1!L13, T3_R2!L13)), MAX('MDA1'!L13, 'MDA4'!T13, 'T1'!N13, MAX(T3_R1!M13, T3_R2!M13))) -> 1774 | T13: =IF(AND(COUNTRY_INFO!J13>1,COUNTRY_INFO!J13<4),IF(COUNTRY_INFO!E13>MAX('MDA4'!R13,'T1'!L13,MAX(T3_R1!K13,T3_R2!K13)),MAX('MDA4'!R13,'T1'!L13,MAX(T3_R1!K13,T3_R2!K13)),COUNTRY_INFO!E13),0) -> 199.3387114 | U13: =IF(AND(COUNTRY_INFO!J13>1,COUNTRY_INFO!J13<4), IF(T13/COUNTRY_INFO!E13*100<>0, IF(T13/COUNTRY_INFO!E13*100>100,100,T13/COUNTRY_INFO!E13*100), "-"),0) -> 19.35327296 | V13: =IF(AND(COUNTRY_INFO!J13>1,COUNTRY_INFO!J13<4),IF(COUNTRY_INFO!F13>MAX('MDA1'!K13,'MDA4'!S13,'T1'!M13,MAX(T3_R1!L13,T3_R2!L13)),MAX('MDA1'!K13,'MDA4'!S13,'T1'!M13,MAX(T3_R1!L13,T3_R2!L13)),COUNTRY_INFO!F13),0) -> 415.3992589 | W13: =IF(AND(COUNTRY_INFO!J13>1,COUNTRY_INFO!J13<4), IF(V13/COUNTRY_INFO!F13*100<>0, IF(V13/COUNTRY_INFO!F13*100>100,100,V13/COUNTRY_INFO!F13*100), "-"),0) -> 19.34789282 | X13: 614.7379703 | Y13: =IF(AND(COUNTRY_INFO!J13>1,COUNTRY_INFO!J13<4), IF(S13/P13*100<>0, IF(X13/P13*100>100,100,X13/P13*100), "-"),0) -> 19.34963709 | Z13: =COUNTRY_INFO!P13 -> 0 | AC13: =MAX('T1'!L13,'T2'!J13)+MAX('T1'!M13,'T2'!K13)+MAX('T1'!N13,'T2'!L13) -> 0 | AD13: =IF(COUNTRY_INFO!K13=1,IF(COUNTRY_INFO!F13*0.33>MAX('T1'!M13,'T2'!K13),MAX('T1'!M13,'T2'!K13),COUNTRY_INFO!F13*0.33),IF(COUNTRY_INFO!K13=2,IF(COUNTRY_INFO!F13*0.5>MAX('T1'!M13,'T2'!K13),MAX('T1'!M13,'T2'!K13),COUNTRY_INFO!F13*0.5),IF(COUNTRY_INFO!K13=3,IF(COUNTRY_INFO!F13>MAX('T1'!M13,'T2'!K13),MAX('T1'!M13,'T2'!K13),COUNTRY_INFO!F13),0))) -> 0 | AE13: =IF(AND(COUNTRY_INFO!K13>0,COUNTRY_INFO!K13<4),IF(Z13>0,IF(COUNTRY_INFO!K13=1, AD13/(COUNTRY_INFO!F13*0.33)*100, IF(COUNTRY_INFO!K13=2, AD13/(COUNTRY_INFO!F13*0.5)*100, IF(COUNTRY_INFO!K13=3, AD13/COUNTRY_INFO!F13*100))),"-"),0) -> 0 | AF13: =IF(COUNTRY_INFO!K13=2,IF(COUNTRY_INFO!G13*0.2>MAX('T1'!N13,'T2'!L13),MAX('T1'!N13,'T2'!L13),COUNTRY_INFO!G13*0.2),IF(COUNTRY_INFO!K13=3,IF(COUNTRY_INFO!G13>MAX('T1'!N13,'T2'!L13),MAX('T1'!N13,'T2'!L13),COUNTRY_INFO!G13),0)) -> 0 | AG13: =IF(AND(COUNTRY_INFO!K13>0,COUNTRY_INFO!K13<4),IF(Z13>0,IF(COUNTRY_INFO!K13=1, 0, IF(COUNTRY_INFO!K13=2, AF13/(COUNTRY_INFO!G13*0.2)*100, IF(COUNTRY_INFO!K13=3, AF13/COUNTRY_INFO!G13*100))),"-"),0) -> 0 | AH13: 0 | AI13: =IF(AND(COUNTRY_INFO!K13>0,COUNTRY_INFO!K13<4), IF(AC13/Z13*100<>0, IF(AH13/Z13*100>100,100,AH13/Z13*100), "-"),0) -> 0 | AK13: =IF(AND(D13<>0, D13<>"Inconnu",D13<>"Interrompu",D13<>"Non requis"),D13/COUNTRY_INFO!D13, 0) -> 1 | AL13: =IF(AND(J13<>0,J13<>"Inconnu",J13<>"Interrompu",J13<>"Non requis"),J13/COUNTRY_INFO!D13, 0) -> 0 | AM13: =IF(AND(P13<>0,P13<>"Inconnu",P13<>"Non requis"),P13/(COUNTRY_INFO!E13+COUNTRY_INFO!F13), 0) -> 1 | AN13: =IF(AND(Z13<>0,Z13<>"Inconnu",Z13<>"Non requis"),IF(COUNTRY_INFO!K13=1,1,IF(COUNTRY_INFO!K13=2,0.5*COUNTRY_INFO!F13/(0.5*COUNTRY_INFO!F13+0.2*COUNTRY_INFO!G13),IF(COUNTRY_INFO!K13=3,COUNTRY_INFO!F13/(COUNTRY_INFO!F13+COUNTRY_INFO!G13)))),0) -> 0 | AO13: =IF(AND(Z13<>0,Z13<>"Inconnu",Z13<>"Non requis"),IF(COUNTRY_INFO!K13=1,0,IF(COUNTRY_INFO!K13=2,0.2*COUNTRY_INFO!G13/(0.5*COUNTRY_INFO!F13+0.2*COUNTRY_INFO!G13),IF(COUNTRY_INFO!K13=3,COUNTRY_INFO!G13/(COUNTRY_INFO!F13+COUNTRY_INFO!G13)))),0) -> 0 | AP13: =MAX(COUNTRY_INFO!D13*AK13*PROFILE!$G$7,COUNTRY_INFO!D13*AL13*PROFILE!$G$7) -> 406.1085561 | AQ13: =MAX(COUNTRY_INFO!D13*AK13*PROFILE!$G$8,COUNTRY_INFO!D13*AL13*PROFILE!$G$8,COUNTRY_INFO!D13*AM13*PROFILE!$G$8) -> 1030.057294 | AR13: =MAX(COUNTRY_INFO!D13*AK13*PROFILE!$G$9,COUNTRY_INFO!D13*AL13*PROFILE!$G$9,COUNTRY_INFO!D13*AM13*PROFILE!$G$9,IF(AND(DISTRICT!Z13<>"Inconnu",Z13<>"Non requis"),COUNTRY_INFO!P13*DISTRICT!AN13,0)) -> 2146.519966 | AS13: =MAX(COUNTRY_INFO!D13*AK13*PROFILE!$G$10,COUNTRY_INFO!D13*AL13*PROFILE!$G$10,IF(AND(DISTRICT!Z13<>"Inconnu",Z13<>"Non requis"),COUNTRY_INFO!P13*DISTRICT!AO13,0)) -> 5990.314185 | AT13: 9573 | AU13: Y | AV13: =MAX('MDA4'!R13,'T1'!L13,'T2'!J13,T3_R1!K13,T3_R2!K13) -> 199.3387114 | AW13: =MAX('MDA1'!K13,'MDA4'!S13,'MDA3'!I13,'MDA3'!L13,'T1'!M13,'T2'!K13,T3_R1!L13,T3_R2!L13) -> 415.3992589 | AX13: =MAX('MDA1'!L13,'MDA4'!T13,'MDA3'!J13,'MDA3'!M13,'T1'!N13,'T2'!L13,T3_R1!M13,T3_R2!M13) -> 1159.26203 | AY13: 1774 | AZ13: =MAX('MDA4'!R13,T13) -> 199.3387114 | BA13: =MAX('MDA1'!K13,'MDA4'!S13,'MDA3'!I13,'MDA3'!L13,V13,AD13) -> 415.3992589 | BB13: =MAX('MDA1'!L13,'MDA4'!T13,'MDA3'!J13,'MDA3'!M13,AF13) -> 1159.26203 | BC13: 1774 | BD13: 18.53128591
A14: =IF(COUNTRY_INFO!A14=0," ",COUNTRY_INFO!A14) -> Equatorial Guinea | B14: =IF(COUNTRY_INFO!B14=0," ",COUNTRY_INFO!B14) -> Centro Sur | C14: =IF(COUNTRY_INFO!C14=0," ",COUNTRY_INFO!C14) -> Acurenam | D14: =COUNTRY_INFO!M14 -> 33466 | G14: =MAX('MDA1'!M14,'MDA4'!U14) -> 3730 | H14: =IF(AND(COUNTRY_INFO!H14>0,COUNTRY_INFO!H14<4),IF(D14>MAX('MDA1'!M14,'MDA4'!U14),MAX('MDA1'!M14,'MDA4'!U14),D14),0) -> 3730 | I14: =IF(AND(COUNTRY_INFO!H14>0,COUNTRY_INFO!H14<4), IF(G14/D14*100<>0, IF(G14/D14*100>100,100,G14/D14*100), "-"),0) -> 11.14564035 | J14: =COUNTRY_INFO!N14 -> Inconnu | M14: =MAX('MDA1'!M14,MAX('MDA3'!I14,'MDA3'!L14)+MAX('MDA3'!J14,'MDA3'!M14)) -> 0 | N14: =IF(AND(COUNTRY_INFO!I14>0,COUNTRY_INFO!I14<4),IF(J14>MAX('MDA1'!M14,MAX('MDA3'!I14,'MDA3'!L14)+MAX('MDA3'!J14,'MDA3'!M14)),MAX('MDA1'!M14,MAX('MDA3'!I14,'MDA3'!L14)+MAX('MDA3'!J14,'MDA3'!M14)),J14),0) -> 0 | O14: =IF(AND(COUNTRY_INFO!I14>0,COUNTRY_INFO!I14<4), IF(M14/J14*100<>0, IF(M14/J14*100>100,100,M14/J14*100), "-"),0) -> 0 | P14: =COUNTRY_INFO!O14 -> 11105 | S14: =SUM(MAX('MDA4'!R14, 'T1'!L14, MAX(T3_R1!K14, T3_R2!K14)), MAX('MDA1'!K14, 'MDA4'!S14, 'T1'!M14, MAX(T3_R1!L14, T3_R2!L14)), MAX('MDA1'!L14, 'MDA4'!T14, 'T1'!N14, MAX(T3_R1!M14, T3_R2!M14))) -> 3730 | T14: =IF(AND(COUNTRY_INFO!J14>1,COUNTRY_INFO!J14<4),IF(COUNTRY_INFO!E14>MAX('MDA4'!R14,'T1'!L14,MAX(T3_R1!K14,T3_R2!K14)),MAX('MDA4'!R14,'T1'!L14,MAX(T3_R1!K14,T3_R2!K14)),COUNTRY_INFO!E14),0) -> 419.1281813 | U14: =IF(AND(COUNTRY_INFO!J14>1,COUNTRY_INFO!J14<4), IF(T14/COUNTRY_INFO!E14*100<>0, IF(T14/COUNTRY_INFO!E14*100>100,100,T14/COUNTRY_INFO!E14*100), "-"),0) -> 11.63921637 | V14: =IF(AND(COUNTRY_INFO!J14>1,COUNTRY_INFO!J14<4),IF(COUNTRY_INFO!F14>MAX('MDA1'!K14,'MDA4'!S14,'T1'!M14,MAX(T3_R1!L14,T3_R2!L14)),MAX('MDA1'!K14,'MDA4'!S14,'T1'!M14,MAX(T3_R1!L14,T3_R2!L14)),COUNTRY_INFO!F14),0) -> 873.4155781 | W14: =IF(AND(COUNTRY_INFO!J14>1,COUNTRY_INFO!J14<4), IF(V14/COUNTRY_INFO!F14*100<>0, IF(V14/COUNTRY_INFO!F14*100>100,100,V14/COUNTRY_INFO!F14*100), "-"),0) -> 11.6393334 | X14: 1292.543759 | Y14: =IF(AND(COUNTRY_INFO!J14>1,COUNTRY_INFO!J14<4), IF(S14/P14*100<>0, IF(X14/P14*100>100,100,X14/P14*100), "-"),0) -> 11.63929545 | Z14: =COUNTRY_INFO!P14 -> 2476.32 | AC14: =MAX('T1'!L14,'T2'!J14)+MAX('T1'!M14,'T2'!K14)+MAX('T1'!N14,'T2'!L14) -> 0 | AD14: =IF(COUNTRY_INFO!K14=1,IF(COUNTRY_INFO!F14*0.33>MAX('T1'!M14,'T2'!K14),MAX('T1'!M14,'T2'!K14),COUNTRY_INFO!F14*0.33),IF(COUNTRY_INFO!K14=2,IF(COUNTRY_INFO!F14*0.5>MAX('T1'!M14,'T2'!K14),MAX('T1'!M14,'T2'!K14),COUNTRY_INFO!F14*0.5),IF(COUNTRY_INFO!K14=3,IF(COUNTRY_INFO!F14>MAX('T1'!M14,'T2'!K14),MAX('T1'!M14,'T2'!K14),COUNTRY_INFO!F14),0))) -> 0 | AE14: =IF(AND(COUNTRY_INFO!K14>0,COUNTRY_INFO!K14<4),IF(Z14>0,IF(COUNTRY_INFO!K14=1, AD14/(COUNTRY_INFO!F14*0.33)*100, IF(COUNTRY_INFO!K14=2, AD14/(COUNTRY_INFO!F14*0.5)*100, IF(COUNTRY_INFO!K14=3, AD14/COUNTRY_INFO!F14*100))),"-"),0) -> 0 | AF14: =IF(COUNTRY_INFO!K14=2,IF(COUNTRY_INFO!G14*0.2>MAX('T1'!N14,'T2'!L14),MAX('T1'!N14,'T2'!L14),COUNTRY_INFO!G14*0.2),IF(COUNTRY_INFO!K14=3,IF(COUNTRY_INFO!G14>MAX('T1'!N14,'T2'!L14),MAX('T1'!N14,'T2'!L14),COUNTRY_INFO!G14),0)) -> 0 | AG14: =IF(AND(COUNTRY_INFO!K14>0,COUNTRY_INFO!K14<4),IF(Z14>0,IF(COUNTRY_INFO!K14=1, 0, IF(COUNTRY_INFO!K14=2, AF14/(COUNTRY_INFO!G14*0.2)*100, IF(COUNTRY_INFO!K14=3, AF14/COUNTRY_INFO!G14*100))),"-"),0) -> 0 | AH14: 0 | AI14: =IF(AND(COUNTRY_INFO!K14>0,COUNTRY_INFO!K14<4), IF(AC14/Z14*100<>0, IF(AH14/Z14*100>100,100,AH14/Z14*100), "-"),0) -> - | AK14: =IF(AND(D14<>0, D14<>"Inconnu",D14<>"Interrompu",D14<>"Non requis"),D14/COUNTRY_INFO!D14, 0) -> 1 | AL14: =IF(AND(J14<>0,J14<>"Inconnu",J14<>"Interrompu",J14<>"Non requis"),J14/COUNTRY_INFO!D14, 0) -> 0 | AM14: =IF(AND(P14<>0,P14<>"Inconnu",P14<>"Non requis"),P14/(COUNTRY_INFO!E14+COUNTRY_INFO!F14), 0) -> 1 | AN14: =IF(AND(Z14<>0,Z14<>"Inconnu",Z14<>"Non requis"),IF(COUNTRY_INFO!K14=1,1,IF(COUNTRY_INFO!K14=2,0.5*COUNTRY_INFO!F14/(0.5*COUNTRY_INFO!F14+0.2*COUNTRY_INFO!G14),IF(COUNTRY_INFO!K14=3,COUNTRY_INFO!F14/(COUNTRY_INFO!F14+COUNTRY_INFO!G14)))),0) -> 1 | AO14: =IF(AND(Z14<>0,Z14<>"Inconnu",Z14<>"Non requis"),IF(COUNTRY_INFO!K14=1,0,IF(COUNTRY_INFO!K14=2,0.2*COUNTRY_INFO!G14/(0.5*COUNTRY_INFO!F14+0.2*COUNTRY_INFO!G14),IF(COUNTRY_INFO!K14=3,COUNTRY_INFO!G14/(COUNTRY_INFO!F14+COUNTRY_INFO!G14)))),0) -> 0 | AP14: =MAX(COUNTRY_INFO!D14*AK14*PROFILE!$G$7,COUNTRY_INFO!D14*AL14*PROFILE!$G$7) -> 1419.704266 | AQ14: =MAX(COUNTRY_INFO!D14*AK14*PROFILE!$G$8,COUNTRY_INFO!D14*AL14*PROFILE!$G$8,COUNTRY_INFO!D14*AM14*PROFILE!$G$8) -> 3600.950317 | AR14: =MAX(COUNTRY_INFO!D14*AK14*PROFILE!$G$9,COUNTRY_INFO!D14*AL14*PROFILE!$G$9,COUNTRY_INFO!D14*AM14*PROFILE!$G$9,IF(AND(DISTRICT!Z14<>"Inconnu",Z14<>"Non requis"),COUNTRY_INFO!P14*DISTRICT!AN14,0)) -> 7503.962934 | AS14: =MAX(COUNTRY_INFO!D14*AK14*PROFILE!$G$10,COUNTRY_INFO!D14*AL14*PROFILE!$G$10,IF(AND(DISTRICT!Z14<>"Inconnu",Z14<>"Non requis"),COUNTRY_INFO!P14*DISTRICT!AO14,0)) -> 20941.38248 | AT14: 33466 | AU14: 0 | AV14: =MAX('MDA4'!R14,'T1'!L14,'T2'!J14,T3_R1!K14,T3_R2!K14) -> 419.1281813 | AW14: =MAX('MDA1'!K14,'MDA4'!S14,'MDA3'!I14,'MDA3'!L14,'T1'!M14,'T2'!K14,T3_R1!L14,T3_R2!L14) -> 873.4155781 | AX14: =MAX('MDA1'!L14,'MDA4'!T14,'MDA3'!J14,'MDA3'!M14,'T1'!N14,'T2'!L14,T3_R1!M14,T3_R2!M14) -> 2437.456241 | AY14: 3730 | AZ14: =MAX('MDA4'!R14,T14) -> 419.1281813 | BA14: =MAX('MDA1'!K14,'MDA4'!S14,'MDA3'!I14,'MDA3'!L14,V14,AD14) -> 873.4155781 | BB14: =MAX('MDA1'!L14,'MDA4'!T14,'MDA3'!J14,'MDA3'!M14,AF14) -> 2437.456241 | BC14: 3730 | BD14: 11.14564035
A15: =IF(COUNTRY_INFO!A15=0," ",COUNTRY_INFO!A15) -> Equatorial Guinea | B15: =IF(COUNTRY_INFO!B15=0," ",COUNTRY_INFO!B15) -> Centro Sur | C15: =IF(COUNTRY_INFO!C15=0," ",COUNTRY_INFO!C15) -> Evinayong | D15: =COUNTRY_INFO!M15 -> 61441 | G15: =MAX('MDA1'!M15,'MDA4'!U15) -> 10154 | H15: =IF(AND(COUNTRY_INFO!H15>0,COUNTRY_INFO!H15<4),IF(D15>MAX('MDA1'!M15,'MDA4'!U15),MAX('MDA1'!M15,'MDA4'!U15),D15),0) -> 10154 | I15: =IF(AND(COUNTRY_INFO!H15>0,COUNTRY_INFO!H15<4), IF(G15/D15*100<>0, IF(G15/D15*100>100,100,G15/D15*100), "-"),0) -> 16.52642372 | J15: =COUNTRY_INFO!N15 -> Inconnu | M15: =MAX('MDA1'!M15,MAX('MDA3'!I15,'MDA3'!L15)+MAX('MDA3'!J15,'MDA3'!M15)) -> 0 | N15: =IF(AND(COUNTRY_INFO!I15>0,COUNTRY_INFO!I15<4),IF(J15>MAX('MDA1'!M15,MAX('MDA3'!I15,'MDA3'!L15)+MAX('MDA3'!J15,'MDA3'!M15)),MAX('MDA1'!M15,MAX('MDA3'!I15,'MDA3'!L15)+MAX('MDA3'!J15,'MDA3'!M15)),J15),0) -> 0 | O15: =IF(AND(COUNTRY_INFO!I15>0,COUNTRY_INFO!I15<4), IF(M15/J15*100<>0, IF(M15/J15*100>100,100,M15/J15*100), "-"),0) -> 0 | P15: =COUNTRY_INFO!O15 -> 20388 | S15: =SUM(MAX('MDA4'!R15, 'T1'!L15, MAX(T3_R1!K15, T3_R2!K15)), MAX('MDA1'!K15, 'MDA4'!S15, 'T1'!M15, MAX(T3_R1!L15, T3_R2!L15)), MAX('MDA1'!L15, 'MDA4'!T15, 'T1'!N15, MAX(T3_R1!M15, T3_R2!M15))) -> 10154 | T15: =IF(AND(COUNTRY_INFO!J15>1,COUNTRY_INFO!J15<4),IF(COUNTRY_INFO!E15>MAX('MDA4'!R15,'T1'!L15,MAX(T3_R1!K15,T3_R2!K15)),MAX('MDA4'!R15,'T1'!L15,MAX(T3_R1!K15,T3_R2!K15)),COUNTRY_INFO!E15),0) -> 1140.972534 | U15: =IF(AND(COUNTRY_INFO!J15>1,COUNTRY_INFO!J15<4), IF(T15/COUNTRY_INFO!E15*100<>0, IF(T15/COUNTRY_INFO!E15*100>100,100,T15/COUNTRY_INFO!E15*100), "-"),0) -> 17.25869815 | V15: =IF(AND(COUNTRY_INFO!J15>1,COUNTRY_INFO!J15<4),IF(COUNTRY_INFO!F15>MAX('MDA1'!K15,'MDA4'!S15,'T1'!M15,MAX(T3_R1!L15,T3_R2!L15)),MAX('MDA1'!K15,'MDA4'!S15,'T1'!M15,MAX(T3_R1!L15,T3_R2!L15)),COUNTRY_INFO!F15),0) -> 2377.657314 | W15: =IF(AND(COUNTRY_INFO!J15>1,COUNTRY_INFO!J15<4), IF(V15/COUNTRY_INFO!F15*100<>0, IF(V15/COUNTRY_INFO!F15*100>100,100,V15/COUNTRY_INFO!F15*100), "-"),0) -> 17.25816443 | X15: 3518.629848 | Y15: =IF(AND(COUNTRY_INFO!J15>1,COUNTRY_INFO!J15<4), IF(S15/P15*100<>0, IF(X15/P15*100>100,100,X15/P15*100), "-"),0) -> 17.25833749 | Z15: =COUNTRY_INFO!P15 -> 4546.41 | AC15: =MAX('T1'!L15,'T2'!J15)+MAX('T1'!M15,'T2'!K15)+MAX('T1'!N15,'T2'!L15) -> 0 | AD15: =IF(COUNTRY_INFO!K15=1,IF(COUNTRY_INFO!F15*0.33>MAX('T1'!M15,'T2'!K15),MAX('T1'!M15,'T2'!K15),COUNTRY_INFO!F15*0.33),IF(COUNTRY_INFO!K15=2,IF(COUNTRY_INFO!F15*0.5>MAX('T1'!M15,'T2'!K15),MAX('T1'!M15,'T2'!K15),COUNTRY_INFO!F15*0.5),IF(COUNTRY_INFO!K15=3,IF(COUNTRY_INFO!F15>MAX('T1'!M15,'T2'!K15),MAX('T1'!M15,'T2'!K15),COUNTRY_INFO!F15),0))) -> 0 | AE15: =IF(AND(COUNTRY_INFO!K15>0,COUNTRY_INFO!K15<4),IF(Z15>0,IF(COUNTRY_INFO!K15=1, AD15/(COUNTRY_INFO!F15*0.33)*100, IF(COUNTRY_INFO!K15=2, AD15/(COUNTRY_INFO!F15*0.5)*100, IF(COUNTRY_INFO!K15=3, AD15/COUNTRY_INFO!F15*100))),"-"),0) -> 0 | AF15: =IF(COUNTRY_INFO!K15=2,IF(COUNTRY_INFO!G15*0.2>MAX('T1'!N15,'T2'!L15),MAX('T1'!N15,'T2'!L15),COUNTRY_INFO!G15*0.2),IF(COUNTRY_INFO!K15=3,IF(COUNTRY_INFO!G15>MAX('T1'!N15,'T2'!L15),MAX('T1'!N15,'T2'!L15),COUNTRY_INFO!G15),0)) -> 0 | AG15: =IF(AND(COUNTRY_INFO!K15>0,COUNTRY_INFO!K15<4),IF(Z15>0,IF(COUNTRY_INFO!K15=1, 0, IF(COUNTRY_INFO!K15=2, AF15/(COUNTRY_INFO!G15*0.2)*100, IF(COUNTRY_INFO!K15=3, AF15/COUNTRY_INFO!G15*100))),"-"),0) -> 0 | AH15: 0 | AI15: =IF(AND(COUNTRY_INFO!K15>0,COUNTRY_INFO!K15<4), IF(AC15/Z15*100<>0, IF(AH15/Z15*100>100,100,AH15/Z15*100), "-"),0) -> - | AK15: =IF(AND(D15<>0, D15<>"Inconnu",D15<>"Interrompu",D15<>"Non requis"),D15/COUNTRY_INFO!D15, 0) -> 1 | AL15: =IF(AND(J15<>0,J15<>"Inconnu",J15<>"Interrompu",J15<>"Non requis"),J15/COUNTRY_INFO!D15, 0) -> 0 | AM15: =IF(AND(P15<>0,P15<>"Inconnu",P15<>"Non requis"),P15/(COUNTRY_INFO!E15+COUNTRY_INFO!F15), 0) -> 1 | AN15: =IF(AND(Z15<>0,Z15<>"Inconnu",Z15<>"Non requis"),IF(COUNTRY_INFO!K15=1,1,IF(COUNTRY_INFO!K15=2,0.5*COUNTRY_INFO!F15/(0.5*COUNTRY_INFO!F15+0.2*COUNTRY_INFO!G15),IF(COUNTRY_INFO!K15=3,COUNTRY_INFO!F15/(COUNTRY_INFO!F15+COUNTRY_INFO!G15)))),0) -> 1 | AO15: =IF(AND(Z15<>0,Z15<>"Inconnu",Z15<>"Non requis"),IF(COUNTRY_INFO!K15=1,0,IF(COUNTRY_INFO!K15=2,0.2*COUNTRY_INFO!G15/(0.5*COUNTRY_INFO!F15+0.2*COUNTRY_INFO!G15),IF(COUNTRY_INFO!K15=3,COUNTRY_INFO!G15/(COUNTRY_INFO!F15+COUNTRY_INFO!G15)))),0) -> 0 | AP15: =MAX(COUNTRY_INFO!D15*AK15*PROFILE!$G$7,COUNTRY_INFO!D15*AL15*PROFILE!$G$7) -> 2606.467752 | AQ15: =MAX(COUNTRY_INFO!D15*AK15*PROFILE!$G$8,COUNTRY_INFO!D15*AL15*PROFILE!$G$8,COUNTRY_INFO!D15*AM15*PROFILE!$G$8) -> 6611.067604 | AR15: =MAX(COUNTRY_INFO!D15*AK15*PROFILE!$G$9,COUNTRY_INFO!D15*AL15*PROFILE!$G$9,COUNTRY_INFO!D15*AM15*PROFILE!$G$9,IF(AND(DISTRICT!Z15<>"Inconnu",Z15<>"Non requis"),COUNTRY_INFO!P15*DISTRICT!AN15,0)) -> 13776.69834 | AS15: =MAX(COUNTRY_INFO!D15*AK15*PROFILE!$G$10,COUNTRY_INFO!D15*AL15*PROFILE!$G$10,IF(AND(DISTRICT!Z15<>"Inconnu",Z15<>"Non requis"),COUNTRY_INFO!P15*DISTRICT!AO15,0)) -> 38446.7663 | AT15: 61441 | AU15: 0 | AV15: =MAX('MDA4'!R15,'T1'!L15,'T2'!J15,T3_R1!K15,T3_R2!K15) -> 1140.972534 | AW15: =MAX('MDA1'!K15,'MDA4'!S15,'MDA3'!I15,'MDA3'!L15,'T1'!M15,'T2'!K15,T3_R1!L15,T3_R2!L15) -> 2377.657314 | AX15: =MAX('MDA1'!L15,'MDA4'!T15,'MDA3'!J15,'MDA3'!M15,'T1'!N15,'T2'!L15,T3_R1!M15,T3_R2!M15) -> 6635.370152 | AY15: 10154 | AZ15: =MAX('MDA4'!R15,T15) -> 1140.972534 | BA15: =MAX('MDA1'!K15,'MDA4'!S15,'MDA3'!I15,'MDA3'!L15,V15,AD15) -> 2377.657314 | BB15: =MAX('MDA1'!L15,'MDA4'!T15,'MDA3'!J15,'MDA3'!M15,AF15) -> 6635.370152 | BC15: 10154 | BD15: 16.52642372
A16: =IF(COUNTRY_INFO!A16=0," ",COUNTRY_INFO!A16) -> Equatorial Guinea | B16: =IF(COUNTRY_INFO!B16=0," ",COUNTRY_INFO!B16) -> Centro Sur | C16: =IF(COUNTRY_INFO!C16=0," ",COUNTRY_INFO!C16) -> Niefang | D16: =COUNTRY_INFO!M16 -> 78714 | G16: =MAX('MDA1'!M16,'MDA4'!U16) -> 6689 | H16: =IF(AND(COUNTRY_INFO!H16>0,COUNTRY_INFO!H16<4),IF(D16>MAX('MDA1'!M16,'MDA4'!U16),MAX('MDA1'!M16,'MDA4'!U16),D16),0) -> 6689 | I16: =IF(AND(COUNTRY_INFO!H16>0,COUNTRY_INFO!H16<4), IF(G16/D16*100<>0, IF(G16/D16*100>100,100,G16/D16*100), "-"),0) -> 8.497852987 | J16: =COUNTRY_INFO!N16 -> Inconnu | M16: =MAX('MDA1'!M16,MAX('MDA3'!I16,'MDA3'!L16)+MAX('MDA3'!J16,'MDA3'!M16)) -> 0 | N16: =IF(AND(COUNTRY_INFO!I16>0,COUNTRY_INFO!I16<4),IF(J16>MAX('MDA1'!M16,MAX('MDA3'!I16,'MDA3'!L16)+MAX('MDA3'!J16,'MDA3'!M16)),MAX('MDA1'!M16,MAX('MDA3'!I16,'MDA3'!L16)+MAX('MDA3'!J16,'MDA3'!M16)),J16),0) -> 0 | O16: =IF(AND(COUNTRY_INFO!I16>0,COUNTRY_INFO!I16<4), IF(M16/J16*100<>0, IF(M16/J16*100>100,100,M16/J16*100), "-"),0) -> 0 | P16: =COUNTRY_INFO!O16 -> 26120 | S16: =SUM(MAX('MDA4'!R16, 'T1'!L16, MAX(T3_R1!K16, T3_R2!K16)), MAX('MDA1'!K16, 'MDA4'!S16, 'T1'!M16, MAX(T3_R1!L16, T3_R2!L16)), MAX('MDA1'!L16, 'MDA4'!T16, 'T1'!N16, MAX(T3_R1!M16, T3_R2!M16))) -> 6689 | T16: =IF(AND(COUNTRY_INFO!J16>1,COUNTRY_INFO!J16<4),IF(COUNTRY_INFO!E16>MAX('MDA4'!R16,'T1'!L16,MAX(T3_R1!K16,T3_R2!K16)),MAX('MDA4'!R16,'T1'!L16,MAX(T3_R1!K16,T3_R2!K16)),COUNTRY_INFO!E16),0) -> 751.6215563 | U16: =IF(AND(COUNTRY_INFO!J16>1,COUNTRY_INFO!J16<4), IF(T16/COUNTRY_INFO!E16*100<>0, IF(T16/COUNTRY_INFO!E16*100>100,100,T16/COUNTRY_INFO!E16*100), "-"),0) -> 8.873926284 | V16: =IF(AND(COUNTRY_INFO!J16>1,COUNTRY_INFO!J16<4),IF(COUNTRY_INFO!F16>MAX('MDA1'!K16,'MDA4'!S16,'T1'!M16,MAX(T3_R1!L16,T3_R2!L16)),MAX('MDA1'!K16,'MDA4'!S16,'T1'!M16,MAX(T3_R1!L16,T3_R2!L16)),COUNTRY_INFO!F16),0) -> 1566.294049 | W16: =IF(AND(COUNTRY_INFO!J16>1,COUNTRY_INFO!J16<4), IF(V16/COUNTRY_INFO!F16*100<>0, IF(V16/COUNTRY_INFO!F16*100>100,100,V16/COUNTRY_INFO!F16*100), "-"),0) -> 8.874187246 | X16: 2317.915605 | Y16: =IF(AND(COUNTRY_INFO!J16>1,COUNTRY_INFO!J16<4), IF(S16/P16*100<>0, IF(X16/P16*100>100,100,X16/P16*100), "-"),0) -> 8.874102623 | Z16: =COUNTRY_INFO!P16 -> 5824.5 | AC16: =MAX('T1'!L16,'T2'!J16)+MAX('T1'!M16,'T2'!K16)+MAX('T1'!N16,'T2'!L16) -> 0 | AD16: =IF(COUNTRY_INFO!K16=1,IF(COUNTRY_INFO!F16*0.33>MAX('T1'!M16,'T2'!K16),MAX('T1'!M16,'T2'!K16),COUNTRY_INFO!F16*0.33),IF(COUNTRY_INFO!K16=2,IF(COUNTRY_INFO!F16*0.5>MAX('T1'!M16,'T2'!K16),MAX('T1'!M16,'T2'!K16),COUNTRY_INFO!F16*0.5),IF(COUNTRY_INFO!K16=3,IF(COUNTRY_INFO!F16>MAX('T1'!M16,'T2'!K16),MAX('T1'!M16,'T2'!K16),COUNTRY_INFO!F16),0))) -> 0 | AE16: =IF(AND(COUNTRY_INFO!K16>0,COUNTRY_INFO!K16<4),IF(Z16>0,IF(COUNTRY_INFO!K16=1, AD16/(COUNTRY_INFO!F16*0.33)*100, IF(COUNTRY_INFO!K16=2, AD16/(COUNTRY_INFO!F16*0.5)*100, IF(COUNTRY_INFO!K16=3, AD16/COUNTRY_INFO!F16*100))),"-"),0) -> 0 | AF16: =IF(COUNTRY_INFO!K16=2,IF(COUNTRY_INFO!G16*0.2>MAX('T1'!N16,'T2'!L16),MAX('T1'!N16,'T2'!L16),COUNTRY_INFO!G16*0.2),IF(COUNTRY_INFO!K16=3,IF(COUNTRY_INFO!G16>MAX('T1'!N16,'T2'!L16),MAX('T1'!N16,'T2'!L16),COUNTRY_INFO!G16),0)) -> 0 | AG16: =IF(AND(COUNTRY_INFO!K16>0,COUNTRY_INFO!K16<4),IF(Z16>0,IF(COUNTRY_INFO!K16=1, 0, IF(COUNTRY_INFO!K16=2, AF16/(COUNTRY_INFO!G16*0.2)*100, IF(COUNTRY_INFO!K16=3, AF16/COUNTRY_INFO!G16*100))),"-"),0) -> 0 | AH16: 0 | AI16: =IF(AND(COUNTRY_INFO!K16>0,COUNTRY_INFO!K16<4), IF(AC16/Z16*100<>0, IF(AH16/Z16*100>100,100,AH16/Z16*100), "-"),0) -> - | AK16: =IF(AND(D16<>0, D16<>"Inconnu",D16<>"Interrompu",D16<>"Non requis"),D16/COUNTRY_INFO!D16, 0) -> 1 | AL16: =IF(AND(J16<>0,J16<>"Inconnu",J16<>"Interrompu",J16<>"Non requis"),J16/COUNTRY_INFO!D16, 0) -> 0 | AM16: =IF(AND(P16<>0,P16<>"Inconnu",P16<>"Non requis"),P16/(COUNTRY_INFO!E16+COUNTRY_INFO!F16), 0) -> 1 | AN16: =IF(AND(Z16<>0,Z16<>"Inconnu",Z16<>"Non requis"),IF(COUNTRY_INFO!K16=1,1,IF(COUNTRY_INFO!K16=2,0.5*COUNTRY_INFO!F16/(0.5*COUNTRY_INFO!F16+0.2*COUNTRY_INFO!G16),IF(COUNTRY_INFO!K16=3,COUNTRY_INFO!F16/(COUNTRY_INFO!F16+COUNTRY_INFO!G16)))),0) -> 1 | AO16: =IF(AND(Z16<>0,Z16<>"Inconnu",Z16<>"Non requis"),IF(COUNTRY_INFO!K16=1,0,IF(COUNTRY_INFO!K16=2,0.2*COUNTRY_INFO!G16/(0.5*COUNTRY_INFO!F16+0.2*COUNTRY_INFO!G16),IF(COUNTRY_INFO!K16=3,COUNTRY_INFO!G16/(COUNTRY_INFO!F16+COUNTRY_INFO!G16)))),0) -> 0 | AP16: =MAX(COUNTRY_INFO!D16*AK16*PROFILE!$G$7,COUNTRY_INFO!D16*AL16*PROFILE!$G$7) -> 3339.227921 | AQ16: =MAX(COUNTRY_INFO!D16*AK16*PROFILE!$G$8,COUNTRY_INFO!D16*AL16*PROFILE!$G$8,COUNTRY_INFO!D16*AM16*PROFILE!$G$8) -> 8469.646903 | AR16: =MAX(COUNTRY_INFO!D16*AK16*PROFILE!$G$9,COUNTRY_INFO!D16*AL16*PROFILE!$G$9,COUNTRY_INFO!D16*AM16*PROFILE!$G$9,IF(AND(DISTRICT!Z16<>"Inconnu",Z16<>"Non requis"),COUNTRY_INFO!P16*DISTRICT!AN16,0)) -> 17649.7621 | AS16: =MAX(COUNTRY_INFO!D16*AK16*PROFILE!$G$10,COUNTRY_INFO!D16*AL16*PROFILE!$G$10,IF(AND(DISTRICT!Z16<>"Inconnu",Z16<>"Non requis"),COUNTRY_INFO!P16*DISTRICT!AO16,0)) -> 49255.36308 | AT16: 78714 | AU16: 0 | AV16: =MAX('MDA4'!R16,'T1'!L16,'T2'!J16,T3_R1!K16,T3_R2!K16) -> 751.6215563 | AW16: =MAX('MDA1'!K16,'MDA4'!S16,'MDA3'!I16,'MDA3'!L16,'T1'!M16,'T2'!K16,T3_R1!L16,T3_R2!L16) -> 1566.294049 | AX16: =MAX('MDA1'!L16,'MDA4'!T16,'MDA3'!J16,'MDA3'!M16,'T1'!N16,'T2'!L16,T3_R1!M16,T3_R2!M16) -> 4371.084395 | AY16: 6689 | AZ16: =MAX('MDA4'!R16,T16) -> 751.6215563 | BA16: =MAX('MDA1'!K16,'MDA4'!S16,'MDA3'!I16,'MDA3'!L16,V16,AD16) -> 1566.294049 | BB16: =MAX('MDA1'!L16,'MDA4'!T16,'MDA3'!J16,'MDA3'!M16,AF16) -> 4371.084395 | BC16: 6689 | BD16: 8.497852987
A17: =IF(COUNTRY_INFO!A17=0," ",COUNTRY_INFO!A17) -> Equatorial Guinea | B17: =IF(COUNTRY_INFO!B17=0," ",COUNTRY_INFO!B17) -> Kientem | C17: =IF(COUNTRY_INFO!C17=0," ",COUNTRY_INFO!C17) -> Ebebiyin | D17: =COUNTRY_INFO!M17 -> 131083 | G17: =MAX('MDA1'!M17,'MDA4'!U17) -> 20695 | H17: =IF(AND(COUNTRY_INFO!H17>0,COUNTRY_INFO!H17<4),IF(D17>MAX('MDA1'!M17,'MDA4'!U17),MAX('MDA1'!M17,'MDA4'!U17),D17),0) -> 20695 | I17: =IF(AND(COUNTRY_INFO!H17>0,COUNTRY_INFO!H17<4), IF(G17/D17*100<>0, IF(G17/D17*100>100,100,G17/D17*100), "-"),0) -> 15.78770703 | J17: =COUNTRY_INFO!N17 -> Inconnu | M17: =MAX('MDA1'!M17,MAX('MDA3'!I17,'MDA3'!L17)+MAX('MDA3'!J17,'MDA3'!M17)) -> 0 | N17: =IF(AND(COUNTRY_INFO!I17>0,COUNTRY_INFO!I17<4),IF(J17>MAX('MDA1'!M17,MAX('MDA3'!I17,'MDA3'!L17)+MAX('MDA3'!J17,'MDA3'!M17)),MAX('MDA1'!M17,MAX('MDA3'!I17,'MDA3'!L17)+MAX('MDA3'!J17,'MDA3'!M17)),J17),0) -> 0 | O17: =IF(AND(COUNTRY_INFO!I17>0,COUNTRY_INFO!I17<4), IF(M17/J17*100<>0, IF(M17/J17*100>100,100,M17/J17*100), "-"),0) -> 0 | P17: =COUNTRY_INFO!O17 -> 43497 | S17: =SUM(MAX('MDA4'!R17, 'T1'!L17, MAX(T3_R1!K17, T3_R2!K17)), MAX('MDA1'!K17, 'MDA4'!S17, 'T1'!M17, MAX(T3_R1!L17, T3_R2!L17)), MAX('MDA1'!L17, 'MDA4'!T17, 'T1'!N17, MAX(T3_R1!M17, T3_R2!M17))) -> 20695 | T17: =IF(AND(COUNTRY_INFO!J17>1,COUNTRY_INFO!J17<4),IF(COUNTRY_INFO!E17>MAX('MDA4'!R17,'T1'!L17,MAX(T3_R1!K17,T3_R2!K17)),MAX('MDA4'!R17,'T1'!L17,MAX(T3_R1!K17,T3_R2!K17)),COUNTRY_INFO!E17),0) -> 2325.431022 | U17: =IF(AND(COUNTRY_INFO!J17>1,COUNTRY_INFO!J17<4), IF(T17/COUNTRY_INFO!E17*100<>0, IF(T17/COUNTRY_INFO!E17*100>100,100,T17/COUNTRY_INFO!E17*100), "-"),0) -> 16.48657229 | V17: =IF(AND(COUNTRY_INFO!J17>1,COUNTRY_INFO!J17<4),IF(COUNTRY_INFO!F17>MAX('MDA1'!K17,'MDA4'!S17,'T1'!M17,MAX(T3_R1!L17,T3_R2!L17)),MAX('MDA1'!K17,'MDA4'!S17,'T1'!M17,MAX(T3_R1!L17,T3_R2!L17)),COUNTRY_INFO!F17),0) -> 4845.934421 | W17: =IF(AND(COUNTRY_INFO!J17>1,COUNTRY_INFO!J17<4), IF(V17/COUNTRY_INFO!F17*100<>0, IF(V17/COUNTRY_INFO!F17*100>100,100,V17/COUNTRY_INFO!F17*100), "-"),0) -> 16.48725647 | X17: 7171.365443 | Y17: =IF(AND(COUNTRY_INFO!J17>1,COUNTRY_INFO!J17<4), IF(S17/P17*100<>0, IF(X17/P17*100>100,100,X17/P17*100), "-"),0) -> 16.48703461 | Z17: =COUNTRY_INFO!P17 -> 9699.36 | AC17: =MAX('T1'!L17,'T2'!J17)+MAX('T1'!M17,'T2'!K17)+MAX('T1'!N17,'T2'!L17) -> 0 | AD17: =IF(COUNTRY_INFO!K17=1,IF(COUNTRY_INFO!F17*0.33>MAX('T1'!M17,'T2'!K17),MAX('T1'!M17,'T2'!K17),COUNTRY_INFO!F17*0.33),IF(COUNTRY_INFO!K17=2,IF(COUNTRY_INFO!F17*0.5>MAX('T1'!M17,'T2'!K17),MAX('T1'!M17,'T2'!K17),COUNTRY_INFO!F17*0.5),IF(COUNTRY_INFO!K17=3,IF(COUNTRY_INFO!F17>MAX('T1'!M17,'T2'!K17),MAX('T1'!M17,'T2'!K17),COUNTRY_INFO!F17),0))) -> 0 | AE17: =IF(AND(COUNTRY_INFO!K17>0,COUNTRY_INFO!K17<4),IF(Z17>0,IF(COUNTRY_INFO!K17=1, AD17/(COUNTRY_INFO!F17*0.33)*100, IF(COUNTRY_INFO!K17=2, AD17/(COUNTRY_INFO!F17*0.5)*100, IF(COUNTRY_INFO!K17=3, AD17/COUNTRY_INFO!F17*100))),"-"),0) -> 0 | AF17: =IF(COUNTRY_INFO!K17=2,IF(COUNTRY_INFO!G17*0.2>MAX('T1'!N17,'T2'!L17),MAX('T1'!N17,'T2'!L17),COUNTRY_INFO!G17*0.2),IF(COUNTRY_INFO!K17=3,IF(COUNTRY_INFO!G17>MAX('T1'!N17,'T2'!L17),MAX('T1'!N17,'T2'!L17),COUNTRY_INFO!G17),0)) -> 0 | AG17: =IF(AND(COUNTRY_INFO!K17>0,COUNTRY_INFO!K17<4),IF(Z17>0,IF(COUNTRY_INFO!K17=1, 0, IF(COUNTRY_INFO!K17=2, AF17/(COUNTRY_INFO!G17*0.2)*100, IF(COUNTRY_INFO!K17=3, AF17/COUNTRY_INFO!G17*100))),"-"),0) -> 0 | AH17: 0 | AI17: =IF(AND(COUNTRY_INFO!K17>0,COUNTRY_INFO!K17<4), IF(AC17/Z17*100<>0, IF(AH17/Z17*100>100,100,AH17/Z17*100), "-"),0) -> - | AK17: =IF(AND(D17<>0, D17<>"Inconnu",D17<>"Interrompu",D17<>"Non requis"),D17/COUNTRY_INFO!D17, 0) -> 1 | AL17: =IF(AND(J17<>0,J17<>"Inconnu",J17<>"Interrompu",J17<>"Non requis"),J17/COUNTRY_INFO!D17, 0) -> 0 | AM17: =IF(AND(P17<>0,P17<>"Inconnu",P17<>"Non requis"),P17/(COUNTRY_INFO!E17+COUNTRY_INFO!F17), 0) -> 1 | AN17: =IF(AND(Z17<>0,Z17<>"Inconnu",Z17<>"Non requis"),IF(COUNTRY_INFO!K17=1,1,IF(COUNTRY_INFO!K17=2,0.5*COUNTRY_INFO!F17/(0.5*COUNTRY_INFO!F17+0.2*COUNTRY_INFO!G17),IF(COUNTRY_INFO!K17=3,COUNTRY_INFO!F17/(COUNTRY_INFO!F17+COUNTRY_INFO!G17)))),0) -> 1 | AO17: =IF(AND(Z17<>0,Z17<>"Inconnu",Z17<>"Non requis"),IF(COUNTRY_INFO!K17=1,0,IF(COUNTRY_INFO!K17=2,0.2*COUNTRY_INFO!G17/(0.5*COUNTRY_INFO!F17+0.2*COUNTRY_INFO!G17),IF(COUNTRY_INFO!K17=3,COUNTRY_INFO!G17/(COUNTRY_INFO!F17+COUNTRY_INFO!G17)))),0) -> 0 | AP17: =MAX(COUNTRY_INFO!D17*AK17*PROFILE!$G$7,COUNTRY_INFO!D17*AL17*PROFILE!$G$7) -> 5560.840683 | AQ17: =MAX(COUNTRY_INFO!D17*AK17*PROFILE!$G$8,COUNTRY_INFO!D17*AL17*PROFILE!$G$8,COUNTRY_INFO!D17*AM17*PROFILE!$G$8) -> 14104.56494 | AR17: =MAX(COUNTRY_INFO!D17*AK17*PROFILE!$G$9,COUNTRY_INFO!D17*AL17*PROFILE!$G$9,COUNTRY_INFO!D17*AM17*PROFILE!$G$9,IF(AND(DISTRICT!Z17<>"Inconnu",Z17<>"Non requis"),COUNTRY_INFO!P17*DISTRICT!AN17,0)) -> 29392.27793 | AS17: =MAX(COUNTRY_INFO!D17*AK17*PROFILE!$G$10,COUNTRY_INFO!D17*AL17*PROFILE!$G$10,IF(AND(DISTRICT!Z17<>"Inconnu",Z17<>"Non requis"),COUNTRY_INFO!P17*DISTRICT!AO17,0)) -> 82025.31644 | AT17: 131083 | AU17: 0 | AV17: =MAX('MDA4'!R17,'T1'!L17,'T2'!J17,T3_R1!K17,T3_R2!K17) -> 2325.431022 | AW17: =MAX('MDA1'!K17,'MDA4'!S17,'MDA3'!I17,'MDA3'!L17,'T1'!M17,'T2'!K17,T3_R1!L17,T3_R2!L17) -> 4845.934421 | AX17: =MAX('MDA1'!L17,'MDA4'!T17,'MDA3'!J17,'MDA3'!M17,'T1'!N17,'T2'!L17,T3_R1!M17,T3_R2!M17) -> 13523.63456 | AY17: 20695 | AZ17: =MAX('MDA4'!R17,T17) -> 2325.431022 | BA17: =MAX('MDA1'!K17,'MDA4'!S17,'MDA3'!I17,'MDA3'!L17,V17,AD17) -> 4845.934421 | BB17: =MAX('MDA1'!L17,'MDA4'!T17,'MDA3'!J17,'MDA3'!M17,AF17) -> 13523.63456 | BC17: 20695 | BD17: 15.78770703
A18: =IF(COUNTRY_INFO!A18=0," ",COUNTRY_INFO!A18) -> Equatorial Guinea | B18: =IF(COUNTRY_INFO!B18=0," ",COUNTRY_INFO!B18) -> Kientem | C18: =IF(COUNTRY_INFO!C18=0," ",COUNTRY_INFO!C18) -> Micomiseng | D18: =COUNTRY_INFO!M18 -> 86185 | G18: =MAX('MDA1'!M18,'MDA4'!U18) -> 10397 | H18: =IF(AND(COUNTRY_INFO!H18>0,COUNTRY_INFO!H18<4),IF(D18>MAX('MDA1'!M18,'MDA4'!U18),MAX('MDA1'!M18,'MDA4'!U18),D18),0) -> 10397 | I18: =IF(AND(COUNTRY_INFO!H18>0,COUNTRY_INFO!H18<4), IF(G18/D18*100<>0, IF(G18/D18*100>100,100,G18/D18*100), "-"),0) -> 12.06358415 | J18: =COUNTRY_INFO!N18 -> Inconnu | M18: =MAX('MDA1'!M18,MAX('MDA3'!I18,'MDA3'!L18)+MAX('MDA3'!J18,'MDA3'!M18)) -> 0 | N18: =IF(AND(COUNTRY_INFO!I18>0,COUNTRY_INFO!I18<4),IF(J18>MAX('MDA1'!M18,MAX('MDA3'!I18,'MDA3'!L18)+MAX('MDA3'!J18,'MDA3'!M18)),MAX('MDA1'!M18,MAX('MDA3'!I18,'MDA3'!L18)+MAX('MDA3'!J18,'MDA3'!M18)),J18),0) -> 0 | O18: =IF(AND(COUNTRY_INFO!I18>0,COUNTRY_INFO!I18<4), IF(M18/J18*100<>0, IF(M18/J18*100>100,100,M18/J18*100), "-"),0) -> 0 | P18: =COUNTRY_INFO!O18 -> 28599 | S18: =SUM(MAX('MDA4'!R18, 'T1'!L18, MAX(T3_R1!K18, T3_R2!K18)), MAX('MDA1'!K18, 'MDA4'!S18, 'T1'!M18, MAX(T3_R1!L18, T3_R2!L18)), MAX('MDA1'!L18, 'MDA4'!T18, 'T1'!N18, MAX(T3_R1!M18, T3_R2!M18))) -> 10397 | T18: =IF(AND(COUNTRY_INFO!J18>1,COUNTRY_INFO!J18<4),IF(COUNTRY_INFO!E18>MAX('MDA4'!R18,'T1'!L18,MAX(T3_R1!K18,T3_R2!K18)),MAX('MDA4'!R18,'T1'!L18,MAX(T3_R1!K18,T3_R2!K18)),COUNTRY_INFO!E18),0) -> 1168.277668 | U18: =IF(AND(COUNTRY_INFO!J18>1,COUNTRY_INFO!J18<4), IF(T18/COUNTRY_INFO!E18*100<>0, IF(T18/COUNTRY_INFO!E18*100>100,100,T18/COUNTRY_INFO!E18*100), "-"),0) -> 12.59734384 | V18: =IF(AND(COUNTRY_INFO!J18>1,COUNTRY_INFO!J18<4),IF(COUNTRY_INFO!F18>MAX('MDA1'!K18,'MDA4'!S18,'T1'!M18,MAX(T3_R1!L18,T3_R2!L18)),MAX('MDA1'!K18,'MDA4'!S18,'T1'!M18,MAX(T3_R1!L18,T3_R2!L18)),COUNTRY_INFO!F18),0) -> 2434.558114 | W18: =IF(AND(COUNTRY_INFO!J18>1,COUNTRY_INFO!J18<4), IF(V18/COUNTRY_INFO!F18*100<>0, IF(V18/COUNTRY_INFO!F18*100>100,100,V18/COUNTRY_INFO!F18*100), "-"),0) -> 12.59797213 | X18: 3602.835782 | Y18: =IF(AND(COUNTRY_INFO!J18>1,COUNTRY_INFO!J18<4), IF(S18/P18*100<>0, IF(X18/P18*100>100,100,X18/P18*100), "-"),0) -> 12.59776839 | Z18: =COUNTRY_INFO!P18 -> 6377.25 | AC18: =MAX('T1'!L18,'T2'!J18)+MAX('T1'!M18,'T2'!K18)+MAX('T1'!N18,'T2'!L18) -> 0 | AD18: =IF(COUNTRY_INFO!K18=1,IF(COUNTRY_INFO!F18*0.33>MAX('T1'!M18,'T2'!K18),MAX('T1'!M18,'T2'!K18),COUNTRY_INFO!F18*0.33),IF(COUNTRY_INFO!K18=2,IF(COUNTRY_INFO!F18*0.5>MAX('T1'!M18,'T2'!K18),MAX('T1'!M18,'T2'!K18),COUNTRY_INFO!F18*0.5),IF(COUNTRY_INFO!K18=3,IF(COUNTRY_INFO!F18>MAX('T1'!M18,'T2'!K18),MAX('T1'!M18,'T2'!K18),COUNTRY_INFO!F18),0))) -> 0 | AE18: =IF(AND(COUNTRY_INFO!K18>0,COUNTRY_INFO!K18<4),IF(Z18>0,IF(COUNTRY_INFO!K18=1, AD18/(COUNTRY_INFO!F18*0.33)*100, IF(COUNTRY_INFO!K18=2, AD18/(COUNTRY_INFO!F18*0.5)*100, IF(COUNTRY_INFO!K18=3, AD18/COUNTRY_INFO!F18*100))),"-"),0) -> 0 | AF18: =IF(COUNTRY_INFO!K18=2,IF(COUNTRY_INFO!G18*0.2>MAX('T1'!N18,'T2'!L18),MAX('T1'!N18,'T2'!L18),COUNTRY_INFO!G18*0.2),IF(COUNTRY_INFO!K18=3,IF(COUNTRY_INFO!G18>MAX('T1'!N18,'T2'!L18),MAX('T1'!N18,'T2'!L18),COUNTRY_INFO!G18),0)) -> 0 | AG18: =IF(AND(COUNTRY_INFO!K18>0,COUNTRY_INFO!K18<4),IF(Z18>0,IF(COUNTRY_INFO!K18=1, 0, IF(COUNTRY_INFO!K18=2, AF18/(COUNTRY_INFO!G18*0.2)*100, IF(COUNTRY_INFO!K18=3, AF18/COUNTRY_INFO!G18*100))),"-"),0) -> 0 | AH18: 0 | AI18: =IF(AND(COUNTRY_INFO!K18>0,COUNTRY_INFO!K18<4), IF(AC18/Z18*100<>0, IF(AH18/Z18*100>100,100,AH18/Z18*100), "-"),0) -> - | AK18: =IF(AND(D18<>0, D18<>"Inconnu",D18<>"Interrompu",D18<>"Non requis"),D18/COUNTRY_INFO!D18, 0) -> 1 | AL18: =IF(AND(J18<>0,J18<>"Inconnu",J18<>"Interrompu",J18<>"Non requis"),J18/COUNTRY_INFO!D18, 0) -> 0 | AM18: =IF(AND(P18<>0,P18<>"Inconnu",P18<>"Non requis"),P18/(COUNTRY_INFO!E18+COUNTRY_INFO!F18), 0) -> 1 | AN18: =IF(AND(Z18<>0,Z18<>"Inconnu",Z18<>"Non requis"),IF(COUNTRY_INFO!K18=1,1,IF(COUNTRY_INFO!K18=2,0.5*COUNTRY_INFO!F18/(0.5*COUNTRY_INFO!F18+0.2*COUNTRY_INFO!G18),IF(COUNTRY_INFO!K18=3,COUNTRY_INFO!F18/(COUNTRY_INFO!F18+COUNTRY_INFO!G18)))),0) -> 1 | AO18: =IF(AND(Z18<>0,Z18<>"Inconnu",Z18<>"Non requis"),IF(COUNTRY_INFO!K18=1,0,IF(COUNTRY_INFO!K18=2,0.2*COUNTRY_INFO!G18/(0.5*COUNTRY_INFO!F18+0.2*COUNTRY_INFO!G18),IF(COUNTRY_INFO!K18=3,COUNTRY_INFO!G18/(COUNTRY_INFO!F18+COUNTRY_INFO!G18)))),0) -> 0 | AP18: =MAX(COUNTRY_INFO!D18*AK18*PROFILE!$G$7,COUNTRY_INFO!D18*AL18*PROFILE!$G$7) -> 3656.164829 | AQ18: =MAX(COUNTRY_INFO!D18*AK18*PROFILE!$G$8,COUNTRY_INFO!D18*AL18*PROFILE!$G$8,COUNTRY_INFO!D18*AM18*PROFILE!$G$8) -> 9273.528449 | AR18: =MAX(COUNTRY_INFO!D18*AK18*PROFILE!$G$9,COUNTRY_INFO!D18*AL18*PROFILE!$G$9,COUNTRY_INFO!D18*AM18*PROFILE!$G$9,IF(AND(DISTRICT!Z18<>"Inconnu",Z18<>"Non requis"),COUNTRY_INFO!P18*DISTRICT!AN18,0)) -> 19324.95803 | AS18: =MAX(COUNTRY_INFO!D18*AK18*PROFILE!$G$10,COUNTRY_INFO!D18*AL18*PROFILE!$G$10,IF(AND(DISTRICT!Z18<>"Inconnu",Z18<>"Non requis"),COUNTRY_INFO!P18*DISTRICT!AO18,0)) -> 53930.34869 | AT18: 86185 | AU18: 0 | AV18: =MAX('MDA4'!R18,'T1'!L18,'T2'!J18,T3_R1!K18,T3_R2!K18) -> 1168.277668 | AW18: =MAX('MDA1'!K18,'MDA4'!S18,'MDA3'!I18,'MDA3'!L18,'T1'!M18,'T2'!K18,T3_R1!L18,T3_R2!L18) -> 2434.558114 | AX18: =MAX('MDA1'!L18,'MDA4'!T18,'MDA3'!J18,'MDA3'!M18,'T1'!N18,'T2'!L18,T3_R1!M18,T3_R2!M18) -> 6794.164218 | AY18: 10397 | AZ18: =MAX('MDA4'!R18,T18) -> 1168.277668 | BA18: =MAX('MDA1'!K18,'MDA4'!S18,'MDA3'!I18,'MDA3'!L18,V18,AD18) -> 2434.558114 | BB18: =MAX('MDA1'!L18,'MDA4'!T18,'MDA3'!J18,'MDA3'!M18,AF18) -> 6794.164218 | BC18: 10397 | BD18: 12.06358415
A19: =IF(COUNTRY_INFO!A19=0," ",COUNTRY_INFO!A19) -> Equatorial Guinea | B19: =IF(COUNTRY_INFO!B19=0," ",COUNTRY_INFO!B19) -> Kientem | C19: =IF(COUNTRY_INFO!C19=0," ",COUNTRY_INFO!C19) -> Nsoknsomo | D19: =COUNTRY_INFO!M19 -> 49688 | G19: =MAX('MDA1'!M19,'MDA4'!U19) -> 4843 | H19: =IF(AND(COUNTRY_INFO!H19>0,COUNTRY_INFO!H19<4),IF(D19>MAX('MDA1'!M19,'MDA4'!U19),MAX('MDA1'!M19,'MDA4'!U19),D19),0) -> 4843 | I19: =IF(AND(COUNTRY_INFO!H19>0,COUNTRY_INFO!H19<4), IF(G19/D19*100<>0, IF(G19/D19*100>100,100,G19/D19*100), "-"),0) -> 9.746820158 | J19: =COUNTRY_INFO!N19 -> Inconnu | M19: =MAX('MDA1'!M19,MAX('MDA3'!I19,'MDA3'!L19)+MAX('MDA3'!J19,'MDA3'!M19)) -> 0 | N19: =IF(AND(COUNTRY_INFO!I19>0,COUNTRY_INFO!I19<4),IF(J19>MAX('MDA1'!M19,MAX('MDA3'!I19,'MDA3'!L19)+MAX('MDA3'!J19,'MDA3'!M19)),MAX('MDA1'!M19,MAX('MDA3'!I19,'MDA3'!L19)+MAX('MDA3'!J19,'MDA3'!M19)),J19),0) -> 0 | O19: =IF(AND(COUNTRY_INFO!I19>0,COUNTRY_INFO!I19<4), IF(M19/J19*100<>0, IF(M19/J19*100>100,100,M19/J19*100), "-"),0) -> 0 | P19: =COUNTRY_INFO!O19 -> 16487 | S19: =SUM(MAX('MDA4'!R19, 'T1'!L19, MAX(T3_R1!K19, T3_R2!K19)), MAX('MDA1'!K19, 'MDA4'!S19, 'T1'!M19, MAX(T3_R1!L19, T3_R2!L19)), MAX('MDA1'!L19, 'MDA4'!T19, 'T1'!N19, MAX(T3_R1!M19, T3_R2!M19))) -> 4843 | T19: =IF(AND(COUNTRY_INFO!J19>1,COUNTRY_INFO!J19<4),IF(COUNTRY_INFO!E19>MAX('MDA4'!R19,'T1'!L19,MAX(T3_R1!K19,T3_R2!K19)),MAX('MDA4'!R19,'T1'!L19,MAX(T3_R1!K19,T3_R2!K19)),COUNTRY_INFO!E19),0) -> 544.1924349 | U19: =IF(AND(COUNTRY_INFO!J19>1,COUNTRY_INFO!J19<4), IF(T19/COUNTRY_INFO!E19*100<>0, IF(T19/COUNTRY_INFO!E19*100>100,100,T19/COUNTRY_INFO!E19*100), "-"),0) -> 10.179432 | V19: =IF(AND(COUNTRY_INFO!J19>1,COUNTRY_INFO!J19<4),IF(COUNTRY_INFO!F19>MAX('MDA1'!K19,'MDA4'!S19,'T1'!M19,MAX(T3_R1!L19,T3_R2!L19)),MAX('MDA1'!K19,'MDA4'!S19,'T1'!M19,MAX(T3_R1!L19,T3_R2!L19)),COUNTRY_INFO!F19),0) -> 1134.035294 | W19: =IF(AND(COUNTRY_INFO!J19>1,COUNTRY_INFO!J19<4), IF(V19/COUNTRY_INFO!F19*100<>0, IF(V19/COUNTRY_INFO!F19*100>100,100,V19/COUNTRY_INFO!F19*100), "-"),0) -> 10.1789363 | X19: 1678.227728 | Y19: =IF(AND(COUNTRY_INFO!J19>1,COUNTRY_INFO!J19<4), IF(S19/P19*100<>0, IF(X19/P19*100>100,100,X19/P19*100), "-"),0) -> 10.17909704 | Z19: =COUNTRY_INFO!P19 -> 3676.53 | AC19: =MAX('T1'!L19,'T2'!J19)+MAX('T1'!M19,'T2'!K19)+MAX('T1'!N19,'T2'!L19) -> 0 | AD19: =IF(COUNTRY_INFO!K19=1,IF(COUNTRY_INFO!F19*0.33>MAX('T1'!M19,'T2'!K19),MAX('T1'!M19,'T2'!K19),COUNTRY_INFO!F19*0.33),IF(COUNTRY_INFO!K19=2,IF(COUNTRY_INFO!F19*0.5>MAX('T1'!M19,'T2'!K19),MAX('T1'!M19,'T2'!K19),COUNTRY_INFO!F19*0.5),IF(COUNTRY_INFO!K19=3,IF(COUNTRY_INFO!F19>MAX('T1'!M19,'T2'!K19),MAX('T1'!M19,'T2'!K19),COUNTRY_INFO!F19),0))) -> 0 | AE19: =IF(AND(COUNTRY_INFO!K19>0,COUNTRY_INFO!K19<4),IF(Z19>0,IF(COUNTRY_INFO!K19=1, AD19/(COUNTRY_INFO!F19*0.33)*100, IF(COUNTRY_INFO!K19=2, AD19/(COUNTRY_INFO!F19*0.5)*100, IF(COUNTRY_INFO!K19=3, AD19/COUNTRY_INFO!F19*100))),"-"),0) -> 0 | AF19: =IF(COUNTRY_INFO!K19=2,IF(COUNTRY_INFO!G19*0.2>MAX('T1'!N19,'T2'!L19),MAX('T1'!N19,'T2'!L19),COUNTRY_INFO!G19*0.2),IF(COUNTRY_INFO!K19=3,IF(COUNTRY_INFO!G19>MAX('T1'!N19,'T2'!L19),MAX('T1'!N19,'T2'!L19),COUNTRY_INFO!G19),0)) -> 0 | AG19: =IF(AND(COUNTRY_INFO!K19>0,COUNTRY_INFO!K19<4),IF(Z19>0,IF(COUNTRY_INFO!K19=1, 0, IF(COUNTRY_INFO!K19=2, AF19/(COUNTRY_INFO!G19*0.2)*100, IF(COUNTRY_INFO!K19=3, AF19/COUNTRY_INFO!G19*100))),"-"),0) -> 0 | AH19: 0 | AI19: =IF(AND(COUNTRY_INFO!K19>0,COUNTRY_INFO!K19<4), IF(AC19/Z19*100<>0, IF(AH19/Z19*100>100,100,AH19/Z19*100), "-"),0) -> - | AK19: =IF(AND(D19<>0, D19<>"Inconnu",D19<>"Interrompu",D19<>"Non requis"),D19/COUNTRY_INFO!D19, 0) -> 1 | AL19: =IF(AND(J19<>0,J19<>"Inconnu",J19<>"Interrompu",J19<>"Non requis"),J19/COUNTRY_INFO!D19, 0) -> 0 | AM19: =IF(AND(P19<>0,P19<>"Inconnu",P19<>"Non requis"),P19/(COUNTRY_INFO!E19+COUNTRY_INFO!F19), 0) -> 1 | AN19: =IF(AND(Z19<>0,Z19<>"Inconnu",Z19<>"Non requis"),IF(COUNTRY_INFO!K19=1,1,IF(COUNTRY_INFO!K19=2,0.5*COUNTRY_INFO!F19/(0.5*COUNTRY_INFO!F19+0.2*COUNTRY_INFO!G19),IF(COUNTRY_INFO!K19=3,COUNTRY_INFO!F19/(COUNTRY_INFO!F19+COUNTRY_INFO!G19)))),0) -> 1 | AO19: =IF(AND(Z19<>0,Z19<>"Inconnu",Z19<>"Non requis"),IF(COUNTRY_INFO!K19=1,0,IF(COUNTRY_INFO!K19=2,0.2*COUNTRY_INFO!G19/(0.5*COUNTRY_INFO!F19+0.2*COUNTRY_INFO!G19),IF(COUNTRY_INFO!K19=3,COUNTRY_INFO!G19/(COUNTRY_INFO!F19+COUNTRY_INFO!G19)))),0) -> 0 | AP19: =MAX(COUNTRY_INFO!D19*AK19*PROFILE!$G$7,COUNTRY_INFO!D19*AL19*PROFILE!$G$7) -> 2107.87861 | AQ19: =MAX(COUNTRY_INFO!D19*AK19*PROFILE!$G$8,COUNTRY_INFO!D19*AL19*PROFILE!$G$8,COUNTRY_INFO!D19*AM19*PROFILE!$G$8) -> 5346.441743 | AR19: =MAX(COUNTRY_INFO!D19*AK19*PROFILE!$G$9,COUNTRY_INFO!D19*AL19*PROFILE!$G$9,COUNTRY_INFO!D19*AM19*PROFILE!$G$9,IF(AND(DISTRICT!Z19<>"Inconnu",Z19<>"Non requis"),COUNTRY_INFO!P19*DISTRICT!AN19,0)) -> 11141.36468 | AS19: =MAX(COUNTRY_INFO!D19*AK19*PROFILE!$G$10,COUNTRY_INFO!D19*AL19*PROFILE!$G$10,IF(AND(DISTRICT!Z19<>"Inconnu",Z19<>"Non requis"),COUNTRY_INFO!P19*DISTRICT!AO19,0)) -> 31092.31497 | AT19: 49688 | AU19: 0 | AV19: =MAX('MDA4'!R19,'T1'!L19,'T2'!J19,T3_R1!K19,T3_R2!K19) -> 544.1924349 | AW19: =MAX('MDA1'!K19,'MDA4'!S19,'MDA3'!I19,'MDA3'!L19,'T1'!M19,'T2'!K19,T3_R1!L19,T3_R2!L19) -> 1134.035294 | AX19: =MAX('MDA1'!L19,'MDA4'!T19,'MDA3'!J19,'MDA3'!M19,'T1'!N19,'T2'!L19,T3_R1!M19,T3_R2!M19) -> 3164.772272 | AY19: 4843 | AZ19: =MAX('MDA4'!R19,T19) -> 544.1924349 | BA19: =MAX('MDA1'!K19,'MDA4'!S19,'MDA3'!I19,'MDA3'!L19,V19,AD19) -> 1134.035294 | BB19: =MAX('MDA1'!L19,'MDA4'!T19,'MDA3'!J19,'MDA3'!M19,AF19) -> 3164.772272 | BC19: 4843 | BD19: 9.746820158
A20: =IF(COUNTRY_INFO!A20=0," ",COUNTRY_INFO!A20) -> Equatorial Guinea | B20: =IF(COUNTRY_INFO!B20=0," ",COUNTRY_INFO!B20) -> Litoral | C20: =IF(COUNTRY_INFO!C20=0," ",COUNTRY_INFO!C20) -> Bata | D20: =COUNTRY_INFO!M20 -> 205458 | G20: =MAX('MDA1'!M20,'MDA4'!U20) -> 76824 | H20: =IF(AND(COUNTRY_INFO!H20>0,COUNTRY_INFO!H20<4),IF(D20>MAX('MDA1'!M20,'MDA4'!U20),MAX('MDA1'!M20,'MDA4'!U20),D20),0) -> 76824 | I20: =IF(AND(COUNTRY_INFO!H20>0,COUNTRY_INFO!H20<4), IF(G20/D20*100<>0, IF(G20/D20*100>100,100,G20/D20*100), "-"),0) -> 37.39158368 | J20: =COUNTRY_INFO!N20 -> Inconnu | M20: =MAX('MDA1'!M20,MAX('MDA3'!I20,'MDA3'!L20)+MAX('MDA3'!J20,'MDA3'!M20)) -> 0 | N20: =IF(AND(COUNTRY_INFO!I20>0,COUNTRY_INFO!I20<4),IF(J20>MAX('MDA1'!M20,MAX('MDA3'!I20,'MDA3'!L20)+MAX('MDA3'!J20,'MDA3'!M20)),MAX('MDA1'!M20,MAX('MDA3'!I20,'MDA3'!L20)+MAX('MDA3'!J20,'MDA3'!M20)),J20),0) -> 0 | O20: =IF(AND(COUNTRY_INFO!I20>0,COUNTRY_INFO!I20<4), IF(M20/J20*100<>0, IF(M20/J20*100>100,100,M20/J20*100), "-"),0) -> 0 | P20: =COUNTRY_INFO!O20 -> 68176 | S20: =SUM(MAX('MDA4'!R20, 'T1'!L20, MAX(T3_R1!K20, T3_R2!K20)), MAX('MDA1'!K20, 'MDA4'!S20, 'T1'!M20, MAX(T3_R1!L20, T3_R2!L20)), MAX('MDA1'!L20, 'MDA4'!T20, 'T1'!N20, MAX(T3_R1!M20, T3_R2!M20))) -> 76824 | T20: =IF(AND(COUNTRY_INFO!J20>1,COUNTRY_INFO!J20<4),IF(COUNTRY_INFO!E20>MAX('MDA4'!R20,'T1'!L20,MAX(T3_R1!K20,T3_R2!K20)),MAX('MDA4'!R20,'T1'!L20,MAX(T3_R1!K20,T3_R2!K20)),COUNTRY_INFO!E20),0) -> 8632.4674 | U20: =IF(AND(COUNTRY_INFO!J20>1,COUNTRY_INFO!J20<4), IF(T20/COUNTRY_INFO!E20*100<>0, IF(T20/COUNTRY_INFO!E20*100>100,100,T20/COUNTRY_INFO!E20*100), "-"),0) -> 39.04857014 | V20: =IF(AND(COUNTRY_INFO!J20>1,COUNTRY_INFO!J20<4),IF(COUNTRY_INFO!F20>MAX('MDA1'!K20,'MDA4'!S20,'T1'!M20,MAX(T3_R1!L20,T3_R2!L20)),MAX('MDA1'!K20,'MDA4'!S20,'T1'!M20,MAX(T3_R1!L20,T3_R2!L20)),COUNTRY_INFO!F20),0) -> 17989.08267 | W20: =IF(AND(COUNTRY_INFO!J20>1,COUNTRY_INFO!J20<4), IF(V20/COUNTRY_INFO!F20*100<>0, IF(V20/COUNTRY_INFO!F20*100>100,100,V20/COUNTRY_INFO!F20*100), "-"),0) -> 39.04812927 | X20: 26621.55007 | Y20: =IF(AND(COUNTRY_INFO!J20>1,COUNTRY_INFO!J20<4), IF(S20/P20*100<>0, IF(X20/P20*100>100,100,X20/P20*100), "-"),0) -> 39.04827223 | Z20: =COUNTRY_INFO!P20 -> 48747.7 | AC20: =MAX('T1'!L20,'T2'!J20)+MAX('T1'!M20,'T2'!K20)+MAX('T1'!N20,'T2'!L20) -> 0 | AD20: =IF(COUNTRY_INFO!K20=1,IF(COUNTRY_INFO!F20*0.33>MAX('T1'!M20,'T2'!K20),MAX('T1'!M20,'T2'!K20),COUNTRY_INFO!F20*0.33),IF(COUNTRY_INFO!K20=2,IF(COUNTRY_INFO!F20*0.5>MAX('T1'!M20,'T2'!K20),MAX('T1'!M20,'T2'!K20),COUNTRY_INFO!F20*0.5),IF(COUNTRY_INFO!K20=3,IF(COUNTRY_INFO!F20>MAX('T1'!M20,'T2'!K20),MAX('T1'!M20,'T2'!K20),COUNTRY_INFO!F20),0))) -> 0 | AE20: =IF(AND(COUNTRY_INFO!K20>0,COUNTRY_INFO!K20<4),IF(Z20>0,IF(COUNTRY_INFO!K20=1, AD20/(COUNTRY_INFO!F20*0.33)*100, IF(COUNTRY_INFO!K20=2, AD20/(COUNTRY_INFO!F20*0.5)*100, IF(COUNTRY_INFO!K20=3, AD20/COUNTRY_INFO!F20*100))),"-"),0) -> 0 | AF20: =IF(COUNTRY_INFO!K20=2,IF(COUNTRY_INFO!G20*0.2>MAX('T1'!N20,'T2'!L20),MAX('T1'!N20,'T2'!L20),COUNTRY_INFO!G20*0.2),IF(COUNTRY_INFO!K20=3,IF(COUNTRY_INFO!G20>MAX('T1'!N20,'T2'!L20),MAX('T1'!N20,'T2'!L20),COUNTRY_INFO!G20),0)) -> 0 | AG20: =IF(AND(COUNTRY_INFO!K20>0,COUNTRY_INFO!K20<4),IF(Z20>0,IF(COUNTRY_INFO!K20=1, 0, IF(COUNTRY_INFO!K20=2, AF20/(COUNTRY_INFO!G20*0.2)*100, IF(COUNTRY_INFO!K20=3, AF20/COUNTRY_INFO!G20*100))),"-"),0) -> 0 | AH20: 0 | AI20: =IF(AND(COUNTRY_INFO!K20>0,COUNTRY_INFO!K20<4), IF(AC20/Z20*100<>0, IF(AH20/Z20*100>100,100,AH20/Z20*100), "-"),0) -> - | AK20: =IF(AND(D20<>0, D20<>"Inconnu",D20<>"Interrompu",D20<>"Non requis"),D20/COUNTRY_INFO!D20, 0) -> 1 | AL20: =IF(AND(J20<>0,J20<>"Inconnu",J20<>"Interrompu",J20<>"Non requis"),J20/COUNTRY_INFO!D20, 0) -> 0 | AM20: =IF(AND(P20<>0,P20<>"Inconnu",P20<>"Non requis"),P20/(COUNTRY_INFO!E20+COUNTRY_INFO!F20), 0) -> 1 | AN20: =IF(AND(Z20<>0,Z20<>"Inconnu",Z20<>"Non requis"),IF(COUNTRY_INFO!K20=1,1,IF(COUNTRY_INFO!K20=2,0.5*COUNTRY_INFO!F20/(0.5*COUNTRY_INFO!F20+0.2*COUNTRY_INFO!G20),IF(COUNTRY_INFO!K20=3,COUNTRY_INFO!F20/(COUNTRY_INFO!F20+COUNTRY_INFO!G20)))),0) -> 0.4725248576 | AO20: =IF(AND(Z20<>0,Z20<>"Inconnu",Z20<>"Non requis"),IF(COUNTRY_INFO!K20=1,0,IF(COUNTRY_INFO!K20=2,0.2*COUNTRY_INFO!G20/(0.5*COUNTRY_INFO!F20+0.2*COUNTRY_INFO!G20),IF(COUNTRY_INFO!K20=3,COUNTRY_INFO!G20/(COUNTRY_INFO!F20+COUNTRY_INFO!G20)))),0) -> 0.5274751424 | AP20: =MAX(COUNTRY_INFO!D20*AK20*PROFILE!$G$7,COUNTRY_INFO!D20*AL20*PROFILE!$G$7) -> 8715.998299 | AQ20: =MAX(COUNTRY_INFO!D20*AK20*PROFILE!$G$8,COUNTRY_INFO!D20*AL20*PROFILE!$G$8,COUNTRY_INFO!D20*AM20*PROFILE!$G$8) -> 22107.33432 | AR20: =MAX(COUNTRY_INFO!D20*AK20*PROFILE!$G$9,COUNTRY_INFO!D20*AL20*PROFILE!$G$9,COUNTRY_INFO!D20*AM20*PROFILE!$G$9,IF(AND(DISTRICT!Z20<>"Inconnu",Z20<>"Non requis"),COUNTRY_INFO!P20*DISTRICT!AN20,0)) -> 46069.12139 | AS20: =MAX(COUNTRY_INFO!D20*AK20*PROFILE!$G$10,COUNTRY_INFO!D20*AL20*PROFILE!$G$10,IF(AND(DISTRICT!Z20<>"Inconnu",Z20<>"Non requis"),COUNTRY_INFO!P20*DISTRICT!AO20,0)) -> 128565.546 | AT20: 205458 | AU20: 0 | AV20: =MAX('MDA4'!R20,'T1'!L20,'T2'!J20,T3_R1!K20,T3_R2!K20) -> 8632.4674 | AW20: =MAX('MDA1'!K20,'MDA4'!S20,'MDA3'!I20,'MDA3'!L20,'T1'!M20,'T2'!K20,T3_R1!L20,T3_R2!L20) -> 17989.08267 | AX20: =MAX('MDA1'!L20,'MDA4'!T20,'MDA3'!J20,'MDA3'!M20,'T1'!N20,'T2'!L20,T3_R1!M20,T3_R2!M20) -> 50202.44993 | AY20: 76824 | AZ20: =MAX('MDA4'!R20,T20) -> 8632.4674 | BA20: =MAX('MDA1'!K20,'MDA4'!S20,'MDA3'!I20,'MDA3'!L20,V20,AD20) -> 17989.08267 | BB20: =MAX('MDA1'!L20,'MDA4'!T20,'MDA3'!J20,'MDA3'!M20,AF20) -> 50202.44993 | BC20: 76824 | BD20: 37.39158368
A21: =IF(COUNTRY_INFO!A21=0," ",COUNTRY_INFO!A21) -> Equatorial Guinea | B21: =IF(COUNTRY_INFO!B21=0," ",COUNTRY_INFO!B21) -> Litoral | C21: =IF(COUNTRY_INFO!C21=0," ",COUNTRY_INFO!C21) -> Kogo | D21: =COUNTRY_INFO!M21 -> 42029 | G21: =MAX('MDA1'!M21,'MDA4'!U21) -> 4386 | H21: =IF(AND(COUNTRY_INFO!H21>0,COUNTRY_INFO!H21<4),IF(D21>MAX('MDA1'!M21,'MDA4'!U21),MAX('MDA1'!M21,'MDA4'!U21),D21),0) -> 4386 | I21: =IF(AND(COUNTRY_INFO!H21>0,COUNTRY_INFO!H21<4), IF(G21/D21*100<>0, IF(G21/D21*100>100,100,G21/D21*100), "-"),0) -> 10.43565157 | J21: =COUNTRY_INFO!N21 -> Inconnu | M21: =MAX('MDA1'!M21,MAX('MDA3'!I21,'MDA3'!L21)+MAX('MDA3'!J21,'MDA3'!M21)) -> 0 | N21: =IF(AND(COUNTRY_INFO!I21>0,COUNTRY_INFO!I21<4),IF(J21>MAX('MDA1'!M21,MAX('MDA3'!I21,'MDA3'!L21)+MAX('MDA3'!J21,'MDA3'!M21)),MAX('MDA1'!M21,MAX('MDA3'!I21,'MDA3'!L21)+MAX('MDA3'!J21,'MDA3'!M21)),J21),0) -> 0 | O21: =IF(AND(COUNTRY_INFO!I21>0,COUNTRY_INFO!I21<4), IF(M21/J21*100<>0, IF(M21/J21*100>100,100,M21/J21*100), "-"),0) -> 0 | P21: =COUNTRY_INFO!O21 -> 13946 | S21: =SUM(MAX('MDA4'!R21, 'T1'!L21, MAX(T3_R1!K21, T3_R2!K21)), MAX('MDA1'!K21, 'MDA4'!S21, 'T1'!M21, MAX(T3_R1!L21, T3_R2!L21)), MAX('MDA1'!L21, 'MDA4'!T21, 'T1'!N21, MAX(T3_R1!M21, T3_R2!M21))) -> 4386 | T21: =IF(AND(COUNTRY_INFO!J21>1,COUNTRY_INFO!J21<4),IF(COUNTRY_INFO!E21>MAX('MDA4'!R21,'T1'!L21,MAX(T3_R1!K21,T3_R2!K21)),MAX('MDA4'!R21,'T1'!L21,MAX(T3_R1!K21,T3_R2!K21)),COUNTRY_INFO!E21),0) -> 492.8408052 | U21: =IF(AND(COUNTRY_INFO!J21>1,COUNTRY_INFO!J21<4), IF(T21/COUNTRY_INFO!E21*100<>0, IF(T21/COUNTRY_INFO!E21*100>100,100,T21/COUNTRY_INFO!E21*100), "-"),0) -> 10.89873519 | V21: =IF(AND(COUNTRY_INFO!J21>1,COUNTRY_INFO!J21<4),IF(COUNTRY_INFO!F21>MAX('MDA1'!K21,'MDA4'!S21,'T1'!M21,MAX(T3_R1!L21,T3_R2!L21)),MAX('MDA1'!K21,'MDA4'!S21,'T1'!M21,MAX(T3_R1!L21,T3_R2!L21)),COUNTRY_INFO!F21),0) -> 1027.024323 | W21: =IF(AND(COUNTRY_INFO!J21>1,COUNTRY_INFO!J21<4), IF(V21/COUNTRY_INFO!F21*100<>0, IF(V21/COUNTRY_INFO!F21*100>100,100,V21/COUNTRY_INFO!F21*100), "-"),0) -> 10.89796608 | X21: 1519.865128 | Y21: =IF(AND(COUNTRY_INFO!J21>1,COUNTRY_INFO!J21<4), IF(S21/P21*100<>0, IF(X21/P21*100>100,100,X21/P21*100), "-"),0) -> 10.89821546 | Z21: =COUNTRY_INFO!P21 -> 3109.92 | AC21: =MAX('T1'!L21,'T2'!J21)+MAX('T1'!M21,'T2'!K21)+MAX('T1'!N21,'T2'!L21) -> 0 | AD21: =IF(COUNTRY_INFO!K21=1,IF(COUNTRY_INFO!F21*0.33>MAX('T1'!M21,'T2'!K21),MAX('T1'!M21,'T2'!K21),COUNTRY_INFO!F21*0.33),IF(COUNTRY_INFO!K21=2,IF(COUNTRY_INFO!F21*0.5>MAX('T1'!M21,'T2'!K21),MAX('T1'!M21,'T2'!K21),COUNTRY_INFO!F21*0.5),IF(COUNTRY_INFO!K21=3,IF(COUNTRY_INFO!F21>MAX('T1'!M21,'T2'!K21),MAX('T1'!M21,'T2'!K21),COUNTRY_INFO!F21),0))) -> 0 | AE21: =IF(AND(COUNTRY_INFO!K21>0,COUNTRY_INFO!K21<4),IF(Z21>0,IF(COUNTRY_INFO!K21=1, AD21/(COUNTRY_INFO!F21*0.33)*100, IF(COUNTRY_INFO!K21=2, AD21/(COUNTRY_INFO!F21*0.5)*100, IF(COUNTRY_INFO!K21=3, AD21/COUNTRY_INFO!F21*100))),"-"),0) -> 0 | AF21: =IF(COUNTRY_INFO!K21=2,IF(COUNTRY_INFO!G21*0.2>MAX('T1'!N21,'T2'!L21),MAX('T1'!N21,'T2'!L21),COUNTRY_INFO!G21*0.2),IF(COUNTRY_INFO!K21=3,IF(COUNTRY_INFO!G21>MAX('T1'!N21,'T2'!L21),MAX('T1'!N21,'T2'!L21),COUNTRY_INFO!G21),0)) -> 0 | AG21: =IF(AND(COUNTRY_INFO!K21>0,COUNTRY_INFO!K21<4),IF(Z21>0,IF(COUNTRY_INFO!K21=1, 0, IF(COUNTRY_INFO!K21=2, AF21/(COUNTRY_INFO!G21*0.2)*100, IF(COUNTRY_INFO!K21=3, AF21/COUNTRY_INFO!G21*100))),"-"),0) -> 0 | AH21: 0 | AI21: =IF(AND(COUNTRY_INFO!K21>0,COUNTRY_INFO!K21<4), IF(AC21/Z21*100<>0, IF(AH21/Z21*100>100,100,AH21/Z21*100), "-"),0) -> - | AK21: =IF(AND(D21<>0, D21<>"Inconnu",D21<>"Interrompu",D21<>"Non requis"),D21/COUNTRY_INFO!D21, 0) -> 1 | AL21: =IF(AND(J21<>0,J21<>"Inconnu",J21<>"Interrompu",J21<>"Non requis"),J21/COUNTRY_INFO!D21, 0) -> 0 | AM21: =IF(AND(P21<>0,P21<>"Inconnu",P21<>"Non requis"),P21/(COUNTRY_INFO!E21+COUNTRY_INFO!F21), 0) -> 1 | AN21: =IF(AND(Z21<>0,Z21<>"Inconnu",Z21<>"Non requis"),IF(COUNTRY_INFO!K21=1,1,IF(COUNTRY_INFO!K21=2,0.5*COUNTRY_INFO!F21/(0.5*COUNTRY_INFO!F21+0.2*COUNTRY_INFO!G21),IF(COUNTRY_INFO!K21=3,COUNTRY_INFO!F21/(COUNTRY_INFO!F21+COUNTRY_INFO!G21)))),0) -> 1 | AO21: =IF(AND(Z21<>0,Z21<>"Inconnu",Z21<>"Non requis"),IF(COUNTRY_INFO!K21=1,0,IF(COUNTRY_INFO!K21=2,0.2*COUNTRY_INFO!G21/(0.5*COUNTRY_INFO!F21+0.2*COUNTRY_INFO!G21),IF(COUNTRY_INFO!K21=3,COUNTRY_INFO!G21/(COUNTRY_INFO!F21+COUNTRY_INFO!G21)))),0) -> 0 | AP21: =MAX(COUNTRY_INFO!D21*AK21*PROFILE!$G$7,COUNTRY_INFO!D21*AL21*PROFILE!$G$7) -> 1782.966312 | AQ21: =MAX(COUNTRY_INFO!D21*AK21*PROFILE!$G$8,COUNTRY_INFO!D21*AL21*PROFILE!$G$8,COUNTRY_INFO!D21*AM21*PROFILE!$G$8) -> 4522.331348 | AR21: =MAX(COUNTRY_INFO!D21*AK21*PROFILE!$G$9,COUNTRY_INFO!D21*AL21*PROFILE!$G$9,COUNTRY_INFO!D21*AM21*PROFILE!$G$9,IF(AND(DISTRICT!Z21<>"Inconnu",Z21<>"Non requis"),COUNTRY_INFO!P21*DISTRICT!AN21,0)) -> 9424.014169 | AS21: =MAX(COUNTRY_INFO!D21*AK21*PROFILE!$G$10,COUNTRY_INFO!D21*AL21*PROFILE!$G$10,IF(AND(DISTRICT!Z21<>"Inconnu",Z21<>"Non requis"),COUNTRY_INFO!P21*DISTRICT!AO21,0)) -> 26299.68817 | AT21: 42029 | AU21: 0 | AV21: =MAX('MDA4'!R21,'T1'!L21,'T2'!J21,T3_R1!K21,T3_R2!K21) -> 492.8408052 | AW21: =MAX('MDA1'!K21,'MDA4'!S21,'MDA3'!I21,'MDA3'!L21,'T1'!M21,'T2'!K21,T3_R1!L21,T3_R2!L21) -> 1027.024323 | AX21: =MAX('MDA1'!L21,'MDA4'!T21,'MDA3'!J21,'MDA3'!M21,'T1'!N21,'T2'!L21,T3_R1!M21,T3_R2!M21) -> 2866.134872 | AY21: 4386 | AZ21: =MAX('MDA4'!R21,T21) -> 492.8408052 | BA21: =MAX('MDA1'!K21,'MDA4'!S21,'MDA3'!I21,'MDA3'!L21,V21,AD21) -> 1027.024323 | BB21: =MAX('MDA1'!L21,'MDA4'!T21,'MDA3'!J21,'MDA3'!M21,AF21) -> 2866.134872 | BC21: 4386 | BD21: 10.43565157
A22: =IF(COUNTRY_INFO!A22=0," ",COUNTRY_INFO!A22) -> Equatorial Guinea | B22: =IF(COUNTRY_INFO!B22=0," ",COUNTRY_INFO!B22) -> Litoral | C22: =IF(COUNTRY_INFO!C22=0," ",COUNTRY_INFO!C22) -> Mbini | D22: =COUNTRY_INFO!M22 -> 40380 | G22: =MAX('MDA1'!M22,'MDA4'!U22) -> 4771 | H22: =IF(AND(COUNTRY_INFO!H22>0,COUNTRY_INFO!H22<4),IF(D22>MAX('MDA1'!M22,'MDA4'!U22),MAX('MDA1'!M22,'MDA4'!U22),D22),0) -> 4771 | I22: =IF(AND(COUNTRY_INFO!H22>0,COUNTRY_INFO!H22<4), IF(G22/D22*100<>0, IF(G22/D22*100>100,100,G22/D22*100), "-"),0) -> 11.81525508 | J22: =COUNTRY_INFO!N22 -> Inconnu | M22: =MAX('MDA1'!M22,MAX('MDA3'!I22,'MDA3'!L22)+MAX('MDA3'!J22,'MDA3'!M22)) -> 0 | N22: =IF(AND(COUNTRY_INFO!I22>0,COUNTRY_INFO!I22<4),IF(J22>MAX('MDA1'!M22,MAX('MDA3'!I22,'MDA3'!L22)+MAX('MDA3'!J22,'MDA3'!M22)),MAX('MDA1'!M22,MAX('MDA3'!I22,'MDA3'!L22)+MAX('MDA3'!J22,'MDA3'!M22)),J22),0) -> 0 | O22: =IF(AND(COUNTRY_INFO!I22>0,COUNTRY_INFO!I22<4), IF(M22/J22*100<>0, IF(M22/J22*100>100,100,M22/J22*100), "-"),0) -> 0 | P22: =COUNTRY_INFO!O22 -> 13399 | S22: =SUM(MAX('MDA4'!R22, 'T1'!L22, MAX(T3_R1!K22, T3_R2!K22)), MAX('MDA1'!K22, 'MDA4'!S22, 'T1'!M22, MAX(T3_R1!L22, T3_R2!L22)), MAX('MDA1'!L22, 'MDA4'!T22, 'T1'!N22, MAX(T3_R1!M22, T3_R2!M22))) -> 4771 | T22: =IF(AND(COUNTRY_INFO!J22>1,COUNTRY_INFO!J22<4),IF(COUNTRY_INFO!E22>MAX('MDA4'!R22,'T1'!L22,MAX(T3_R1!K22,T3_R2!K22)),MAX('MDA4'!R22,'T1'!L22,MAX(T3_R1!K22,T3_R2!K22)),COUNTRY_INFO!E22),0) -> 536.102025 | U22: =IF(AND(COUNTRY_INFO!J22>1,COUNTRY_INFO!J22<4), IF(T22/COUNTRY_INFO!E22*100<>0, IF(T22/COUNTRY_INFO!E22*100>100,100,T22/COUNTRY_INFO!E22*100), "-"),0) -> 12.33836651 | V22: =IF(AND(COUNTRY_INFO!J22>1,COUNTRY_INFO!J22<4),IF(COUNTRY_INFO!F22>MAX('MDA1'!K22,'MDA4'!S22,'T1'!M22,MAX(T3_R1!L22,T3_R2!L22)),MAX('MDA1'!K22,'MDA4'!S22,'T1'!M22,MAX(T3_R1!L22,T3_R2!L22)),COUNTRY_INFO!F22),0) -> 1117.175797 | W22: =IF(AND(COUNTRY_INFO!J22>1,COUNTRY_INFO!J22<4), IF(V22/COUNTRY_INFO!F22*100<>0, IF(V22/COUNTRY_INFO!F22*100>100,100,V22/COUNTRY_INFO!F22*100), "-"),0) -> 12.33903023 | X22: 1653.277822 | Y22: =IF(AND(COUNTRY_INFO!J22>1,COUNTRY_INFO!J22<4), IF(S22/P22*100<>0, IF(X22/P22*100>100,100,X22/P22*100), "-"),0) -> 12.338815 | Z22: =COUNTRY_INFO!P22 -> 2987.82 | AC22: =MAX('T1'!L22,'T2'!J22)+MAX('T1'!M22,'T2'!K22)+MAX('T1'!N22,'T2'!L22) -> 0 | AD22: =IF(COUNTRY_INFO!K22=1,IF(COUNTRY_INFO!F22*0.33>MAX('T1'!M22,'T2'!K22),MAX('T1'!M22,'T2'!K22),COUNTRY_INFO!F22*0.33),IF(COUNTRY_INFO!K22=2,IF(COUNTRY_INFO!F22*0.5>MAX('T1'!M22,'T2'!K22),MAX('T1'!M22,'T2'!K22),COUNTRY_INFO!F22*0.5),IF(COUNTRY_INFO!K22=3,IF(COUNTRY_INFO!F22>MAX('T1'!M22,'T2'!K22),MAX('T1'!M22,'T2'!K22),COUNTRY_INFO!F22),0))) -> 0 | AE22: =IF(AND(COUNTRY_INFO!K22>0,COUNTRY_INFO!K22<4),IF(Z22>0,IF(COUNTRY_INFO!K22=1, AD22/(COUNTRY_INFO!F22*0.33)*100, IF(COUNTRY_INFO!K22=2, AD22/(COUNTRY_INFO!F22*0.5)*100, IF(COUNTRY_INFO!K22=3, AD22/COUNTRY_INFO!F22*100))),"-"),0) -> 0 | AF22: =IF(COUNTRY_INFO!K22=2,IF(COUNTRY_INFO!G22*0.2>MAX('T1'!N22,'T2'!L22),MAX('T1'!N22,'T2'!L22),COUNTRY_INFO!G22*0.2),IF(COUNTRY_INFO!K22=3,IF(COUNTRY_INFO!G22>MAX('T1'!N22,'T2'!L22),MAX('T1'!N22,'T2'!L22),COUNTRY_INFO!G22),0)) -> 0 | AG22: =IF(AND(COUNTRY_INFO!K22>0,COUNTRY_INFO!K22<4),IF(Z22>0,IF(COUNTRY_INFO!K22=1, 0, IF(COUNTRY_INFO!K22=2, AF22/(COUNTRY_INFO!G22*0.2)*100, IF(COUNTRY_INFO!K22=3, AF22/COUNTRY_INFO!G22*100))),"-"),0) -> 0 | AH22: 0 | AI22: =IF(AND(COUNTRY_INFO!K22>0,COUNTRY_INFO!K22<4), IF(AC22/Z22*100<>0, IF(AH22/Z22*100>100,100,AH22/Z22*100), "-"),0) -> - | AK22: =IF(AND(D22<>0, D22<>"Inconnu",D22<>"Interrompu",D22<>"Non requis"),D22/COUNTRY_INFO!D22, 0) -> 1 | AL22: =IF(AND(J22<>0,J22<>"Inconnu",J22<>"Interrompu",J22<>"Non requis"),J22/COUNTRY_INFO!D22, 0) -> 0 | AM22: =IF(AND(P22<>0,P22<>"Inconnu",P22<>"Non requis"),P22/(COUNTRY_INFO!E22+COUNTRY_INFO!F22), 0) -> 1 | AN22: =IF(AND(Z22<>0,Z22<>"Inconnu",Z22<>"Non requis"),IF(COUNTRY_INFO!K22=1,1,IF(COUNTRY_INFO!K22=2,0.5*COUNTRY_INFO!F22/(0.5*COUNTRY_INFO!F22+0.2*COUNTRY_INFO!G22),IF(COUNTRY_INFO!K22=3,COUNTRY_INFO!F22/(COUNTRY_INFO!F22+COUNTRY_INFO!G22)))),0) -> 1 | AO22: =IF(AND(Z22<>0,Z22<>"Inconnu",Z22<>"Non requis"),IF(COUNTRY_INFO!K22=1,0,IF(COUNTRY_INFO!K22=2,0.2*COUNTRY_INFO!G22/(0.5*COUNTRY_INFO!F22+0.2*COUNTRY_INFO!G22),IF(COUNTRY_INFO!K22=3,COUNTRY_INFO!G22/(COUNTRY_INFO!F22+COUNTRY_INFO!G22)))),0) -> 0 | AP22: =MAX(COUNTRY_INFO!D22*AK22*PROFILE!$G$7,COUNTRY_INFO!D22*AL22*PROFILE!$G$7) -> 1713.01196 | AQ22: =MAX(COUNTRY_INFO!D22*AK22*PROFILE!$G$8,COUNTRY_INFO!D22*AL22*PROFILE!$G$8,COUNTRY_INFO!D22*AM22*PROFILE!$G$8) -> 4344.898518 | AR22: =MAX(COUNTRY_INFO!D22*AK22*PROFILE!$G$9,COUNTRY_INFO!D22*AL22*PROFILE!$G$9,COUNTRY_INFO!D22*AM22*PROFILE!$G$9,IF(AND(DISTRICT!Z22<>"Inconnu",Z22<>"Non requis"),COUNTRY_INFO!P22*DISTRICT!AN22,0)) -> 9054.264725 | AS22: =MAX(COUNTRY_INFO!D22*AK22*PROFILE!$G$10,COUNTRY_INFO!D22*AL22*PROFILE!$G$10,IF(AND(DISTRICT!Z22<>"Inconnu",Z22<>"Non requis"),COUNTRY_INFO!P22*DISTRICT!AO22,0)) -> 25267.8248 | AT22: 40380 | AU22: 0 | AV22: =MAX('MDA4'!R22,'T1'!L22,'T2'!J22,T3_R1!K22,T3_R2!K22) -> 536.102025 | AW22: =MAX('MDA1'!K22,'MDA4'!S22,'MDA3'!I22,'MDA3'!L22,'T1'!M22,'T2'!K22,T3_R1!L22,T3_R2!L22) -> 1117.175797 | AX22: =MAX('MDA1'!L22,'MDA4'!T22,'MDA3'!J22,'MDA3'!M22,'T1'!N22,'T2'!L22,T3_R1!M22,T3_R2!M22) -> 3117.722178 | AY22: 4771 | AZ22: =MAX('MDA4'!R22,T22) -> 536.102025 | BA22: =MAX('MDA1'!K22,'MDA4'!S22,'MDA3'!I22,'MDA3'!L22,V22,AD22) -> 1117.175797 | BB22: =MAX('MDA1'!L22,'MDA4'!T22,'MDA3'!J22,'MDA3'!M22,AF22) -> 3117.722178 | BC22: 4771 | BD22: 11.81525508
A23: =IF(COUNTRY_INFO!A23=0," ",COUNTRY_INFO!A23) -> Equatorial Guinea | B23: =IF(COUNTRY_INFO!B23=0," ",COUNTRY_INFO!B23) -> Welenzas | C23: =IF(COUNTRY_INFO!C23=0," ",COUNTRY_INFO!C23) -> Akonibe | D23: =COUNTRY_INFO!M23 -> 26084 | G23: =MAX('MDA1'!M23,'MDA4'!U23) -> 3167 | H23: =IF(AND(COUNTRY_INFO!H23>0,COUNTRY_INFO!H23<4),IF(D23>MAX('MDA1'!M23,'MDA4'!U23),MAX('MDA1'!M23,'MDA4'!U23),D23),0) -> 3167 | I23: =IF(AND(COUNTRY_INFO!H23>0,COUNTRY_INFO!H23<4), IF(G23/D23*100<>0, IF(G23/D23*100>100,100,G23/D23*100), "-"),0) -> 12.14154271 | J23: =COUNTRY_INFO!N23 -> Inconnu | M23: =MAX('MDA1'!M23,MAX('MDA3'!I23,'MDA3'!L23)+MAX('MDA3'!J23,'MDA3'!M23)) -> 0 | N23: =IF(AND(COUNTRY_INFO!I23>0,COUNTRY_INFO!I23<4),IF(J23>MAX('MDA1'!M23,MAX('MDA3'!I23,'MDA3'!L23)+MAX('MDA3'!J23,'MDA3'!M23)),MAX('MDA1'!M23,MAX('MDA3'!I23,'MDA3'!L23)+MAX('MDA3'!J23,'MDA3'!M23)),J23),0) -> 0 | O23: =IF(AND(COUNTRY_INFO!I23>0,COUNTRY_INFO!I23<4), IF(M23/J23*100<>0, IF(M23/J23*100>100,100,M23/J23*100), "-"),0) -> 0 | P23: =COUNTRY_INFO!O23 -> 8656 | S23: =SUM(MAX('MDA4'!R23, 'T1'!L23, MAX(T3_R1!K23, T3_R2!K23)), MAX('MDA1'!K23, 'MDA4'!S23, 'T1'!M23, MAX(T3_R1!L23, T3_R2!L23)), MAX('MDA1'!L23, 'MDA4'!T23, 'T1'!N23, MAX(T3_R1!M23, T3_R2!M23))) -> 3167 | T23: =IF(AND(COUNTRY_INFO!J23>1,COUNTRY_INFO!J23<4),IF(COUNTRY_INFO!E23>MAX('MDA4'!R23,'T1'!L23,MAX(T3_R1!K23,T3_R2!K23)),MAX('MDA4'!R23,'T1'!L23,MAX(T3_R1!K23,T3_R2!K23)),COUNTRY_INFO!E23),0) -> 355.8656703 | U23: =IF(AND(COUNTRY_INFO!J23>1,COUNTRY_INFO!J23<4), IF(T23/COUNTRY_INFO!E23*100<>0, IF(T23/COUNTRY_INFO!E23*100>100,100,T23/COUNTRY_INFO!E23*100), "-"),0) -> 12.67779374 | V23: =IF(AND(COUNTRY_INFO!J23>1,COUNTRY_INFO!J23<4),IF(COUNTRY_INFO!F23>MAX('MDA1'!K23,'MDA4'!S23,'T1'!M23,MAX(T3_R1!L23,T3_R2!L23)),MAX('MDA1'!K23,'MDA4'!S23,'T1'!M23,MAX(T3_R1!L23,T3_R2!L23)),COUNTRY_INFO!F23),0) -> 741.5836826 | W23: =IF(AND(COUNTRY_INFO!J23>1,COUNTRY_INFO!J23<4), IF(V23/COUNTRY_INFO!F23*100<>0, IF(V23/COUNTRY_INFO!F23*100>100,100,V23/COUNTRY_INFO!F23*100), "-"),0) -> 12.67881146 | X23: 1097.449353 | Y23: =IF(AND(COUNTRY_INFO!J23>1,COUNTRY_INFO!J23<4), IF(S23/P23*100<>0, IF(X23/P23*100>100,100,X23/P23*100), "-"),0) -> 12.67848143 | Z23: =COUNTRY_INFO!P23 -> 1930.17 | AC23: =MAX('T1'!L23,'T2'!J23)+MAX('T1'!M23,'T2'!K23)+MAX('T1'!N23,'T2'!L23) -> 0 | AD23: =IF(COUNTRY_INFO!K23=1,IF(COUNTRY_INFO!F23*0.33>MAX('T1'!M23,'T2'!K23),MAX('T1'!M23,'T2'!K23),COUNTRY_INFO!F23*0.33),IF(COUNTRY_INFO!K23=2,IF(COUNTRY_INFO!F23*0.5>MAX('T1'!M23,'T2'!K23),MAX('T1'!M23,'T2'!K23),COUNTRY_INFO!F23*0.5),IF(COUNTRY_INFO!K23=3,IF(COUNTRY_INFO!F23>MAX('T1'!M23,'T2'!K23),MAX('T1'!M23,'T2'!K23),COUNTRY_INFO!F23),0))) -> 0 | AE23: =IF(AND(COUNTRY_INFO!K23>0,COUNTRY_INFO!K23<4),IF(Z23>0,IF(COUNTRY_INFO!K23=1, AD23/(COUNTRY_INFO!F23*0.33)*100, IF(COUNTRY_INFO!K23=2, AD23/(COUNTRY_INFO!F23*0.5)*100, IF(COUNTRY_INFO!K23=3, AD23/COUNTRY_INFO!F23*100))),"-"),0) -> 0 | AF23: =IF(COUNTRY_INFO!K23=2,IF(COUNTRY_INFO!G23*0.2>MAX('T1'!N23,'T2'!L23),MAX('T1'!N23,'T2'!L23),COUNTRY_INFO!G23*0.2),IF(COUNTRY_INFO!K23=3,IF(COUNTRY_INFO!G23>MAX('T1'!N23,'T2'!L23),MAX('T1'!N23,'T2'!L23),COUNTRY_INFO!G23),0)) -> 0 | AG23: =IF(AND(COUNTRY_INFO!K23>0,COUNTRY_INFO!K23<4),IF(Z23>0,IF(COUNTRY_INFO!K23=1, 0, IF(COUNTRY_INFO!K23=2, AF23/(COUNTRY_INFO!G23*0.2)*100, IF(COUNTRY_INFO!K23=3, AF23/COUNTRY_INFO!G23*100))),"-"),0) -> 0 | AH23: 0 | AI23: =IF(AND(COUNTRY_INFO!K23>0,COUNTRY_INFO!K23<4), IF(AC23/Z23*100<>0, IF(AH23/Z23*100>100,100,AH23/Z23*100), "-"),0) -> - | AK23: =IF(AND(D23<>0, D23<>"Inconnu",D23<>"Interrompu",D23<>"Non requis"),D23/COUNTRY_INFO!D23, 0) -> 1 | AL23: =IF(AND(J23<>0,J23<>"Inconnu",J23<>"Interrompu",J23<>"Non requis"),J23/COUNTRY_INFO!D23, 0) -> 0 | AM23: =IF(AND(P23<>0,P23<>"Inconnu",P23<>"Non requis"),P23/(COUNTRY_INFO!E23+COUNTRY_INFO!F23), 0) -> 1 | AN23: =IF(AND(Z23<>0,Z23<>"Inconnu",Z23<>"Non requis"),IF(COUNTRY_INFO!K23=1,1,IF(COUNTRY_INFO!K23=2,0.5*COUNTRY_INFO!F23/(0.5*COUNTRY_INFO!F23+0.2*COUNTRY_INFO!G23),IF(COUNTRY_INFO!K23=3,COUNTRY_INFO!F23/(COUNTRY_INFO!F23+COUNTRY_INFO!G23)))),0) -> 1 | AO23: =IF(AND(Z23<>0,Z23<>"Inconnu",Z23<>"Non requis"),IF(COUNTRY_INFO!K23=1,0,IF(COUNTRY_INFO!K23=2,0.2*COUNTRY_INFO!G23/(0.5*COUNTRY_INFO!F23+0.2*COUNTRY_INFO!G23),IF(COUNTRY_INFO!K23=3,COUNTRY_INFO!G23/(COUNTRY_INFO!F23+COUNTRY_INFO!G23)))),0) -> 0 | AP23: =MAX(COUNTRY_INFO!D23*AK23*PROFILE!$G$7,COUNTRY_INFO!D23*AL23*PROFILE!$G$7) -> 1106.542941 | AQ23: =MAX(COUNTRY_INFO!D23*AK23*PROFILE!$G$8,COUNTRY_INFO!D23*AL23*PROFILE!$G$8,COUNTRY_INFO!D23*AM23*PROFILE!$G$8) -> 2806.645194 | AR23: =MAX(COUNTRY_INFO!D23*AK23*PROFILE!$G$9,COUNTRY_INFO!D23*AL23*PROFILE!$G$9,COUNTRY_INFO!D23*AM23*PROFILE!$G$9,IF(AND(DISTRICT!Z23<>"Inconnu",Z23<>"Non requis"),COUNTRY_INFO!P23*DISTRICT!AN23,0)) -> 5848.723157 | AS23: =MAX(COUNTRY_INFO!D23*AK23*PROFILE!$G$10,COUNTRY_INFO!D23*AL23*PROFILE!$G$10,IF(AND(DISTRICT!Z23<>"Inconnu",Z23<>"Non requis"),COUNTRY_INFO!P23*DISTRICT!AO23,0)) -> 16322.08871 | AT23: 26084 | AU23: 0 | AV23: =MAX('MDA4'!R23,'T1'!L23,'T2'!J23,T3_R1!K23,T3_R2!K23) -> 355.8656703 | AW23: =MAX('MDA1'!K23,'MDA4'!S23,'MDA3'!I23,'MDA3'!L23,'T1'!M23,'T2'!K23,T3_R1!L23,T3_R2!L23) -> 741.5836826 | AX23: =MAX('MDA1'!L23,'MDA4'!T23,'MDA3'!J23,'MDA3'!M23,'T1'!N23,'T2'!L23,T3_R1!M23,T3_R2!M23) -> 2069.550647 | AY23: 3167 | AZ23: =MAX('MDA4'!R23,T23) -> 355.8656703 | BA23: =MAX('MDA1'!K23,'MDA4'!S23,'MDA3'!I23,'MDA3'!L23,V23,AD23) -> 741.5836826 | BB23: =MAX('MDA1'!L23,'MDA4'!T23,'MDA3'!J23,'MDA3'!M23,AF23) -> 2069.550647 | BC23: 3167 | BD23: 12.14154271
A24: =IF(COUNTRY_INFO!A24=0," ",COUNTRY_INFO!A24) -> Equatorial Guinea | B24: =IF(COUNTRY_INFO!B24=0," ",COUNTRY_INFO!B24) -> Welenzas | C24: =IF(COUNTRY_INFO!C24=0," ",COUNTRY_INFO!C24) -> Anisok | D24: =COUNTRY_INFO!M24 -> 65064 | G24: =MAX('MDA1'!M24,'MDA4'!U24) -> 10140 | H24: =IF(AND(COUNTRY_INFO!H24>0,COUNTRY_INFO!H24<4),IF(D24>MAX('MDA1'!M24,'MDA4'!U24),MAX('MDA1'!M24,'MDA4'!U24),D24),0) -> 10140 | I24: =IF(AND(COUNTRY_INFO!H24>0,COUNTRY_INFO!H24<4), IF(G24/D24*100<>0, IF(G24/D24*100>100,100,G24/D24*100), "-"),0) -> 15.58465511 | J24: =COUNTRY_INFO!N24 -> Inconnu | M24: =MAX('MDA1'!M24,MAX('MDA3'!I24,'MDA3'!L24)+MAX('MDA3'!J24,'MDA3'!M24)) -> 0 | N24: =IF(AND(COUNTRY_INFO!I24>0,COUNTRY_INFO!I24<4),IF(J24>MAX('MDA1'!M24,MAX('MDA3'!I24,'MDA3'!L24)+MAX('MDA3'!J24,'MDA3'!M24)),MAX('MDA1'!M24,MAX('MDA3'!I24,'MDA3'!L24)+MAX('MDA3'!J24,'MDA3'!M24)),J24),0) -> 0 | O24: =IF(AND(COUNTRY_INFO!I24>0,COUNTRY_INFO!I24<4), IF(M24/J24*100<>0, IF(M24/J24*100>100,100,M24/J24*100), "-"),0) -> 0 | P24: =COUNTRY_INFO!O24 -> 21590 | S24: =SUM(MAX('MDA4'!R24, 'T1'!L24, MAX(T3_R1!K24, T3_R2!K24)), MAX('MDA1'!K24, 'MDA4'!S24, 'T1'!M24, MAX(T3_R1!L24, T3_R2!L24)), MAX('MDA1'!L24, 'MDA4'!T24, 'T1'!N24, MAX(T3_R1!M24, T3_R2!M24))) -> 10140 | T24: =IF(AND(COUNTRY_INFO!J24>1,COUNTRY_INFO!J24<4),IF(COUNTRY_INFO!E24>MAX('MDA4'!R24,'T1'!L24,MAX(T3_R1!K24,T3_R2!K24)),MAX('MDA4'!R24,'T1'!L24,MAX(T3_R1!K24,T3_R2!K24)),COUNTRY_INFO!E24),0) -> 1139.399399 | U24: =IF(AND(COUNTRY_INFO!J24>1,COUNTRY_INFO!J24<4), IF(T24/COUNTRY_INFO!E24*100<>0, IF(T24/COUNTRY_INFO!E24*100>100,100,T24/COUNTRY_INFO!E24*100), "-"),0) -> 16.2748093 | V24: =IF(AND(COUNTRY_INFO!J24>1,COUNTRY_INFO!J24<4),IF(COUNTRY_INFO!F24>MAX('MDA1'!K24,'MDA4'!S24,'T1'!M24,MAX(T3_R1!L24,T3_R2!L24)),MAX('MDA1'!K24,'MDA4'!S24,'T1'!M24,MAX(T3_R1!L24,T3_R2!L24)),COUNTRY_INFO!F24),0) -> 2374.379078 | W24: =IF(AND(COUNTRY_INFO!J24>1,COUNTRY_INFO!J24<4), IF(V24/COUNTRY_INFO!F24*100<>0, IF(V24/COUNTRY_INFO!F24*100>100,100,V24/COUNTRY_INFO!F24*100), "-"),0) -> 16.27513249 | X24: 3513.778478 | Y24: =IF(AND(COUNTRY_INFO!J24>1,COUNTRY_INFO!J24<4), IF(S24/P24*100<>0, IF(X24/P24*100>100,100,X24/P24*100), "-"),0) -> 16.27502769 | Z24: =COUNTRY_INFO!P24 -> 0 | AC24: =MAX('T1'!L24,'T2'!J24)+MAX('T1'!M24,'T2'!K24)+MAX('T1'!N24,'T2'!L24) -> 0 | AD24: =IF(COUNTRY_INFO!K24=1,IF(COUNTRY_INFO!F24*0.33>MAX('T1'!M24,'T2'!K24),MAX('T1'!M24,'T2'!K24),COUNTRY_INFO!F24*0.33),IF(COUNTRY_INFO!K24=2,IF(COUNTRY_INFO!F24*0.5>MAX('T1'!M24,'T2'!K24),MAX('T1'!M24,'T2'!K24),COUNTRY_INFO!F24*0.5),IF(COUNTRY_INFO!K24=3,IF(COUNTRY_INFO!F24>MAX('T1'!M24,'T2'!K24),MAX('T1'!M24,'T2'!K24),COUNTRY_INFO!F24),0))) -> 0 | AE24: =IF(AND(COUNTRY_INFO!K24>0,COUNTRY_INFO!K24<4),IF(Z24>0,IF(COUNTRY_INFO!K24=1, AD24/(COUNTRY_INFO!F24*0.33)*100, IF(COUNTRY_INFO!K24=2, AD24/(COUNTRY_INFO!F24*0.5)*100, IF(COUNTRY_INFO!K24=3, AD24/COUNTRY_INFO!F24*100))),"-"),0) -> 0 | AF24: =IF(COUNTRY_INFO!K24=2,IF(COUNTRY_INFO!G24*0.2>MAX('T1'!N24,'T2'!L24),MAX('T1'!N24,'T2'!L24),COUNTRY_INFO!G24*0.2),IF(COUNTRY_INFO!K24=3,IF(COUNTRY_INFO!G24>MAX('T1'!N24,'T2'!L24),MAX('T1'!N24,'T2'!L24),COUNTRY_INFO!G24),0)) -> 0 | AG24: =IF(AND(COUNTRY_INFO!K24>0,COUNTRY_INFO!K24<4),IF(Z24>0,IF(COUNTRY_INFO!K24=1, 0, IF(COUNTRY_INFO!K24=2, AF24/(COUNTRY_INFO!G24*0.2)*100, IF(COUNTRY_INFO!K24=3, AF24/COUNTRY_INFO!G24*100))),"-"),0) -> 0 | AH24: 0 | AI24: =IF(AND(COUNTRY_INFO!K24>0,COUNTRY_INFO!K24<4), IF(AC24/Z24*100<>0, IF(AH24/Z24*100>100,100,AH24/Z24*100), "-"),0) -> 0 | AK24: =IF(AND(D24<>0, D24<>"Inconnu",D24<>"Interrompu",D24<>"Non requis"),D24/COUNTRY_INFO!D24, 0) -> 1 | AL24: =IF(AND(J24<>0,J24<>"Inconnu",J24<>"Interrompu",J24<>"Non requis"),J24/COUNTRY_INFO!D24, 0) -> 0 | AM24: =IF(AND(P24<>0,P24<>"Inconnu",P24<>"Non requis"),P24/(COUNTRY_INFO!E24+COUNTRY_INFO!F24), 0) -> 1 | AN24: =IF(AND(Z24<>0,Z24<>"Inconnu",Z24<>"Non requis"),IF(COUNTRY_INFO!K24=1,1,IF(COUNTRY_INFO!K24=2,0.5*COUNTRY_INFO!F24/(0.5*COUNTRY_INFO!F24+0.2*COUNTRY_INFO!G24),IF(COUNTRY_INFO!K24=3,COUNTRY_INFO!F24/(COUNTRY_INFO!F24+COUNTRY_INFO!G24)))),0) -> 0 | AO24: =IF(AND(Z24<>0,Z24<>"Inconnu",Z24<>"Non requis"),IF(COUNTRY_INFO!K24=1,0,IF(COUNTRY_INFO!K24=2,0.2*COUNTRY_INFO!G24/(0.5*COUNTRY_INFO!F24+0.2*COUNTRY_INFO!G24),IF(COUNTRY_INFO!K24=3,COUNTRY_INFO!G24/(COUNTRY_INFO!F24+COUNTRY_INFO!G24)))),0) -> 0 | AP24: =MAX(COUNTRY_INFO!D24*AK24*PROFILE!$G$7,COUNTRY_INFO!D24*AL24*PROFILE!$G$7) -> 2760.163699 | AQ24: =MAX(COUNTRY_INFO!D24*AK24*PROFILE!$G$8,COUNTRY_INFO!D24*AL24*PROFILE!$G$8,COUNTRY_INFO!D24*AM24*PROFILE!$G$8) -> 7000.903348 | AR24: =MAX(COUNTRY_INFO!D24*AK24*PROFILE!$G$9,COUNTRY_INFO!D24*AL24*PROFILE!$G$9,COUNTRY_INFO!D24*AM24*PROFILE!$G$9,IF(AND(DISTRICT!Z24<>"Inconnu",Z24<>"Non requis"),COUNTRY_INFO!P24*DISTRICT!AN24,0)) -> 14589.07083 | AS24: =MAX(COUNTRY_INFO!D24*AK24*PROFILE!$G$10,COUNTRY_INFO!D24*AL24*PROFILE!$G$10,IF(AND(DISTRICT!Z24<>"Inconnu",Z24<>"Non requis"),COUNTRY_INFO!P24*DISTRICT!AO24,0)) -> 40713.86212 | AT24: 65064 | AU24: Y | AV24: =MAX('MDA4'!R24,'T1'!L24,'T2'!J24,T3_R1!K24,T3_R2!K24) -> 1139.399399 | AW24: =MAX('MDA1'!K24,'MDA4'!S24,'MDA3'!I24,'MDA3'!L24,'T1'!M24,'T2'!K24,T3_R1!L24,T3_R2!L24) -> 2374.379078 | AX24: =MAX('MDA1'!L24,'MDA4'!T24,'MDA3'!J24,'MDA3'!M24,'T1'!N24,'T2'!L24,T3_R1!M24,T3_R2!M24) -> 6626.221522 | AY24: 10140 | AZ24: =MAX('MDA4'!R24,T24) -> 1139.399399 | BA24: =MAX('MDA1'!K24,'MDA4'!S24,'MDA3'!I24,'MDA3'!L24,V24,AD24) -> 2374.379078 | BB24: =MAX('MDA1'!L24,'MDA4'!T24,'MDA3'!J24,'MDA3'!M24,AF24) -> 6626.221522 | BC24: 10140 | BD24: 15.58465511
A25: =IF(COUNTRY_INFO!A25=0," ",COUNTRY_INFO!A25) -> Equatorial Guinea | B25: =IF(COUNTRY_INFO!B25=0," ",COUNTRY_INFO!B25) -> Welenzas | C25: =IF(COUNTRY_INFO!C25=0," ",COUNTRY_INFO!C25) -> Mongomo | D25: =COUNTRY_INFO!M25 -> 68354 | G25: =MAX('MDA1'!M25,'MDA4'!U25) -> 20504 | H25: =IF(AND(COUNTRY_INFO!H25>0,COUNTRY_INFO!H25<4),IF(D25>MAX('MDA1'!M25,'MDA4'!U25),MAX('MDA1'!M25,'MDA4'!U25),D25),0) -> 20504 | I25: =IF(AND(COUNTRY_INFO!H25>0,COUNTRY_INFO!H25<4), IF(G25/D25*100<>0, IF(G25/D25*100>100,100,G25/D25*100), "-"),0) -> 29.99678146 | J25: =COUNTRY_INFO!N25 -> Inconnu | M25: =MAX('MDA1'!M25,MAX('MDA3'!I25,'MDA3'!L25)+MAX('MDA3'!J25,'MDA3'!M25)) -> 0 | N25: =IF(AND(COUNTRY_INFO!I25>0,COUNTRY_INFO!I25<4),IF(J25>MAX('MDA1'!M25,MAX('MDA3'!I25,'MDA3'!L25)+MAX('MDA3'!J25,'MDA3'!M25)),MAX('MDA1'!M25,MAX('MDA3'!I25,'MDA3'!L25)+MAX('MDA3'!J25,'MDA3'!M25)),J25),0) -> 0 | O25: =IF(AND(COUNTRY_INFO!I25>0,COUNTRY_INFO!I25<4), IF(M25/J25*100<>0, IF(M25/J25*100>100,100,M25/J25*100), "-"),0) -> 0 | P25: =COUNTRY_INFO!O25 -> 22682 | S25: =SUM(MAX('MDA4'!R25, 'T1'!L25, MAX(T3_R1!K25, T3_R2!K25)), MAX('MDA1'!K25, 'MDA4'!S25, 'T1'!M25, MAX(T3_R1!L25, T3_R2!L25)), MAX('MDA1'!L25, 'MDA4'!T25, 'T1'!N25, MAX(T3_R1!M25, T3_R2!M25))) -> 20504 | T25: =IF(AND(COUNTRY_INFO!J25>1,COUNTRY_INFO!J25<4),IF(COUNTRY_INFO!E25>MAX('MDA4'!R25,'T1'!L25,MAX(T3_R1!K25,T3_R2!K25)),MAX('MDA4'!R25,'T1'!L25,MAX(T3_R1!K25,T3_R2!K25)),COUNTRY_INFO!E25),0) -> 2303.968963 | U25: =IF(AND(COUNTRY_INFO!J25>1,COUNTRY_INFO!J25<4), IF(T25/COUNTRY_INFO!E25*100<>0, IF(T25/COUNTRY_INFO!E25*100>100,100,T25/COUNTRY_INFO!E25*100), "-"),0) -> 31.32520683 | V25: =IF(AND(COUNTRY_INFO!J25>1,COUNTRY_INFO!J25<4),IF(COUNTRY_INFO!F25>MAX('MDA1'!K25,'MDA4'!S25,'T1'!M25,MAX(T3_R1!L25,T3_R2!L25)),MAX('MDA1'!K25,'MDA4'!S25,'T1'!M25,MAX(T3_R1!L25,T3_R2!L25)),COUNTRY_INFO!F25),0) -> 4801.209923 | W25: =IF(AND(COUNTRY_INFO!J25>1,COUNTRY_INFO!J25<4), IF(V25/COUNTRY_INFO!F25*100<>0, IF(V25/COUNTRY_INFO!F25*100>100,100,V25/COUNTRY_INFO!F25*100), "-"),0) -> 31.32517729 | X25: 7105.178886 | Y25: =IF(AND(COUNTRY_INFO!J25>1,COUNTRY_INFO!J25<4), IF(S25/P25*100<>0, IF(X25/P25*100>100,100,X25/P25*100), "-"),0) -> 31.32518687 | Z25: =COUNTRY_INFO!P25 -> 0 | AC25: =MAX('T1'!L25,'T2'!J25)+MAX('T1'!M25,'T2'!K25)+MAX('T1'!N25,'T2'!L25) -> 0 | AD25: =IF(COUNTRY_INFO!K25=1,IF(COUNTRY_INFO!F25*0.33>MAX('T1'!M25,'T2'!K25),MAX('T1'!M25,'T2'!K25),COUNTRY_INFO!F25*0.33),IF(COUNTRY_INFO!K25=2,IF(COUNTRY_INFO!F25*0.5>MAX('T1'!M25,'T2'!K25),MAX('T1'!M25,'T2'!K25),COUNTRY_INFO!F25*0.5),IF(COUNTRY_INFO!K25=3,IF(COUNTRY_INFO!F25>MAX('T1'!M25,'T2'!K25),MAX('T1'!M25,'T2'!K25),COUNTRY_INFO!F25),0))) -> 0 | AE25: =IF(AND(COUNTRY_INFO!K25>0,COUNTRY_INFO!K25<4),IF(Z25>0,IF(COUNTRY_INFO!K25=1, AD25/(COUNTRY_INFO!F25*0.33)*100, IF(COUNTRY_INFO!K25=2, AD25/(COUNTRY_INFO!F25*0.5)*100, IF(COUNTRY_INFO!K25=3, AD25/COUNTRY_INFO!F25*100))),"-"),0) -> 0 | AF25: =IF(COUNTRY_INFO!K25=2,IF(COUNTRY_INFO!G25*0.2>MAX('T1'!N25,'T2'!L25),MAX('T1'!N25,'T2'!L25),COUNTRY_INFO!G25*0.2),IF(COUNTRY_INFO!K25=3,IF(COUNTRY_INFO!G25>MAX('T1'!N25,'T2'!L25),MAX('T1'!N25,'T2'!L25),COUNTRY_INFO!G25),0)) -> 0 | AG25: =IF(AND(COUNTRY_INFO!K25>0,COUNTRY_INFO!K25<4),IF(Z25>0,IF(COUNTRY_INFO!K25=1, 0, IF(COUNTRY_INFO!K25=2, AF25/(COUNTRY_INFO!G25*0.2)*100, IF(COUNTRY_INFO!K25=3, AF25/COUNTRY_INFO!G25*100))),"-"),0) -> 0 | AH25: 0 | AI25: =IF(AND(COUNTRY_INFO!K25>0,COUNTRY_INFO!K25<4), IF(AC25/Z25*100<>0, IF(AH25/Z25*100>100,100,AH25/Z25*100), "-"),0) -> 0 | AK25: =IF(AND(D25<>0, D25<>"Inconnu",D25<>"Interrompu",D25<>"Non requis"),D25/COUNTRY_INFO!D25, 0) -> 1 | AL25: =IF(AND(J25<>0,J25<>"Inconnu",J25<>"Interrompu",J25<>"Non requis"),J25/COUNTRY_INFO!D25, 0) -> 0 | AM25: =IF(AND(P25<>0,P25<>"Inconnu",P25<>"Non requis"),P25/(COUNTRY_INFO!E25+COUNTRY_INFO!F25), 0) -> 1 | AN25: =IF(AND(Z25<>0,Z25<>"Inconnu",Z25<>"Non requis"),IF(COUNTRY_INFO!K25=1,1,IF(COUNTRY_INFO!K25=2,0.5*COUNTRY_INFO!F25/(0.5*COUNTRY_INFO!F25+0.2*COUNTRY_INFO!G25),IF(COUNTRY_INFO!K25=3,COUNTRY_INFO!F25/(COUNTRY_INFO!F25+COUNTRY_INFO!G25)))),0) -> 0 | AO25: =IF(AND(Z25<>0,Z25<>"Inconnu",Z25<>"Non requis"),IF(COUNTRY_INFO!K25=1,0,IF(COUNTRY_INFO!K25=2,0.2*COUNTRY_INFO!G25/(0.5*COUNTRY_INFO!F25+0.2*COUNTRY_INFO!G25),IF(COUNTRY_INFO!K25=3,COUNTRY_INFO!G25/(COUNTRY_INFO!F25+COUNTRY_INFO!G25)))),0) -> 0 | AP25: =MAX(COUNTRY_INFO!D25*AK25*PROFILE!$G$7,COUNTRY_INFO!D25*AL25*PROFILE!$G$7) -> 2899.733024 | AQ25: =MAX(COUNTRY_INFO!D25*AK25*PROFILE!$G$8,COUNTRY_INFO!D25*AL25*PROFILE!$G$8,COUNTRY_INFO!D25*AM25*PROFILE!$G$8) -> 7354.908205 | AR25: =MAX(COUNTRY_INFO!D25*AK25*PROFILE!$G$9,COUNTRY_INFO!D25*AL25*PROFILE!$G$9,COUNTRY_INFO!D25*AM25*PROFILE!$G$9,IF(AND(DISTRICT!Z25<>"Inconnu",Z25<>"Non requis"),COUNTRY_INFO!P25*DISTRICT!AN25,0)) -> 15326.7759 | AS25: =MAX(COUNTRY_INFO!D25*AK25*PROFILE!$G$10,COUNTRY_INFO!D25*AL25*PROFILE!$G$10,IF(AND(DISTRICT!Z25<>"Inconnu",Z25<>"Non requis"),COUNTRY_INFO!P25*DISTRICT!AO25,0)) -> 42772.58287 | AT25: 68354 | AU25: Y | AV25: =MAX('MDA4'!R25,'T1'!L25,'T2'!J25,T3_R1!K25,T3_R2!K25) -> 2303.968963 | AW25: =MAX('MDA1'!K25,'MDA4'!S25,'MDA3'!I25,'MDA3'!L25,'T1'!M25,'T2'!K25,T3_R1!L25,T3_R2!L25) -> 4801.209923 | AX25: =MAX('MDA1'!L25,'MDA4'!T25,'MDA3'!J25,'MDA3'!M25,'T1'!N25,'T2'!L25,T3_R1!M25,T3_R2!M25) -> 13398.82111 | AY25: 20504 | AZ25: =MAX('MDA4'!R25,T25) -> 2303.968963 | BA25: =MAX('MDA1'!K25,'MDA4'!S25,'MDA3'!I25,'MDA3'!L25,V25,AD25) -> 4801.209923 | BB25: =MAX('MDA1'!L25,'MDA4'!T25,'MDA3'!J25,'MDA3'!M25,AF25) -> 13398.82111 | BC25: 20504 | BD25: 29.99678146
A26: =IF(COUNTRY_INFO!A26=0," ",COUNTRY_INFO!A26) -> Equatorial Guinea | B26: =IF(COUNTRY_INFO!B26=0," ",COUNTRY_INFO!B26) -> Welenzas | C26: =IF(COUNTRY_INFO!C26=0," ",COUNTRY_INFO!C26) -> Nsork | D26: =COUNTRY_INFO!M26 -> 20211 | G26: =MAX('MDA1'!M26,'MDA4'!U26) -> 3650 | H26: =IF(AND(COUNTRY_INFO!H26>0,COUNTRY_INFO!H26<4),IF(D26>MAX('MDA1'!M26,'MDA4'!U26),MAX('MDA1'!M26,'MDA4'!U26),D26),0) -> 3650 | I26: =IF(AND(COUNTRY_INFO!H26>0,COUNTRY_INFO!H26<4), IF(G26/D26*100<>0, IF(G26/D26*100>100,100,G26/D26*100), "-"),0) -> 18.05947256 | J26: =COUNTRY_INFO!N26 -> Inconnu | M26: =MAX('MDA1'!M26,MAX('MDA3'!I26,'MDA3'!L26)+MAX('MDA3'!J26,'MDA3'!M26)) -> 0 | N26: =IF(AND(COUNTRY_INFO!I26>0,COUNTRY_INFO!I26<4),IF(J26>MAX('MDA1'!M26,MAX('MDA3'!I26,'MDA3'!L26)+MAX('MDA3'!J26,'MDA3'!M26)),MAX('MDA1'!M26,MAX('MDA3'!I26,'MDA3'!L26)+MAX('MDA3'!J26,'MDA3'!M26)),J26),0) -> 0 | O26: =IF(AND(COUNTRY_INFO!I26>0,COUNTRY_INFO!I26<4), IF(M26/J26*100<>0, IF(M26/J26*100>100,100,M26/J26*100), "-"),0) -> 0 | P26: =COUNTRY_INFO!O26 -> 6707 | S26: =SUM(MAX('MDA4'!R26, 'T1'!L26, MAX(T3_R1!K26, T3_R2!K26)), MAX('MDA1'!K26, 'MDA4'!S26, 'T1'!M26, MAX(T3_R1!L26, T3_R2!L26)), MAX('MDA1'!L26, 'MDA4'!T26, 'T1'!N26, MAX(T3_R1!M26, T3_R2!M26))) -> 3650 | T26: =IF(AND(COUNTRY_INFO!J26>1,COUNTRY_INFO!J26<4),IF(COUNTRY_INFO!E26>MAX('MDA4'!R26,'T1'!L26,MAX(T3_R1!K26,T3_R2!K26)),MAX('MDA4'!R26,'T1'!L26,MAX(T3_R1!K26,T3_R2!K26)),COUNTRY_INFO!E26),0) -> 410.138837 | U26: =IF(AND(COUNTRY_INFO!J26>1,COUNTRY_INFO!J26<4), IF(T26/COUNTRY_INFO!E26*100<>0, IF(T26/COUNTRY_INFO!E26*100>100,100,T26/COUNTRY_INFO!E26*100), "-"),0) -> 18.85695802 | V26: =IF(AND(COUNTRY_INFO!J26>1,COUNTRY_INFO!J26<4),IF(COUNTRY_INFO!F26>MAX('MDA1'!K26,'MDA4'!S26,'T1'!M26,MAX(T3_R1!L26,T3_R2!L26)),MAX('MDA1'!K26,'MDA4'!S26,'T1'!M26,MAX(T3_R1!L26,T3_R2!L26)),COUNTRY_INFO!F26),0) -> 854.6828044 | W26: =IF(AND(COUNTRY_INFO!J26>1,COUNTRY_INFO!J26<4), IF(V26/COUNTRY_INFO!F26*100<>0, IF(V26/COUNTRY_INFO!F26*100>100,100,V26/COUNTRY_INFO!F26*100), "-"),0) -> 18.85884387 | X26: 1264.821641 | Y26: =IF(AND(COUNTRY_INFO!J26>1,COUNTRY_INFO!J26<4), IF(S26/P26*100<>0, IF(X26/P26*100>100,100,X26/P26*100), "-"),0) -> 18.85823231 | Z26: =COUNTRY_INFO!P26 -> 1495.56 | AC26: =MAX('T1'!L26,'T2'!J26)+MAX('T1'!M26,'T2'!K26)+MAX('T1'!N26,'T2'!L26) -> 0 | AD26: =IF(COUNTRY_INFO!K26=1,IF(COUNTRY_INFO!F26*0.33>MAX('T1'!M26,'T2'!K26),MAX('T1'!M26,'T2'!K26),COUNTRY_INFO!F26*0.33),IF(COUNTRY_INFO!K26=2,IF(COUNTRY_INFO!F26*0.5>MAX('T1'!M26,'T2'!K26),MAX('T1'!M26,'T2'!K26),COUNTRY_INFO!F26*0.5),IF(COUNTRY_INFO!K26=3,IF(COUNTRY_INFO!F26>MAX('T1'!M26,'T2'!K26),MAX('T1'!M26,'T2'!K26),COUNTRY_INFO!F26),0))) -> 0 | AE26: =IF(AND(COUNTRY_INFO!K26>0,COUNTRY_INFO!K26<4),IF(Z26>0,IF(COUNTRY_INFO!K26=1, AD26/(COUNTRY_INFO!F26*0.33)*100, IF(COUNTRY_INFO!K26=2, AD26/(COUNTRY_INFO!F26*0.5)*100, IF(COUNTRY_INFO!K26=3, AD26/COUNTRY_INFO!F26*100))),"-"),0) -> 0 | AF26: =IF(COUNTRY_INFO!K26=2,IF(COUNTRY_INFO!G26*0.2>MAX('T1'!N26,'T2'!L26),MAX('T1'!N26,'T2'!L26),COUNTRY_INFO!G26*0.2),IF(COUNTRY_INFO!K26=3,IF(COUNTRY_INFO!G26>MAX('T1'!N26,'T2'!L26),MAX('T1'!N26,'T2'!L26),COUNTRY_INFO!G26),0)) -> 0 | AG26: =IF(AND(COUNTRY_INFO!K26>0,COUNTRY_INFO!K26<4),IF(Z26>0,IF(COUNTRY_INFO!K26=1, 0, IF(COUNTRY_INFO!K26=2, AF26/(COUNTRY_INFO!G26*0.2)*100, IF(COUNTRY_INFO!K26=3, AF26/COUNTRY_INFO!G26*100))),"-"),0) -> 0 | AH26: 0 | AI26: =IF(AND(COUNTRY_INFO!K26>0,COUNTRY_INFO!K26<4), IF(AC26/Z26*100<>0, IF(AH26/Z26*100>100,100,AH26/Z26*100), "-"),0) -> - | AK26: =IF(AND(D26<>0, D26<>"Inconnu",D26<>"Interrompu",D26<>"Non requis"),D26/COUNTRY_INFO!D26, 0) -> 1 | AL26: =IF(AND(J26<>0,J26<>"Inconnu",J26<>"Interrompu",J26<>"Non requis"),J26/COUNTRY_INFO!D26, 0) -> 0 | AM26: =IF(AND(P26<>0,P26<>"Inconnu",P26<>"Non requis"),P26/(COUNTRY_INFO!E26+COUNTRY_INFO!F26), 0) -> 1 | AN26: =IF(AND(Z26<>0,Z26<>"Inconnu",Z26<>"Non requis"),IF(COUNTRY_INFO!K26=1,1,IF(COUNTRY_INFO!K26=2,0.5*COUNTRY_INFO!F26/(0.5*COUNTRY_INFO!F26+0.2*COUNTRY_INFO!G26),IF(COUNTRY_INFO!K26=3,COUNTRY_INFO!F26/(COUNTRY_INFO!F26+COUNTRY_INFO!G26)))),0) -> 1 | AO26: =IF(AND(Z26<>0,Z26<>"Inconnu",Z26<>"Non requis"),IF(COUNTRY_INFO!K26=1,0,IF(COUNTRY_INFO!K26=2,0.2*COUNTRY_INFO!G26/(0.5*COUNTRY_INFO!F26+0.2*COUNTRY_INFO!G26),IF(COUNTRY_INFO!K26=3,COUNTRY_INFO!G26/(COUNTRY_INFO!F26+COUNTRY_INFO!G26)))),0) -> 0 | AP26: =MAX(COUNTRY_INFO!D26*AK26*PROFILE!$G$7,COUNTRY_INFO!D26*AL26*PROFILE!$G$7) -> 857.3968481 | AQ26: =MAX(COUNTRY_INFO!D26*AK26*PROFILE!$G$8,COUNTRY_INFO!D26*AL26*PROFILE!$G$8,COUNTRY_INFO!D26*AM26*PROFILE!$G$8) -> 2174.708864 | AR26: =MAX(COUNTRY_INFO!D26*AK26*PROFILE!$G$9,COUNTRY_INFO!D26*AL26*PROFILE!$G$9,COUNTRY_INFO!D26*AM26*PROFILE!$G$9,IF(AND(DISTRICT!Z26<>"Inconnu",Z26<>"Non requis"),COUNTRY_INFO!P26*DISTRICT!AN26,0)) -> 4531.841118 | AS26: =MAX(COUNTRY_INFO!D26*AK26*PROFILE!$G$10,COUNTRY_INFO!D26*AL26*PROFILE!$G$10,IF(AND(DISTRICT!Z26<>"Inconnu",Z26<>"Non requis"),COUNTRY_INFO!P26*DISTRICT!AO26,0)) -> 12647.05317 | AT26: 20211 | AU26: 0 | AV26: =MAX('MDA4'!R26,'T1'!L26,'T2'!J26,T3_R1!K26,T3_R2!K26) -> 410.138837 | AW26: =MAX('MDA1'!K26,'MDA4'!S26,'MDA3'!I26,'MDA3'!L26,'T1'!M26,'T2'!K26,T3_R1!L26,T3_R2!L26) -> 854.6828044 | AX26: =MAX('MDA1'!L26,'MDA4'!T26,'MDA3'!J26,'MDA3'!M26,'T1'!N26,'T2'!L26,T3_R1!M26,T3_R2!M26) -> 2385.178359 | AY26: 3650 | AZ26: =MAX('MDA4'!R26,T26) -> 410.138837 | BA26: =MAX('MDA1'!K26,'MDA4'!S26,'MDA3'!I26,'MDA3'!L26,V26,AD26) -> 854.6828044 | BB26: =MAX('MDA1'!L26,'MDA4'!T26,'MDA3'!J26,'MDA3'!M26,AF26) -> 2385.178359 | BC26: 3650 | BD26: 18.05947256

Sheet SUMMARY
D1: Cette version sera utilisée par les pays endémiques à la Loase
B2: Formulaire de Rapport Commun v.3.1 (L)
B4: Pays | D4: =IF(INTRO!$E$34<>0,INTRO!$E$34," ") -> Equatorial Guinea | G4: Année | H4: =IF(INTRO!$E$36<>0,INTRO!$E$36," ") -> 2021
B6: Les autorités nationales sont priées de compléter ce formulaire de rapport commun et de le soumettre à l'Organisation mondiale de la Santé avant le 15 août de l'année en cours pour rapporter les données des activités de chimioprévention mises en oeuvre l'année précédente.
B14: Nombre de personnes ayant reçu un traitement (au moins une fois) pour les maladies
E16: EAPréS | F16: EAS | G16: Adultes | H16: Total
B17: Filariose lymphatique | E17: 21518.01836 | F17: 44841 | G17: 125138 | H17: =SUM(E17:G17) -> 191497.0184
B18: Onchocercose | E18: Not eligible | F18: 0 | G18: 0 | H18: =SUM(E18:G18) -> 0
B19: Géohelminthiases | E19: 45319 | F19: 94445 | G19: 125138 | H19: =SUM(E19:G19) -> 264902
B20: Schistosomiase | E20: Not targeted | F20: 0 | G20: 0 | H20: =SUM(E20:G20) -> 0
B22: Couverture des interventions de CP contre les maladies (%)
G24: Géographique | H24: National
B25: Filariose lymphatique | G25: 100 | H25: 20.18930704
B26: Onchocercose | G26: 0 | H26: 0
B27: Géohelminthiases | G27: 94.44444444 | H27: 33.39654583
B28: Schistosomiase | G28: 0 | H28: -
B30: Nombre de personnes traitées et couverture du programme en pourcentage, par intervention de CP
D32: EAPréS | E32: EAS | F32: Adultes | G32: Total | H32: Couverture
B33: MDA 1 (IVM+ALB) | D33: Non admissible | E33: ='MDA1'!$K$4 -> 0 | F33: ='MDA1'!$L$4 -> 0 | G33: ='MDA1'!$M$4 -> 0 | H33: ='MDA1'!$Q$4 -> 
B34: MDA 4 (ALB/2*ALB) | D34: ='MDA4'!$R$4 -> 21518.01836 | E34: ='MDA4'!$S$4 -> 44841.10895 | F34: ='MDA4'!$T$4 -> 125138.8727 | G34: ='MDA4'!$U$4 -> 191498 | H34: ='MDA4'!$Y$4 -> -
B35: MDA 3 (IVM) | D35: Non admissible | E35: ='MDA3'!$O$4 -> 0 | F35: ='MDA3'!$P$4 -> 0 | G35: ='MDA3'!$Q$4 -> 0 | H35: ='MDA3'!$T$4 -> 
B36: T 1 (PZQ+ALB/MBD) | D36: =IF('T1'!$L$4<>0,'T1'!$L$4,"Non ciblé") -> Non ciblé | E36: ='T1'!$M$4 -> 0 | F36: =IF('T1'!$N$4<>0,'T1'!$N$4,"Non ciblé") -> Non ciblé | G36: ='T1'!$O$4 -> 0 | H36: ='T1'!$S$4 -> 
B37: T 2 (PZQ) | D37: =IF('T2'!$J$4<>0,'T2'!$J$4,"Non ciblé") -> Non ciblé | E37: ='T2'!$K$4 -> 0 | F37: ='T2'!$L$4 -> 0 | G37: ='T2'!$M$4 -> 0 | H37: ='T2'!$Q$4 -> 
B38: T 3 (ALB/MBD) - tournée 1 | D38: =T3_R1!$K$4 -> 23803.40486 | E38: =T3_R1!$L$4 -> 49603.59514 | F38: =IF(T3_R1!$M$4<>0,T3_R1!$M$4,"Non ciblé") -> Non ciblé | G38: =T3_R1!$N$4 -> 73407 | H38: =T3_R1!$R$4 -> 115.972321
B39: T 3 (ALB/MBD) - tournée 2 | D39: =T3_R2!$K$4 -> 0 | E39: =T3_R2!$L$4 -> 0 | F39: =IF(T3_R2!$M$4<>0,T3_R2!$M$4,"Non ciblé") -> Non ciblé | G39: =T3_R2!$N$4 -> 0 | H39: =T3_R2!$R$4 -> 
B41: Inventaire des médicaments pour la chimiothérapie préventive dans le pays
C43: IVM | D43: DEC | E43: ALB (FL) | F43: ALB (STH) | G43: MBD | H43: PZQ
B44: Disponible | E44: 22396.99
B45: Distribué | E45: 192166
B46: Gaspillé | E46: 944
B47: Reçus | E47: 2478000
B48: Restant | C48: =C44-C45-C46+C47 -> 0 | D48: 0 | F48: 0 | G48: 0 | H48: 0
B50: Veuillez indiquer le médicament qui a été utilisé pour traiter les EAPréS, et les mécanismes de distribution
B51: Médicament | D51: Mécanismes de distribution | G51: Source
B53: Remarques supplémentaires évenuelles concernant le rapport
B55: La distribution de 2021 a planifié la stratégie MDA4 pour la lutte contre la filariose lymphatique dans 15 distrcits endémiques et contre les géohelminthiases dans 2 districts, Le premier tour de MDA4 s'est déroulé au mois de Septembre 2021; le deuxième tour prévu pour Mars 2022 aura finalement lieu au mois d'Octobre 2022 pour cause de financement,
B63: J’ai pris connaissance et accepté la politique de la communication de données de l’OMS
B64: Nom et signature du Coordonnateur MTN ou du Représentant du Ministère de la Santé :
B66: Date:
B68: Veuillez envoyer le rapport national (signé et sous format électronique) au représentant de l'OMS du pays en mettant en copie :
B70: Siège de l'OMS | D70: PC_JointForms@who.int
B71: Bureau régional de l'OMS | D71: Conseiller régional MTN

Sheet PROFILE (hidden)
B2: Formulaire de Rapport Commun v.3.1 - CP
B4: Pays | D4: =IF(INTRO!$E$34<>0,INTRO!$E$34," ") -> Equatorial Guinea | G4: Année | H4: =IF(INTRO!$E$36<>0,INTRO!$E$36," ") -> 2021
B5: !!! ATTENTION !!! Avant d’analyser les données dans le profil du pays, merci de vous assurer que le rapport dans l’onglet SUMMARY est bien mis à jour
B6: Population totale | G6: 1 | H6: =COUNTRY_INFO!D4 -> 1168631
B7: Population — autres groupes d’âge | G7: =IF($H$6<>0,H7/$H$6,0) -> 0.04242228727 | H7: =H6-SUM(H8:H10) -> 49576
B8: Population — EAPréS | E8: =INTRO!B48 -> 1-4 ans | G8: =IF($H$6<>0,H8/$H$6,0) -> 0.1076002605 | H8: =COUNTRY_INFO!E4 -> 125745
B9: Population — EAS | E9: =INTRO!B49 -> 5-14 ans | G9: =IF($H$6<>0,H9/$H$6,0) -> 0.2242264667 | H9: =COUNTRY_INFO!F4 -> 262038
B10: Population — Adults | E10: =INTRO!B50 -> 15 ans et plus | G10: 0.6257509856 | H10: =COUNTRY_INFO!G4 -> 731272
B12: Nombre total d’individus nécessitant une CP pour au moins une des maladies (FL, Oncho, STH, SCH) | H12: =DISTRICT!AT6 -> 1044757.967
B13: Proportion du nombre d’individus nécessitant un CP pour au moins une maladie parmi la population totale | H13: =IF(H6<>0,H12/H6,0) -> 0.8940015859
B14: Nombre d’UMOs nécessitant une CP pour au moins une des maladies (FL, Oncho, STH, SCH) | H14: =COUNTIF(DISTRICT!AT9:AT1000,">0") -> 18
B15: Nombre d’UMOs ayant reçu une CP pour au moins une des maladies (FL, Oncho, STH, SCH) | H15: =COUNTIF(DISTRICT!AY9:AY1000,">0") -> 17
B16: Proportion d’UMOs nécessitant une CP pour au moins une maladie et l’ayant reçue | H16: =IF(H14<>0,H15/H14,0) -> 0.9444444444
B17: Nombre total d’individus ayant été traités pour au moins une maladie (FL, Oncho, STH, SCH) | H17: =DISTRICT!AY6 -> 264905
B18: Nombre total d’individus nécessitant un traitement ayant reçu une CP pour au moins une maladie (FL, Oncho, STH, SCH) | H18: =DISTRICT!BC6 -> 254645
B19: Couverture CP pour au moins une maladie (FL, Oncho, STH, SCH) | H19: =DISTRICT!BD6 -> 0.2437358775
B20: Nombre d’UMOs ayant été traitées pour toutes les maladies nécessitant une CP dans ces unités | H20: =DISTRICT!AU6 -> 4
B21: Population nécessitant une CP dans des UMOs qui ont été traitées pour toutes les maladies requérant une CP | H21: =SUMIF(DISTRICT!AU9:AU1000,"Y",DISTRICT!AT9:AT1000) -> 151814.6045
B22: Population ayant reçu une CP dans des UMOs qui ont été traitées pour toutes les maladies nécessitant une CP | H22: =SUMIF(DISTRICT!AU9:AU1000,"Y",DISTRICT!AY9:AY1000) -> 34041
E24: FL | F24: ONCHO | G24: STH | H24: SCH
B26: Maladies nécessitant une CP dans la pays | E26: =IF(INTRO!E38="Endémique","Yes","No") -> Yes | F26: =IF(INTRO!E40="Endémique","Yes","No") -> Yes | G26: =IF(INTRO!E42="Endémique","Yes","No") -> Yes | H26: =IF(INTRO!E44="Endémique","Yes","No") -> Yes
B27: Nombre d’UMOs dans le pays | E27: =IF(E26="Yes",INTRO!$E$46,"-") -> 18 | F27: =IF(F26="Yes",INTRO!$E$46,"-") -> 18 | G27: =IF(G26="Yes",INTRO!$E$46,"-") -> 18 | H27: =IF(H26="Yes",INTRO!$E$46,"-") -> 18
B28: Nombre d’UMOs dont le statut d’endémicité est connu | E28: =IF(E26="Yes",E27-E29,"-") -> 18 | F28: =IF(F26="Yes",F27-F29,"-") -> 4 | G28: =IF(G26="Yes",G27-G29,"-") -> 18 | H28: =IF(H26="Yes",H27-H29,"-") -> 18
B29: Nombre d’UMOs dont le statut d’endémicité est inconnu | E29: =IF(E26="Yes",E27-(992-COUNTIF(COUNTRY_INFO!H$9:H$1000,""))+COUNTIF(COUNTRY_INFO!H$9:H$1000,"=4"),"-") -> 0 | F29: =IF(F26="Yes",F27-(992-COUNTIF(COUNTRY_INFO!I$9:I$1000,""))+COUNTIF(COUNTRY_INFO!I$9:I$1000,"=4"),"-") -> 14 | G29: =IF(G26="Yes",G27-(992-COUNTIF(COUNTRY_INFO!J$9:J$1000,""))+COUNTIF(COUNTRY_INFO!J$9:J$1000,"=4")+COUNTIF(COUNTRY_INFO!J$9:J$1000,"=5"),"-") -> 0 | H29: =IF(H26="Yes",H27-(992-COUNTIF(COUNTRY_INFO!K$9:K$1000,""))+COUNTIF(COUNTRY_INFO!K$9:K$1000,"=4")+COUNTIF(COUNTRY_INFO!K$9:K$1000,"=5"),"-") -> 0
B30: Nombre d’UMOs non-endémiques | E30: =IF(E26="Yes",COUNTIF(COUNTRY_INFO!H$9:H$1000,"=0"),"-") -> 3 | F30: =IF(F26="Yes",COUNTIF(COUNTRY_INFO!I$9:I$1000,"=0"),"-") -> 0 | G30: =IF(G26="Yes",COUNTIF(COUNTRY_INFO!J$9:J$1000,"=0"),"-") -> 0 | H30: =IF(H26="Yes",COUNTIF(COUNTRY_INFO!K$9:K$1000,"=0"),"-") -> 5
B31: Nombre d’UMOs nécessitant une CP (total) | E31: =COUNTIF(COUNTRY_INFO!H$9:H$1000,"=1") -> 15 | F31: =COUNTIF(COUNTRY_INFO!I$9:I$1000,"=1") -> 0 | G31: =SUM(G33:G34) -> 18 | H31: =SUM(H32:H34) -> 13
D32: prevalence basse | G32: =COUNTIF(COUNTRY_INFO!J$9:J$1000,"=1") -> 0 | H32: =COUNTIF(COUNTRY_INFO!K$9:K$1000,"=1") -> 11
D33: prevalence modérée | G33: =COUNTIF(COUNTRY_INFO!J$9:J$1000,"=2") -> 1 | H33: =COUNTIF(COUNTRY_INFO!K$9:K$1000,"=2") -> 2
D34: prevalence haute | G34: =COUNTIF(COUNTRY_INFO!J$9:J$1000,"=3") -> 17 | H34: =COUNTIF(COUNTRY_INFO!K$9:K$1000,"=3") -> 0
B35: Population nécessitant une CP dans le pays (total) | E35: =COUNTRY_INFO!M4 -> 948512 | F35: =COUNTRY_INFO!N4 -> 0 | G35: =COUNTRY_INFO!O4 -> 387783 | H35: =COUNTRY_INFO!P4 -> 137140.8
C36: EAPréS | D36: prevalence modérée | G36: =SUMIF(COUNTRY_INFO!J$9:J$1000,"=2",COUNTRY_INFO!E$9:E$1000) -> 2861
D37: prevalence haute | G37: =SUMIF(COUNTRY_INFO!J$9:J$1000,"=3",COUNTRY_INFO!E$9:E$1000) -> 122884
C38: EAS | D38: prevalence basse | H38: =SUMIF(COUNTRY_INFO!K$9:K$1000,"=1",COUNTRY_INFO!F$9:F$1000)*0.33 -> 44401.5
D39: prevalence modérée | G39: =SUMIF(COUNTRY_INFO!J$9:J$1000,"=2",COUNTRY_INFO!F$9:F$1000) -> 5962 | H39: =SUMIF(COUNTRY_INFO!K$9:K$1000,"=2",COUNTRY_INFO!F$9:F$1000)*0.5 -> 43821.5
D40: prevalence haute | G40: =SUMIF(COUNTRY_INFO!J$9:J$1000,"=3",COUNTRY_INFO!F$9:F$1000) -> 256076 | H40: =SUMIF(COUNTRY_INFO!K$9:K$1000,"=3",COUNTRY_INFO!F$9:F$1000) -> 0
C41: Adults | D41: prevalence modérée | H41: =SUMIF(COUNTRY_INFO!K$9:K$1000,"=2",COUNTRY_INFO!G$9:G$1000)*0.2 -> 48917.8
D42: prevalence haute | H42: =SUMIF(COUNTRY_INFO!K$9:K$1000,"=3",COUNTRY_INFO!G$9:G$1000) -> 0
B43: Nombre d’UMOs où une CP a été mise en oeuvre (total) | E43: =COUNTIF(DISTRICT!G$9:G$1000,">0") -> 15 | F43: =COUNTIF(DISTRICT!M$9:M$1000,">0") -> 0 | G43: =COUNTIF(DISTRICT!S$9:S$1000,">0") -> 17 | H43: =COUNTIF(DISTRICT!AC$9:AC$1000,">0") -> 0
B44: Nombre d’UMOs nécessitant une CP et où elle a été mise en oeuvre | E44: =COUNTIF(DISTRICT!H$9:H$1000,">0") -> 15 | F44: =COUNTIF(DISTRICT!N$9:N$1000,">0") -> 0 | G44: =COUNTIF(DISTRICT!X$9:X$1000,">0") -> 17 | H44: =COUNTIF(DISTRICT!AH$9:AH$1000,">0") -> 0
C45: EAPréS | G45: =COUNTIF(DISTRICT!T$9:T$1000,">0") -> 17
C46: EAS | G46: =COUNTIF(DISTRICT!V$9:V$1000,">0") -> 17 | H46: =COUNTIF(DISTRICT!AD$9:AD$1000,">0") -> 0
C47: Adults | H47: =COUNTIF(DISTRICT!AF$9:AF$1000,">0") -> 0
B48: Nombre d’individus traités (total) | E48: =DISTRICT!G4 -> 191498 | F48: =DISTRICT!M4 -> 0 | G48: =DISTRICT!S4 -> 264905 | H48: =DISTRICT!AC4 -> 0
C49: EAPréS | E49: =SUMMARY!$E17 -> 21518.01836 | F49: =SUMMARY!$E18 -> Not eligible | G49: =SUMMARY!$E19 -> 45319 | H49: =SUMMARY!$E20 -> Not targeted
C50: EAS | E50: =SUMMARY!$F17 -> 44841 | F50: =SUMMARY!$F18 -> 0 | G50: =SUMMARY!$F19 -> 94445 | H50: =SUMMARY!$F20 -> 0
C51: Adults | E51: =SUMMARY!$G17 -> 125138 | F51: =SUMMARY!$G18 -> 0 | G51: =SUMMARY!$G19 -> 125138 | H51: =SUMMARY!$G20 -> 0
B52: Nombre d’individus nécessitant CP et traités (total) | E52: =DISTRICT!H4 -> 191498 | F52: =DISTRICT!N4 -> 0 | G52: =DISTRICT!X4 -> 129506.1273 | H52: =DISTRICT!AH4 -> 0
C53: EAPréS | G53: =DISTRICT!T4 -> 41994.30231
C54: EAS | G54: =DISTRICT!V4 -> 87511.825 | H54: =DISTRICT!AD4 -> 0
C55: Adults | H55: =DISTRICT!AF4 -> 0
B56: Couverture géographique (tous âges) | E56: =IF(E31<>0,E44/E31,0) -> 1 | F56: =IF(F31<>0,F44/F31,0) -> 0 | G56: =IF(G31<>0,G44/G31,0) -> 0.9444444444 | H56: =IF(H31<>0,H44/H31,0) -> 0
C57: EAPréS | G57: =IF(G31<>0,G45/G31,0) -> 0.9444444444
C58: EAS | G58: =IF(G31<>0,G46/G31,0) -> 0.9444444444 | H58: =IF(H31<>0,H46/H31,0) -> 0
C59: Adults | H59: =IF(SUM(H33:H34)<>0,H47/SUM(H33:H34),0) -> 0
B60: Couverture nationale (total) | E60: =IF(E35<>0,E52/E35,0) -> 0.2018930704 | F60: =IF(F35<>0,F52/F35,0) -> 0 | G60: =IF(G35<>0,G52/G35,0) -> 0.3339654583 | H60: =IF(H35<>0,H52/H35,0) -> 0
C61: EAPréS | G61: =IF(SUM(G36:G37)<>0,G53/SUM(G36:G37),0) -> 0.3339639931
C62: EAS | G62: =IF(SUM(G39:G40)<>0,G54/SUM(G39:G40),0) -> 0.3339661614 | H62: =IF(SUM(H38:H40)<>0,H54/SUM(H38:H40),0) -> 0
C63: Adults | H63: =IF(SUM(H41:H42)<>0,H55/SUM(H41:H42),0) -> 0
E64: FL | F64: ONCHO | G64: STH | H64: SCH
B66: Nombre d’UMOs ayant réalisé une couverture efficace (tous âges) | E66: =COUNTIF(DISTRICT!I$9:I$1000,">=65") -> 0 | F66: =COUNTIF(DISTRICT!O$9:O$1000,">=65") -> 0 | G66: =COUNTIF(DISTRICT!Y$9:Y$1000,">=75") -> 1 | H66: =COUNTIF(DISTRICT!AI$9:AI$1000,">=75") -> 0
C67: EAPréS | G67: =COUNTIF(DISTRICT!U$9:U$1000,">=75") -> 1
C68: EAS | G68: =COUNTIF(DISTRICT!W$9:W$1000,">=75") -> 1 | H68: =COUNTIF(DISTRICT!AE$9:AE$1000,">=75") -> 0
C69: Adults | H69: =COUNTIF(DISTRICT!AG$9:AG$1000,">=75") -> 0
B70: Nombre d’individus nécessitant un traitement dans des UMOs ayant réalisé une couverture efficace (total) | E70: =SUMIF(DISTRICT!I9:I1000,">=65",DISTRICT!H9:H1000) -> 0 | F70: =SUMIF(DISTRICT!O9:O1000,">=65",DISTRICT!N9:N1000) -> 0 | G70: =SUMIF(DISTRICT!Y9:Y1000,">=75",DISTRICT!X9:X1000) -> 61524 | H70: =SUMIF(DISTRICT!AI9:AI1000,">=75",DISTRICT!AH9:AH1000) -> 0
C71: EAPréS | G71: =SUMIF(DISTRICT!U9:U1000,">=75",DISTRICT!T9:T1000) -> 19950
C72: EAS | G72: =SUMIF(DISTRICT!W9:W1000,">=75",DISTRICT!V9:V1000) -> 41574 | H72: =SUMIF(DISTRICT!AE9:AE1000,">=75",DISTRICT!AD9:AD1000) -> 0
C73: Adults | H73: =SUMIF(DISTRICT!AG9:AG1000,">=75",DISTRICT!AF9:AF1000) -> 0
B74: Proportion d’UMOs nécessitant une CP and ayant réalisé une couverture efficace (total) | E74: =IF(E44<>0,E66/E44,0) -> 0 | F74: =IF(F44<>0,F66/F44,0) -> 0 | G74: =IF(G44<>0,G66/G44,0) -> 0.05882352941 | H74: =IF(H44<>0,H66/H44,0) -> 0
C75: EAPréS | G75: =IF(G45<>0,G67/G45,0) -> 0.05882352941
C76: EAS | G76: =IF(G46<>0,G68/G46,0) -> 0.05882352941 | H76: =IF(H46<>0,H68/H46,0) -> 0
C77: Adults | H77: =IF(H47<>0,H69/H47,0) -> 0
B78: Nombre d’UMOs où la CP a été stoppée (càd sous surveillance) | E78: =COUNTIF(COUNTRY_INFO!H$9:H$1000,"=99") -> 0 | F78: =COUNTIF(COUNTRY_INFO!I$9:I$1000,"=99") -> 4
B79: Nombre d’individus dans les UMOs ne nécessitant plus de CP (stoppée) | E79: =SUMIF(COUNTRY_INFO!H$9:H$1000,"=99",COUNTRY_INFO!D$9:D$1000) -> 0 | F79: =SUMIF(COUNTRY_INFO!I$9:I$1000,"=99",COUNTRY_INFO!D$9:D$1000) -> 252359
B80: Nombre d’individus nécessitant une CP vivants dans des UMOs ciblées pour la CP | E80: =SUMIF(DISTRICT!H$9:H$1000,">0",DISTRICT!D$9:D$1000) -> 948512 | F80: =SUMIF(DISTRICT!N$9:N$1000,">0",DISTRICT!J$9:J$1000) -> 0 | G80: =SUMIF(DISTRICT!X$9:X$1000,">0",DISTRICT!P$9:P$1000) -> 385090 | H80: =SUMIF(DISTRICT!AH$9:AH$1000,">0",DISTRICT!Z$9:Z$1000) -> 0
B81: Nombre d’individus nécessitant une CP vivant dans des UMOs non ciblées pour la CP | E81: =SUMIF(DISTRICT!H$9:H$1000,"=0",DISTRICT!D$9:D$1000) -> 0 | F81: =SUMIF(DISTRICT!N$9:N$1000,"=0",DISTRICT!J$9:J$1000) -> 0 | G81: =SUMIF(DISTRICT!X$9:X$1000,"=0",DISTRICT!P$9:P$1000) -> 2693 | H81: =SUMIF(DISTRICT!AH$9:AH$1000,"=0",DISTRICT!Z$9:Z$1000) -> 137140.8
E82: =E35-E52 -> 757014 | F82: =F35-F52 -> 0 | G82: 258276.8727 | H82: 137140.8
B83: Nombre d’UMOs nécessitant et recevant la CP | E83: =E31-E44 -> 0 | F83: =F31-F44 -> 0 | G83: 1 | H83: 13
E84: =E27-E31-E29 -> 3 | F84: 4 | G84: 0 | H84: =H27-H31-H29 -> 5
G86: Nécessitant et recevant une CP
G87: Nécessitant mais ne recevant pas de CP
G88: Ne nécessitant pas de CP
G89: Statut inconnu
B124: Cliquer ici pour accéder au portail des données de la CP

Sheet DATA_POLICY (hidden)
B2: Formulaire de Rapport Commun v.3.1
B4: Pays | D4: =IF(INTRO!$E$34<>0,INTRO!$E$34," ") -> Equatorial Guinea | G4: Année | H4: =IF(INTRO!$E$36<>0,INTRO!$E$36," ") -> 2021
B7: Déclaration de principe sur la communication de données par l’OMS
B9: Les données sont le fondement de toutes les mesures rationnelles de santé publique et les avantages de la communication de données, y compris pour la science et la santé publique, sont largement reconnus. L’OMS souhaite promouvoir autant que possible la communication de données sanitaires, y compris, mais pas uniquement, de données épidémiologiques et de surveillance.
B14: ="À cet égard, et sans préjudice des instruments juridiquement contraignants régissant la communication et la publication d’informations, le Ministère de la santé de " & D4 & ", en fournissant des données à l’OMS :" -> À cet égard, et sans préjudice des instruments juridiquement contraignants régissant la communication et la publication d’informations, le Ministère de la santé de Equatorial Guinea, en fournissant des données à l’OMS :
B18: confirme que toutes les données à fournir à l’OMS, ont été collectées conformément à la législation nationale applicable, y compris aux lois de protection des données visant à préserver l’anonymat des personnes identifiables ;
B23: ="convient que l’OMS aura le droit, toujours sous réserve des mesures visant à garantir l’utilisation éthique et sécurisée des données et toujours sous réserve d’une reconnaissance appropriée de la part de "&D4&":" -> convient que l’OMS aura le droit, toujours sous réserve des mesures visant à garantir l’utilisation éthique et sécurisée des données et toujours sous réserve d’une reconnaissance appropriée de la part de Equatorial Guinea:
C27: de publier les données, dépourvues de tout élément d’identification personnelle (ci-après dénommées « les données ») et de les mettre à la disposition de toute partie intéressée, sur demande (dans la mesure où elles n’ont pas, ou pas encore, été publiées par l’OMS), selon des modalités autorisant leur utilisation non commerciale et sans but lucratif à des fins de santé publique (pour autant que l’OMS garde la maîtrise de la publication des données) ; d’utiliser, de compiler, d’agréger, d’évaluer et d’analyser les données et de publier et de diffuser les résultats obtenus grâce à ces données en rapport avec des travaux de l’OMS et conformément aux politiques et pratiques de l’Organisation.
B39: =CONCATENATE("Sauf lorsque des instruments juridiquement contraignants (RSI, Règlement de Nomenclature de l’OMS, de 1967, etc.) disposent que les données doivent être communiquées et publiées, le Ministère de la santé de ", D4," peut, pour certaines données, décider de ne pas appliquer (tout ou partie des) (les) dispositions qui précèdent," & " en informant l’OMS par écrit à l’adresse suivante, à condition que cette notification précise clairement les données, " & "dont il s’agit et indique clairement lesquelles des dispositions qui précèdent ne seront pas appliquées, et pour quels motifs.") -> Sauf lorsque des instruments juridiquement contraignants (RSI, Règlement de Nomenclature de l’OMS, de 1967, etc.) disposent que les données doivent être communiquées et publiées, le Ministère de la santé de Equatorial Guinea peut, pour certaines données, décider de ne pas appliquer (tout ou partie des) (les) dispositions qui précèdent, en informant l’OMS par écrit à l’adresse suivante, à condition que cette notification précise clairement les données, dont il s’agit et indique clairement lesquelles des dispositions qui précèdent ne seront pas appliquées, et pour quels motifs.
